Local authority department which incurred the expenditure,Service Division,Cost Centre,Summary of the Purpose of Expenditure,Expense Type,Expense Code,Detailed Expense Type,Date of Transaction,Transaction Number,Beneficiary,Merchant Category Number,Merchant Category,Gross Amount,VAT,Net Amount
Children and Young Peoples Services,Head of Looked After Provision Permanence and Care Leavers,085341,High Etherley Satelite Home,Supplies and Services,324117,Provisions,01-Nov-2017,000006658550135,TESCO STORES 6329,5411,Catering costs - provisions,122.50,0.00,122.50
Children and Young Peoples Services,Head of Looked After Provision Permanence and Care Leavers,085341,High Etherley Satelite Home,Supplies and Services,324117,Provisions,01-Nov-2017,000006658550137,TESCO STORES 6329,5411,Catering costs - provisions,15.00,0.00,15.00
Children and Young Peoples Services,Head of Education,071801,Selby Cottage Childcare Centre,Supplies and Services,312011,Newspapers Books and Periodicals,01-Nov-2017,000006658550141,Amazon EU,5969,Books-school library,7.00,0.00,7.00
Children and Young Peoples Services,Head of Education,071801,Selby Cottage Childcare Centre,Supplies and Services,324117,Provisions,01-Nov-2017,000006658550143,TESCO STORES 2278,5411,Catering costs - provisions,8.48,0.00,8.48
Regeneration and Local Services,Economic Development and Housing,039679,Group Repair - Dawdon Ph 9,Income,720130,Fees and Charges,01-Nov-2017,000006658550149,WWW.MONEYCLAIM.GOV,9399,Fees-legal,410.00,0.00,410.00
Regeneration and Local Services,Direct Services,010383,C&G - South Street Cleansing,Supplies and Services,304259,Equipment and Materials,01-Nov-2017,000006658550179,ARBOR TIMBER & BUILDER,5211,Equipment-purchase and rental,72.91,12.15,60.76
Children and Young Peoples Services,Head of Looked After Provision Permanence and Care Leavers,085962,Durham,Supplies and Services,304245,Equipment and Materials,01-Nov-2017,000006658550187,FAST KEY SERVICES LIMI,7399,Materials,13.22,2.20,11.02
Children and Young Peoples Services,Head of Looked After Provision Permanence and Care Leavers,085342,9 Cedar Drive Aycliffe,Supplies and Services,324117,Provisions,01-Nov-2017,000006658550193,TESCO STORES 2916,5411,Catering costs - provisions,12.68,0.00,12.68
Dedicated Schools Grant,Dedicated Schools Grant,079050,SENSS-Sensory,Supplies and Services,304403,Equipment and Materials,01-Nov-2017,000006658550195,COMPLETE CARE SHOP,5999,Other consumables,37.43,0.00,37.43
Dedicated Schools Grant,Dedicated Schools Grant,079050,SENSS-Sensory,Supplies and Services,312011,Newspapers Books and Periodicals,01-Nov-2017,000006658550197,AMAZON SVCS EU-UK AMAZ,5942,Books-school library,5.95,0.00,5.95
Regeneration and Local Services,Direct Services,021242,Catering - County Hall,Supplies and Services,324117,Provisions,01-Nov-2017,000006658550239,JR HOLLAND FOODSERVICE,5422,Catering costs - provisions,124.48,0.00,124.48
Regeneration and Local Services,Direct Services,021242,Catering - County Hall,Supplies and Services,324117,Provisions,01-Nov-2017,000006658550241,JR HOLLAND FOODSERVICE,5422,Catering costs - provisions,35.52,0.00,35.52
Regeneration and Local Services,Direct Services,021242,Catering - County Hall,Supplies and Services,324117,Provisions,01-Nov-2017,000006658550243,JR HOLLAND FOODSERVICE,5422,Catering costs - provisions,30.14,0.00,30.14
Regeneration and Local Services,Direct Services,021242,Catering - County Hall,Supplies and Services,324117,Provisions,01-Nov-2017,000006658550247,JR HOLLAND FOODSERVICE,5422,Catering costs - provisions,27.55,0.00,27.55
Regeneration and Local Services,Direct Services,021242,Catering - County Hall,Supplies and Services,324117,Provisions,01-Nov-2017,000006658550277,SAINSBURYS LOC4634,5411,Catering costs - provisions,4.95,0.00,4.95
Children and Young Peoples Services,Head of Education,071732,Dean Bank Childcare,Supplies and Services,312011,Newspapers Books and Periodicals,01-Nov-2017,000006658550343,AMAZON SVCS EU-UK AMAZ,5942,Books-school library,5.40,0.00,5.40
Children and Young Peoples Services,Head of Education,071903,EYDCP-Sustainability EDS,Supplies and Services,312011,Newspapers Books and Periodicals,01-Nov-2017,000006658550351,AMAZON SVCS EU-UK AMAZ,5942,Books-school library,10.35,0.00,10.35
Children and Young Peoples Services,Head of Looked After Provision Permanence and Care Leavers,085955,Auckland,Supplies and Services,324117,Provisions,01-Nov-2017,000006658550375,TESCO STORES 6329,5411,Catering costs - provisions,84.73,0.00,84.73
Children and Young Peoples Services,Head of Looked After Provision Permanence and Care Leavers,085957,Secure Management,Supplies and Services,328041,Clothing Uniforms and Laundry,01-Nov-2017,000006658550377,WWW.GOOUTDOORS.CO,5691,Clothing uniforms and laundry,144.00,24.00,120.00
Regeneration and Local Services,Direct Services,010301,C&G - North Grounds Maintenance,Supplies and Services,304403,Equipment and Materials,01-Nov-2017,000006658550383,BESCOL,5231,Other consumables,127.57,21.26,106.31
Regeneration and Local Services,Direct Services,010301,C&G - North Grounds Maintenance,Supplies and Services,304403,Equipment and Materials,01-Nov-2017,000006658550385,BESCOL,5231,Other consumables,60.74,10.12,50.62
Regeneration and Local Services,Direct Services,010301,C&G - North Grounds Maintenance,Supplies and Services,304403,Equipment and Materials,01-Nov-2017,000006658550387,BESCOL,5231,Other consumables,11.99,0.00,11.99
Regeneration and Local Services,Culture & Sport,011060,Hardwick Park Catering,Supplies and Services,324117,Provisions,01-Nov-2017,000006658550389,JR HOLLAND FOODSERVICE,5422,Catering costs - provisions,130.77,0.00,130.77
Regeneration and Local Services,Culture & Sport,054819,Gala Theatre - Theatre,Supplies and Services,312011,Newspapers Books and Periodicals,01-Nov-2017,000006658550395,AMAZON SVCS EU-UK AMAZ,5942,Books-school library,33.88,0.00,33.88
Regeneration and Local Services,Culture & Sport,054819,Gala Theatre - Theatre,Supplies and Services,312011,Newspapers Books and Periodicals,01-Nov-2017,000006658550399,AMAZON SVCS EU-UK AMAZ,5942,Books-school library,44.10,0.00,44.10
Regeneration and Local Services,Direct Services,010525,Catering - Green Lane,Supplies and Services,324117,Provisions,01-Nov-2017,000006658550447,JR HOLLAND FOODSERVICE,5422,Catering costs - provisions,52.47,0.00,52.47
Children and Young Peoples Services,Head of Looked After Provision Permanence and Care Leavers,085352,Tow Law CU,Supplies and Services,324117,Provisions,01-Nov-2017,000006658550471,SAINSBURYS 2199,5411,Catering costs - provisions,50.00,0.00,50.00
Regeneration and Local Services,Direct Services,010367,C&G - South Grounds Maintenance,Third Party Payments,430100,Rendered by Private Contractors,01-Nov-2017,000006658550489,NEC PARKING,7399,Payments to sub-contractors,12.00,0.00,12.00
Regeneration and Local Services,Culture & Sport,011191,Wellbeing4Life,Supplies and Services,324117,Provisions,01-Nov-2017,000006658550519,ALDI 74 774 S,5411,Catering costs - provisions,31.22,0.00,31.22
Regeneration and Local Services,Culture & Sport,011191,Wellbeing4Life,Supplies and Services,328041,Clothing Uniforms and Laundry,01-Nov-2017,000006658550529,POUNDWORLD,5310,Clothing uniforms and laundry,16.10,0.00,16.10
Regeneration and Local Services,Culture & Sport,011191,Wellbeing4Life,Supplies and Services,384999,Miscellaneous Expenses,01-Nov-2017,000006658550533,CRAFTERS COMPANION LTD,5970,Other expenses,16.62,0.00,16.62
Regeneration and Local Services,Culture & Sport,026591,Hardwick Park,Supplies and Services,304245,Equipment and Materials,01-Nov-2017,000006658550549,SAINSBURYS SACAT (2303,5411,Materials,12.00,0.00,12.00
Regeneration and Local Services,Culture & Sport,026591,Hardwick Park,Supplies and Services,312009,Newspapers Books and Periodicals,01-Nov-2017,000006658550559,AMAZON SVCS EU-UK AMAZ,5942,Newspapers books and periodicals,4.94,0.00,4.94
Regeneration and Local Services,Culture & Sport,054235,Bishop Auckland Town Hall Cafe,Supplies and Services,324117,Provisions,01-Nov-2017,000006658550695,JR HOLLAND FOODSERVICE,5422,Catering costs - provisions,48.74,0.00,48.74
Regeneration and Local Services,Direct Services,021324,Catering - Meadowfield,Supplies and Services,324117,Provisions,01-Nov-2017,000006658550717,JR HOLLAND FOODSERVICE,5422,Catering costs - provisions,13.89,0.00,13.89
Regeneration and Local Services,Direct Services,010301,C&G - North Grounds Maintenance,Third Party Payments,430100,Rendered by Private Contractors,01-Nov-2017,000006658550739,JOHN WARREN (ANIMAL BY,7399,Payments to sub-contractors,192.00,32.00,160.00
Regeneration and Local Services,Direct Services,021235,Catering - Wharton Park,Supplies and Services,324117,Provisions,01-Nov-2017,000006658550815,JR HOLLAND FOODSERVICE,5422,Catering costs - provisions,107.03,0.00,107.03
Regeneration and Local Services,Direct Services,021235,Catering - Wharton Park,Supplies and Services,324117,Provisions,01-Nov-2017,000006658550819,JR HOLLAND FOODSERVICE,5422,Catering costs - provisions,13.58,0.00,13.58
Regeneration and Local Services,Direct Services,021235,Catering - Wharton Park,Supplies and Services,324117,Provisions,01-Nov-2017,000006658550821,JR HOLLAND FOODSERVICE,5422,Catering costs - provisions,4.65,0.00,4.65
Regeneration and Local Services,Culture & Sport,010605,Woodhouse Close Leisure Complex,Supplies and Services,324117,Provisions,01-Nov-2017,000006658550839,JR HOLLAND FOODSERVICE,5422,Catering costs - provisions,56.17,0.00,56.17
Resources,Digital and Customer Services,069010,Administration,Supplies and Services,344033,Telephones,01-Nov-2017,000006663215925,AMAZON SVCS EU-UK AMAZ,5942,Telephones general-all costs,151.62,25.27,126.35
Dedicated Schools Grant,Dedicated Schools Grant,079050,SENSS-Sensory,Supplies and Services,304403,Equipment and Materials,01-Nov-2017,000006663215959,AMAZON EU AMAZON.CO.UK,5999,Other consumables,13.84,0.00,13.84
Children and Young Peoples Services,Head of Education,071903,EYDCP-Sustainability EDS,Supplies and Services,312011,Newspapers Books and Periodicals,01-Nov-2017,000006663216047,AMAZON SVCS EU-UK AMAZ,5942,Books-school library,15.05,0.00,15.05
Regeneration and Local Services,Economic Development and Housing,030708,VCD - Marketing & Information,Supplies and Services,336005,Advertising,02-Nov-2017,000006658550345,GOOGLE SVCSAPPS_visit,5968,Advertising other than for staff,4.89,0.00,4.89
Children and Young Peoples Services,Head of Looked After Provision Permanence and Care Leavers,085341,High Etherley Satelite Home,Supplies and Services,324117,Provisions,02-Nov-2017,000006663215909,TESCO STORES 6329,5411,Catering costs - provisions,12.00,0.00,12.00
Children and Young Peoples Services,Head of Education,071801,Selby Cottage Childcare Centre,Supplies and Services,324117,Provisions,02-Nov-2017,000006663215921,JR HOLLAND FOODSERVICE,5422,Catering costs - provisions,60.85,0.00,60.85
Children and Young Peoples Services,Head of Education,071801,Selby Cottage Childcare Centre,Supplies and Services,324117,Provisions,02-Nov-2017,000006663215923,TESCO STORES 2278,5411,Catering costs - provisions,4.45,0.00,4.45
Adult and Health Services,Head of Adults,055302,Durham Pathways,Supplies and Services,384999,Miscellaneous Expenses,02-Nov-2017,000006663215945,HOBBYCRAFT,5970,Other expenses,60.00,10.00,50.00
Regeneration and Local Services,Direct Services,010383,C&G - South Street Cleansing,Supplies and Services,304999,Equipment and Materials,02-Nov-2017,000006663215947,NEW ROW FARM NURSERIES,5193,Misc equipment tools and materials,83.70,0.00,83.70
Children and Young Peoples Services,Head of Looked After Provision Permanence and Care Leavers,085955,Auckland,Supplies and Services,384999,Miscellaneous Expenses,02-Nov-2017,000006663215951,WWW.ARGOS.CO.UK,5310,Other expenses,33.93,0.00,33.93
Dedicated Schools Grant,Dedicated Schools Grant,079050,SENSS-Sensory,Supplies and Services,312011,Newspapers Books and Periodicals,02-Nov-2017,000006663215957,AMAZON SVCS EU-UK AMAZ,5942,Books-school library,12.49,0.00,12.49
Children and Young Peoples Services,Head of Looked After Provision Permanence and Care Leavers,085342,9 Cedar Drive Aycliffe,Employees,040149,Recruitment Instruction and Training,02-Nov-2017,000006663215967,PARENTPAY E-COM R,8220,Training-all costs,30.00,0.00,30.00
Regeneration and Local Services,Direct Services,021242,Catering - County Hall,Supplies and Services,324117,Provisions,02-Nov-2017,000006663215985,JR HOLLAND FOODSERVICE,5422,Catering costs - provisions,69.00,0.00,69.00
Regeneration and Local Services,Direct Services,021242,Catering - County Hall,Supplies and Services,324117,Provisions,02-Nov-2017,000006663215987,JR HOLLAND FOODSERVICE,5422,Catering costs - provisions,13.20,0.00,13.20
Children and Young Peoples Services,Head of Education,070169,Durham SSP,Transport,235057,Public Transport,02-Nov-2017,000006663215989,MOTORSOURCEUK,5511,Staff travelling,205.00,34.17,170.83
Regeneration and Local Services,Culture & Sport,054812,Gala Theatre - Catering etc,Supplies and Services,324117,Provisions,02-Nov-2017,000006663215995,JR HOLLAND FOODSERVICE,5422,Catering costs - provisions,56.63,0.00,56.63
Resources,Legal & Democratic Services,067910,Democratic Representation,Supplies and Services,384965,Miscellaneous Expenses,02-Nov-2017,000006663216035,RYMAN,5943,Civic Functions,15.95,2.66,13.29
Resources,Legal & Democratic Services,067910,Democratic Representation,Supplies and Services,384965,Miscellaneous Expenses,02-Nov-2017,000006663216037,THORNTONS LTD,5441,Civic Functions,12.00,0.00,12.00
Children and Young Peoples Services,Head of Looked After Provision Permanence and Care Leavers,085965,Barnard,Supplies and Services,324117,Provisions,02-Nov-2017,000006663216055,TESCO STORES 6329,5411,Catering costs - provisions,90.35,0.00,90.35
Regeneration and Local Services,Culture & Sport,011060,Hardwick Park Catering,Supplies and Services,324117,Provisions,02-Nov-2017,000006663216061,JR HOLLAND FOODSERVICE,5422,Catering costs - provisions,12.10,0.00,12.10
Children and Young Peoples Services,Head of Early Help Assessment and Safeguarding,071443,Stanley One Point Hub,Supplies and Services,328041,Clothing Uniforms and Laundry,02-Nov-2017,000006663216083,PRICE-BUCKLAND.CO.,5699,Clothing uniforms and laundry,101.95,0.00,101.95
Children and Young Peoples Services,Head of Looked After Provision Permanence and Care Leavers,085333,Coxhoe Satelite Home,Supplies and Services,324117,Provisions,02-Nov-2017,000006663216089,TESCO STORES 2371,5411,Catering costs - provisions,123.74,0.00,123.74
Children and Young Peoples Services,Head of Looked After Provision Permanence and Care Leavers,085333,Coxhoe Satelite Home,Supplies and Services,324117,Provisions,02-Nov-2017,000006663216091,TESCO STORES 2371,5411,Catering costs - provisions,64.00,0.00,64.00
Children and Young Peoples Services,Head of Looked After Provision Permanence and Care Leavers,085333,Coxhoe Satelite Home,Supplies and Services,328041,Clothing Uniforms and Laundry,02-Nov-2017,000006663216093,POUNDWORLD RETAIL,5310,Clothing uniforms and laundry,10.00,0.00,10.00
Regeneration and Local Services,Culture & Sport,026591,Hardwick Park,Supplies and Services,312009,Newspapers Books and Periodicals,02-Nov-2017,000006663216097,THE BOOK PEOPLE,5942,Newspapers books and periodicals,43.96,0.00,43.96
Regeneration and Local Services,Business Support,010832,Business Support,Supplies and Services,304259,Equipment and Materials,02-Nov-2017,000006663216103,DVLA DIGITAL TACHO,9399,Equipment-purchase and rental,19.00,0.00,19.00
Regeneration and Local Services,Direct Services,010301,C&G - North Grounds Maintenance,Supplies and Services,304403,Equipment and Materials,02-Nov-2017,000006663216143,SPALDINGS LTD,5065,Other consumables,210.59,35.10,175.49
Regeneration and Local Services,Direct Services,010301,C&G - North Grounds Maintenance,Supplies and Services,304259,Equipment and Materials,02-Nov-2017,000006663216145,HARELAW SAWMILL,5211,Equipment-purchase and rental,7.76,0.00,7.76
Regeneration and Local Services,Culture & Sport,011086,Positive Futures,Supplies and Services,324117,Provisions,02-Nov-2017,000006663216171,ASDA SUPERSTORE 4987,5411,Catering costs - provisions,12.44,0.00,12.44
Regeneration and Local Services,Culture & Sport,011086,Positive Futures,Supplies and Services,324117,Provisions,02-Nov-2017,000006663216173,ASDA SUPERSTORE 4987,5411,Catering costs - provisions,5.00,0.00,5.00
Children and Young Peoples Services,Head of Early Help Assessment and Safeguarding,074000,TTF-Attachment and Results,Transfer Payments,525033,Other,02-Nov-2017,000006663216187,J DODDS CARPETS LTD,5713,Grants to individuals,65.04,10.84,54.20
Children and Young Peoples Services,Head of Early Help Assessment and Safeguarding,074000,TTF-Attachment and Results,Transfer Payments,525033,Other,02-Nov-2017,000006663216187 - 1,J DODDS CARPETS LTD,5713,Grants to individuals,34.96,,34.96
Children and Young Peoples Services,Head of Early Help Assessment and Safeguarding,074000,TTF-Attachment and Results,Transfer Payments,525033,Other,02-Nov-2017,000006663216189,J DODDS CARPETS LTD,5713,Grants to individuals,115.02,19.17,95.85
Children and Young Peoples Services,Head of Early Help Assessment and Safeguarding,074000,TTF-Attachment and Results,Transfer Payments,525033,Other,02-Nov-2017,000006663216189 - 1,J DODDS CARPETS LTD,5713,Grants to individuals,34.98,,34.98
Children and Young Peoples Services,Head of Early Help Assessment and Safeguarding,074000,TTF-Attachment and Results,Transfer Payments,525033,Other,02-Nov-2017,000006663216191,TESCO - Abacus Baby,5999,Grants to individuals,146.95,0.00,146.95
Children and Young Peoples Services,Head of Early Help Assessment and Safeguarding,074000,TTF-Attachment and Results,Transfer Payments,525033,Other,02-Nov-2017,000006663216193,TESCO - Safetots Limit,5999,Grants to individuals,29.90,4.98,24.92
Children and Young Peoples Services,Head of Early Help Assessment and Safeguarding,074000,TTF-Attachment and Results,Transfer Payments,525033,Other,02-Nov-2017,000006663216195,TESCO - Safetots Limit,5999,Grants to individuals,15.40,2.57,12.83
Children and Young Peoples Services,Head of Early Help Assessment and Safeguarding,074000,TTF-Attachment and Results,Transfer Payments,525033,Other,02-Nov-2017,000006663216197,TESCO - Seller_IST_1_2,5999,Grants to individuals,144.99,0.00,144.99
Children and Young Peoples Services,Head of Early Help Assessment and Safeguarding,074000,TTF-Attachment and Results,Transfer Payments,525033,Other,02-Nov-2017,000006663216199,TESCO DIRECT,5999,Grants to individuals,43.00,7.17,35.83
Transformation and Partnerships,Comms & Information Management,060270,Communications and Marketing,Supplies and Services,372009,Subscriptions,02-Nov-2017,000006663216201,STK SHUTTERSTOCK.COM,7333,Subscriptions,"1,000.00",0.00,1000.00
Regeneration and Local Services,Direct Services,022902,Waste Strategy,Supplies and Services,372009,Subscriptions,02-Nov-2017,000006663216203,AUDIO NETWORK,5733,Subscriptions,82.80,13.80,69.00
Transformation and Partnerships,Strategy,060170,Equalities Diversity and Cohesion,Employees,040149,Recruitment Instruction and Training,02-Nov-2017,000006663216205,WWW.STONEWALL.ORG.,8398,Training-all costs,240.00,40.00,200.00
Children and Young Peoples Services,Head of Early Help Assessment and Safeguarding,071404,Laurel Avenue Childrens Centre,Supplies and Services,324117,Provisions,02-Nov-2017,000006663216209,TESCO STORES 2371,5411,Catering costs - provisions,1.89,0.00,1.89
Regeneration and Local Services,Direct Services,021242,Catering - County Hall,Supplies and Services,324117,Provisions,02-Nov-2017,000006669167859,HOPWELLS LTD,5811,Catering costs - provisions,182.59,0.00,182.59
Children and Young Peoples Services,Head of Early Help Assessment and Safeguarding,071444,Consett One Point Hub,Supplies and Services,312011,Newspapers Books and Periodicals,02-Nov-2017,000006669168085,AMAZON SVCS EU-UK AMAZ,5942,Books-school library,86.25,0.00,86.25
Regeneration and Local Services,Culture & Sport,011060,Hardwick Park Catering,Supplies and Services,324117,Provisions,02-Nov-2017,000006669168117,HOPWELLS LTD,5811,Catering costs - provisions,506.76,84.46,422.30
Regeneration and Local Services,Culture & Sport,011060,Hardwick Park Catering,Supplies and Services,324117,Provisions,02-Nov-2017,000006669168117 - 1,HOPWELLS LTD,5811,Catering costs - provisions,239.57,,239.57
Regeneration and Local Services,Culture & Sport,011060,Hardwick Park Catering,Supplies and Services,324117,Provisions,02-Nov-2017,000006669168123,HOPWELLS LTD,5811,Catering costs - provisions,38.34,6.39,31.95
Regeneration and Local Services,Culture & Sport,011060,Hardwick Park Catering,Supplies and Services,324117,Provisions,02-Nov-2017,000006669168123 - 1,HOPWELLS LTD,5811,Catering costs - provisions,82.39,,82.39
Regeneration and Local Services,Culture & Sport,011060,Hardwick Park Catering,Supplies and Services,324117,Provisions,02-Nov-2017,000006669168131,BATLEYS PERTH,5300,Catering costs - provisions,254.34,42.39,211.95
Regeneration and Local Services,Culture & Sport,011060,Hardwick Park Catering,Supplies and Services,324117,Provisions,02-Nov-2017,000006669168131 - 1,BATLEYS PERTH,5300,Catering costs - provisions,141.25,,141.25
Regeneration and Local Services,Culture & Sport,011060,Hardwick Park Catering,Supplies and Services,324117,Provisions,02-Nov-2017,000006669168137,HOPWELLS LTD,5811,Catering costs - provisions,-22.99,-3.83,-19.16
Regeneration and Local Services,Culture & Sport,054819,Gala Theatre - Theatre,Supplies and Services,312011,Newspapers Books and Periodicals,02-Nov-2017,000006669168169,AMAZON SVCS EU-UK AMAZ,5942,Books-school library,35.94,0.00,35.94
Regeneration and Local Services,Culture & Sport,054819,Gala Theatre - Theatre,Supplies and Services,304259,Equipment and Materials,02-Nov-2017,000006669168173,WWW.GEAR4MUSIC.COM,5733,Equipment-purchase and rental,219.00,0.00,219.00
Regeneration and Local Services,Direct Services,021234,Catering - Locomotion,Supplies and Services,324117,Provisions,02-Nov-2017,000006669168199,HOPWELLS LTD,5811,Catering costs - provisions,21.30,3.55,17.75
Regeneration and Local Services,Direct Services,021234,Catering - Locomotion,Supplies and Services,324117,Provisions,02-Nov-2017,000006669168199 - 1,HOPWELLS LTD,5811,Catering costs - provisions,124.40,,124.40
Regeneration and Local Services,Direct Services,010525,Catering - Green Lane,Supplies and Services,324117,Provisions,02-Nov-2017,000006669168213,HOPWELLS LTD,5811,Catering costs - provisions,99.76,0.00,99.76
Regeneration and Local Services,Culture & Sport,054235,Bishop Auckland Town Hall Cafe,Supplies and Services,324117,Provisions,02-Nov-2017,000006669168375,HOPWELLS LTD,5811,Catering costs - provisions,319.36,0.00,319.36
Regeneration and Local Services,Direct Services,021324,Catering - Meadowfield,Supplies and Services,324117,Provisions,02-Nov-2017,000006669168383,HOPWELLS LTD,5811,Catering costs - provisions,39.35,0.00,39.35
Regeneration and Local Services,Direct Services,021324,Catering - Meadowfield,Supplies and Services,324117,Provisions,02-Nov-2017,000006669168391,BATLEYS PERTH,5300,Catering costs - provisions,-11.37,0.00,-11.37
Children and Young Peoples Services,Head of Early Help Assessment and Safeguarding,074000,TTF-Attachment and Results,Supplies and Services,312011,Newspapers Books and Periodicals,02-Nov-2017,000006669168533,AMAZON SVCS EU-UK AMAZ,5942,Books-school library,2.35,0.00,2.35
Regeneration and Local Services,Direct Services,021235,Catering - Wharton Park,Supplies and Services,324117,Provisions,02-Nov-2017,000006669168559,HOPWELLS LTD,5811,Catering costs - provisions,134.76,22.46,112.30
Regeneration and Local Services,Direct Services,021235,Catering - Wharton Park,Supplies and Services,324117,Provisions,02-Nov-2017,000006669168559 - 1,HOPWELLS LTD,5811,Catering costs - provisions,73.98,,73.98
Regeneration and Local Services,Direct Services,021235,Catering - Wharton Park,Supplies and Services,324117,Provisions,02-Nov-2017,000006669168569,HOPWELLS LTD,5811,Catering costs - provisions,-13.08,-2.18,-10.90
Resources,Financial Services,065180,Collections,Supplies and Services,338045,Services,03-Nov-2017,000006669167633,HMCOURTS-SERVICE.G,9222,Legal expenses,"5,715.00",0.00,5715.00
Regeneration and Local Services,Direct Services,010393,R&R - South Refuse Collection,Supplies and Services,344033,Telephones,03-Nov-2017,000006669167647,Amazon UK Marketplace,5942,Telephones general-all costs,11.05,1.84,9.21
Regeneration and Local Services,Technical Services,018001,Highways Services - Street Lighting,Supplies and Services,304335,Equipment and Materials,03-Nov-2017,000006669167651,Amazon UK Marketplace,5942,ICT supplies etc,253.42,42.24,211.18
Adult and Health Services,Head of Adults,055302,Durham Pathways,Supplies and Services,324117,Provisions,03-Nov-2017,000006669167727,LIDL UK,5411,Catering costs - provisions,1.98,0.00,1.98
Dedicated Schools Grant,Dedicated Schools Grant,079050,SENSS-Sensory,Supplies and Services,328041,Clothing Uniforms and Laundry,03-Nov-2017,000006669167763,ARGOS RETAIL GROUP,5310,Clothing uniforms and laundry,29.99,0.00,29.99
Dedicated Schools Grant,Dedicated Schools Grant,079050,SENSS-Sensory,Supplies and Services,304259,Equipment and Materials,03-Nov-2017,000006669167765,WILKO.COM,5722,Equipment-purchase and rental,10.00,0.00,10.00
Children and Young Peoples Services,Head of Looked After Provision Permanence and Care Leavers,085342,9 Cedar Drive Aycliffe,Transport,235057,Public Transport,03-Nov-2017,000006669167789,TRAINLINE,4112,Staff travelling,-11.70,0.00,-11.70
Regeneration and Local Services,Direct Services,021242,Catering - County Hall,Supplies and Services,324117,Provisions,03-Nov-2017,000006669167863,JR HOLLAND FOODSERVICE,5422,Catering costs - provisions,92.87,0.00,92.87
Regeneration and Local Services,Direct Services,021242,Catering - County Hall,Supplies and Services,324117,Provisions,03-Nov-2017,000006669167865,JR HOLLAND FOODSERVICE,5422,Catering costs - provisions,13.20,0.00,13.20
Children and Young Peoples Services,Head of Education,079599,Psychological-HQ,Supplies and Services,312011,Newspapers Books and Periodicals,03-Nov-2017,000006669167923,AMAZON SVCS EU-UK AMAZ,5942,Books-school library,12.00,0.00,12.00
Regeneration and Local Services,Culture & Sport,011219,Office Services,Supplies and Services,342033,Computers and Communications,03-Nov-2017,000006669167955,STK SHUTTERSTOCK.COM,7333,Computer hardware,34.80,5.80,29.00
Regeneration and Local Services,Direct Services,010367,C&G - South Grounds Maintenance,Supplies and Services,304999,Equipment and Materials,03-Nov-2017,000006669167979,NEW ROW FARM NURSERIES,5193,Misc equipment tools and materials,139.56,23.26,116.30
Children and Young Peoples Services,Head of Education,071732,Dean Bank Childcare,Supplies and Services,328041,Clothing Uniforms and Laundry,03-Nov-2017,000006669168017,Wish.com,5691,Clothing uniforms and laundry,52.20,0.00,52.20
Regeneration and Local Services,Culture & Sport,054813,Gala Theatre - Technical,Supplies and Services,304259,Equipment and Materials,03-Nov-2017,000006669168025,PELIPRODUCT,5099,Equipment-purchase and rental,42.78,0.00,42.78
Children and Young Peoples Services,Head of Looked After Provision Permanence and Care Leavers,085341,High Etherley Satelite Home,Supplies and Services,324117,Provisions,03-Nov-2017,000006669168029,TESCO STORES 6329,5411,Catering costs - provisions,45.77,0.00,45.77
Children and Young Peoples Services,Head of Looked After Provision Permanence and Care Leavers,085341,High Etherley Satelite Home,Premises,115125,Repairs to Grounds,03-Nov-2017,000006669168031,TESCO STORES 6329,5411,General maintenance,20.00,0.00,20.00
Children and Young Peoples Services,Head of Looked After Provision Permanence and Care Leavers,085957,Secure Management,Supplies and Services,328041,Clothing Uniforms and Laundry,03-Nov-2017,000006669168077,TRADEINN RETAIL SERVIC,7832,Clothing uniforms and laundry,92.90,0.00,92.90
Children and Young Peoples Services,Head of Looked After Provision Permanence and Care Leavers,085956,Lumley,Supplies and Services,324117,Provisions,03-Nov-2017,000006669168079,TESCO STORES 6329,5411,Catering costs - provisions,103.81,0.00,103.81
Regeneration and Local Services,Direct Services,010301,C&G - North Grounds Maintenance,Supplies and Services,304403,Equipment and Materials,03-Nov-2017,000006669168113,FRED WILLIAMSON,5231,Other consumables,126.72,21.12,105.60
Regeneration and Local Services,Culture & Sport,011060,Hardwick Park Catering,Supplies and Services,324117,Provisions,03-Nov-2017,000006669168127,JR HOLLAND FOODSERVICE,5422,Catering costs - provisions,17.12,0.00,17.12
Regeneration and Local Services,Technical Services,010984,Training and Development,Employees,040149,Recruitment Instruction and Training,03-Nov-2017,000006669168155,NCS VUE WAMITAB TEST,8299,Training-all costs,130.00,0.00,130.00
Regeneration and Local Services,Technical Services,010984,Training and Development,Employees,040149,Recruitment Instruction and Training,03-Nov-2017,000006669168159,NCS VUE WAMITAB TEST,8299,Training-all costs,130.00,0.00,130.00
Regeneration and Local Services,Technical Services,010984,Training and Development,Employees,040149,Recruitment Instruction and Training,03-Nov-2017,000006669168161,WWW.WAMITAB.ORG.UK,8299,Training-all costs,32.45,0.00,32.45
Regeneration and Local Services,Direct Services,010525,Catering - Green Lane,Supplies and Services,324117,Provisions,03-Nov-2017,000006669168215,JR HOLLAND FOODSERVICE,5422,Catering costs - provisions,29.49,0.00,29.49
Regeneration and Local Services,Direct Services,010367,C&G - South Grounds Maintenance,Supplies and Services,304259,Equipment and Materials,03-Nov-2017,000006669168301,SCREWFIX DIRECT,5211,Equipment-purchase and rental,11.99,2.00,9.99
Children and Young Peoples Services,Head of Education,071903,EYDCP-Sustainability EDS,Supplies and Services,328041,Clothing Uniforms and Laundry,03-Nov-2017,000006669168369,DISCOUNT ARMY SURPLUSS,5655,Clothing uniforms and laundry,25.00,0.00,25.00
Regeneration and Local Services,Direct Services,021324,Catering - Meadowfield,Supplies and Services,324117,Provisions,03-Nov-2017,000006669168387,JR HOLLAND FOODSERVICE,5422,Catering costs - provisions,34.56,0.00,34.56
Regeneration and Local Services,Direct Services,021324,Catering - Meadowfield,Supplies and Services,324117,Provisions,03-Nov-2017,000006669168389,JR HOLLAND FOODSERVICE,5422,Catering costs - provisions,9.90,0.00,9.90
Adult and Health Services,Head of Adults,055301,Stanley Pathways,Supplies and Services,324117,Provisions,03-Nov-2017,000006669168403,ASDA SUPERSTORE,5411,Catering costs - provisions,2.97,0.00,2.97
Regeneration and Local Services,Direct Services,010301,C&G - North Grounds Maintenance,Third Party Payments,430100,Rendered by Private Contractors,03-Nov-2017,000006669168417,JOHN WARREN (ANIMAL BY,7399,Payments to sub-contractors,10.50,1.75,8.75
Children and Young Peoples Services,Head of Looked After Provision Permanence and Care Leavers,085363,LAC & Permanence Team 3,Supplies and Services,304259,Equipment and Materials,03-Nov-2017,000006669168453,HM PASSPORT OFFICE,9399,Equipment-purchase and rental,46.00,0.00,46.00
Children and Young Peoples Services,Head of Early Help Assessment and Safeguarding,074000,TTF-Attachment and Results,Transfer Payments,525033,Other,03-Nov-2017,000006669168535,AMAZON SVCS EU-UK AMAZ,5942,Grants to individuals,2.84,0.00,2.84
Regeneration and Local Services,Direct Services,021235,Catering - Wharton Park,Supplies and Services,324117,Provisions,03-Nov-2017,000006669168565,JR HOLLAND FOODSERVICE,5422,Catering costs - provisions,17.04,0.00,17.04
Regeneration and Local Services,Culture & Sport,011230,Operations Locality 2,Supplies and Services,328041,Clothing Uniforms and Laundry,03-Nov-2017,000006669168617,FANCY THAT,5310,Clothing uniforms and laundry,24.00,0.00,24.00
Regeneration and Local Services,Culture & Sport,011230,Operations Locality 2,Supplies and Services,312011,Newspapers Books and Periodicals,03-Nov-2017,000006669168621,CHARLES DICKENS (SPENN,5251,Books-school library,17.35,0.00,17.35
Adult and Health Services,EnvironmentHealth & Consumer Protection,010829,Environment Protection,Employees,040149,Recruitment Instruction and Training,03-Nov-2017,000006669168635,CIEH LIMITED,8699,Training-all costs,150.00,0.00,150.00
Regeneration and Local Services,Direct Services,021242,Catering - County Hall,Supplies and Services,324117,Provisions,03-Nov-2017,000006676757975,BATLEYS PERTH,5300,Catering costs - provisions,19.05,0.00,19.05
Regeneration and Local Services,Direct Services,021242,Catering - County Hall,Supplies and Services,324117,Provisions,03-Nov-2017,000006676757989,BATLEYS PERTH,5300,Catering costs - provisions,550.20,91.70,458.50
Regeneration and Local Services,Direct Services,021242,Catering - County Hall,Supplies and Services,324117,Provisions,03-Nov-2017,000006676757989 - 1,BATLEYS PERTH,5300,Catering costs - provisions,250.86,,250.86
Regeneration and Local Services,Direct Services,021242,Catering - County Hall,Supplies and Services,324117,Provisions,03-Nov-2017,000006676758039,BATLEYS PERTH,5300,Catering costs - provisions,283.08,47.18,235.90
Regeneration and Local Services,Direct Services,021242,Catering - County Hall,Supplies and Services,324117,Provisions,03-Nov-2017,000006676758039 - 1,BATLEYS PERTH,5300,Catering costs - provisions,233.46,,233.46
Regeneration and Local Services,Direct Services,021242,Catering - County Hall,Supplies and Services,324117,Provisions,03-Nov-2017,000006676758055,BATLEYS PERTH,5300,Catering costs - provisions,-19.05,0.00,-19.05
Regeneration and Local Services,Direct Services,021242,Catering - County Hall,Supplies and Services,324117,Provisions,03-Nov-2017,000006676758071,BATLEYS PERTH,5300,Catering costs - provisions,-990.00,-105.92,-884.08
Regeneration and Local Services,Culture & Sport,011060,Hardwick Park Catering,Supplies and Services,324117,Provisions,03-Nov-2017,000006676758547,BATLEYS PERTH,5300,Catering costs - provisions,139.38,23.23,116.15
Regeneration and Local Services,Culture & Sport,011060,Hardwick Park Catering,Supplies and Services,324117,Provisions,03-Nov-2017,000006676758547 - 1,BATLEYS PERTH,5300,Catering costs - provisions,182.50,,182.50
Regeneration and Local Services,Direct Services,010525,Catering - Green Lane,Supplies and Services,324117,Provisions,03-Nov-2017,000006676758743,BATLEYS PERTH,5300,Catering costs - provisions,103.92,17.32,86.60
Regeneration and Local Services,Direct Services,010525,Catering - Green Lane,Supplies and Services,324117,Provisions,03-Nov-2017,000006676758743 - 1,BATLEYS PERTH,5300,Catering costs - provisions,61.50,,61.50
Regeneration and Local Services,Culture & Sport,010605,Woodhouse Close Leisure Complex,Supplies and Services,324117,Provisions,03-Nov-2017,000006676759309,BATLEYS PERTH,5300,Catering costs - provisions,83.58,13.93,69.65
Regeneration and Local Services,Culture & Sport,010605,Woodhouse Close Leisure Complex,Supplies and Services,324117,Provisions,03-Nov-2017,000006676759309 - 1,BATLEYS PERTH,5300,Catering costs - provisions,117.67,,117.67
Regeneration and Local Services,Culture & Sport,010605,Woodhouse Close Leisure Complex,Supplies and Services,324117,Provisions,03-Nov-2017,000006676759313,BATLEYS PERTH,5300,Catering costs - provisions,119.10,19.85,99.25
Regeneration and Local Services,Culture & Sport,010605,Woodhouse Close Leisure Complex,Supplies and Services,324117,Provisions,03-Nov-2017,000006676759313 - 1,BATLEYS PERTH,5300,Catering costs - provisions,101.89,,101.89
Children and Young Peoples Services,Head of Looked After Provision Permanence and Care Leavers,085342,9 Cedar Drive Aycliffe,Supplies and Services,308011,Furniture,04-Nov-2017,000006669167757,DUNELM (SOFT FURNISHIN,5714,Furniture repair and replacement,-139.56,0.00,-139.56
Adult and Health Services,Head of Adults,055302,Durham Pathways,Supplies and Services,328041,Clothing Uniforms and Laundry,04-Nov-2017,000006669167809,W BOYES & CO LTD CHEST,5310,Clothing uniforms and laundry,5.90,0.00,5.90
Children and Young Peoples Services,Head of Early Help Assessment and Safeguarding,085511,Emergency Duty Team,Supplies and Services,352001,Conference Expenses,04-Nov-2017,000006669167933,THE CHIMNEYS HOTEL,7011,Conferencesseminars fees etc,40.00,0.00,40.00
Children and Young Peoples Services,Head of Early Help Assessment and Safeguarding,085511,Emergency Duty Team,Supplies and Services,352001,Conference Expenses,04-Nov-2017,000006669167939,THE CHIMNEYS HOTEL,7011,Conferencesseminars fees etc,40.00,0.00,40.00
Children and Young Peoples Services,Head of Education,071732,Dean Bank Childcare,Supplies and Services,328041,Clothing Uniforms and Laundry,04-Nov-2017,000006669168019,Wish.com,5691,Clothing uniforms and laundry,16.00,0.00,16.00
Children and Young Peoples Services,Head of Education,071732,Dean Bank Childcare,Supplies and Services,328041,Clothing Uniforms and Laundry,04-Nov-2017,000006669168023,Wish.com,5691,Clothing uniforms and laundry,18.50,0.00,18.50
Children and Young Peoples Services,Head of Looked After Provision Permanence and Care Leavers,085954,Walworth,Supplies and Services,324117,Provisions,04-Nov-2017,000006669168081,TESCO STORES 6329,5411,Catering costs - provisions,100.40,0.00,100.40
Resources,Resources Management,069000,Resources Management,Supplies and Services,324117,Provisions,04-Nov-2017,000006669168299,SAINSBURYS (2303),5411,Catering costs - provisions,20.60,0.00,20.60
Regeneration and Local Services,Culture & Sport,011191,Wellbeing4Life,Supplies and Services,304259,Equipment and Materials,04-Nov-2017,000006669168307,WILKO RETAIL LIMIT,5722,Equipment-purchase and rental,8.00,1.33,6.67
Children and Young Peoples Services,Head of Looked After Provision Permanence and Care Leavers,085342,9 Cedar Drive Aycliffe,Supplies and Services,348037,Subsistence,05-Nov-2017,000006669167753,COSTA COFFEE 43035195,5814,Subsistence,5.50,0.00,5.50
Children and Young Peoples Services,Head of Education,079599,Psychological-HQ,Supplies and Services,312011,Newspapers Books and Periodicals,05-Nov-2017,000006669167927,AMAZON SVCS EU-UK AMAZ,5942,Books-school library,30.44,0.00,30.44
Children and Young Peoples Services,Head of Looked After Provision Permanence and Care Leavers,085341,High Etherley Satelite Home,Supplies and Services,344033,Telephones,05-Nov-2017,000006669168035,TESCO STORES 6329,5411,Telephones general-all costs,14.99,0.00,14.99
Children and Young Peoples Services,Head of Looked After Provision Permanence and Care Leavers,085341,High Etherley Satelite Home,Supplies and Services,324117,Provisions,05-Nov-2017,000006669168037,TESCO STORES 6329,5411,Catering costs - provisions,11.69,0.00,11.69
Dedicated Schools Grant,Dedicated Schools Grant,079040,SENSS-HQ,Supplies and Services,312011,Newspapers Books and Periodicals,05-Nov-2017,000006669168365,AMAZON SVCS EU-UK AMAZ,5942,Books-school library,32.63,0.00,32.63
Children and Young Peoples Services,Head of Looked After Provision Permanence and Care Leavers,085341,High Etherley Satelite Home,Supplies and Services,324117,Provisions,06-Nov-2017,000006676757709,SAINSBURYS SACAT 2199,5411,Catering costs - provisions,8.25,0.00,8.25
Children and Young Peoples Services,Head of Looked After Provision Permanence and Care Leavers,085957,Secure Management,Supplies and Services,304245,Equipment and Materials,06-Nov-2017,000006676757793,SCREWFIX DIRECT,5211,Materials,24.96,4.16,20.80
Children and Young Peoples Services,Head of Looked After Provision Permanence and Care Leavers,085342,9 Cedar Drive Aycliffe,Supplies and Services,324117,Provisions,06-Nov-2017,000006676757827,ALDI 74 774 S,5411,Catering costs - provisions,21.96,0.00,21.96
Children and Young Peoples Services,Head of Looked After Provision Permanence and Care Leavers,085342,9 Cedar Drive Aycliffe,Supplies and Services,304259,Equipment and Materials,06-Nov-2017,000006676757833,WILKO RETAIL LIMIT,5722,Equipment-purchase and rental,10.00,0.00,10.00
Children and Young Peoples Services,Head of Looked After Provision Permanence and Care Leavers,085342,9 Cedar Drive Aycliffe,Supplies and Services,348037,Subsistence,06-Nov-2017,000006676757839,PIZZA EXPRESS,5812,Subsistence,33.55,0.00,33.55
Children and Young Peoples Services,Head of Looked After Provision Permanence and Care Leavers,085342,9 Cedar Drive Aycliffe,Supplies and Services,324117,Provisions,06-Nov-2017,000006676757845,TESCO STORES 2916,5411,Catering costs - provisions,9.05,0.00,9.05
Children and Young Peoples Services,Head of Early Help Assessment and Safeguarding,088037,One Point YEI,Supplies and Services,304403,Equipment and Materials,06-Nov-2017,000006676757917,WWW.DURHAM.GOV.UK,9399,Other consumables,12.00,0.00,12.00
Regeneration and Local Services,Direct Services,021242,Catering - County Hall,Supplies and Services,324117,Provisions,06-Nov-2017,000006676757929,WWW.ADELIEFOODS.CO.UK,5499,Catering costs - provisions,310.92,0.00,310.92
Regeneration and Local Services,Direct Services,021242,Catering - County Hall,Supplies and Services,324117,Provisions,06-Nov-2017,000006676757933,WWW.ADELIEFOODS.CO.UK,5499,Catering costs - provisions,130.21,0.00,130.21
Regeneration and Local Services,Direct Services,021242,Catering - County Hall,Supplies and Services,324117,Provisions,06-Nov-2017,000006676757941,WWW.ADELIEFOODS.CO.UK,5499,Catering costs - provisions,119.13,0.00,119.13
Regeneration and Local Services,Direct Services,021242,Catering - County Hall,Supplies and Services,324117,Provisions,06-Nov-2017,000006676757947,WWW.ADELIEFOODS.CO.UK,5499,Catering costs - provisions,115.62,0.00,115.62
Regeneration and Local Services,Direct Services,021242,Catering - County Hall,Supplies and Services,324117,Provisions,06-Nov-2017,000006676757955,WWW.ADELIEFOODS.CO.UK,5499,Catering costs - provisions,102.22,0.00,102.22
Regeneration and Local Services,Direct Services,021242,Catering - County Hall,Supplies and Services,324117,Provisions,06-Nov-2017,000006676757959,JR HOLLAND FOODSERVICE,5422,Catering costs - provisions,85.79,0.00,85.79
Regeneration and Local Services,Direct Services,021242,Catering - County Hall,Supplies and Services,324117,Provisions,06-Nov-2017,000006676757971,JR HOLLAND FOODSERVICE,5422,Catering costs - provisions,6.94,0.00,6.94
Regeneration and Local Services,Direct Services,021242,Catering - County Hall,Supplies and Services,324117,Provisions,06-Nov-2017,000006676758203,CO-OP GROUP FOOD,5411,Catering costs - provisions,4.65,0.00,4.65
Children and Young Peoples Services,Head of Looked After Provision Permanence and Care Leavers,085361,LAC & Permanence Team 1,Supplies and Services,384999,Miscellaneous Expenses,06-Nov-2017,000006676758227,GRO HM PASSPORT OFFICE,9399,Other expenses,9.25,0.00,9.25
Regeneration and Local Services,Direct Services,010367,C&G - South Grounds Maintenance,Supplies and Services,304259,Equipment and Materials,06-Nov-2017,000006676758283,HORNS GARDEN CENTR,5261,Equipment-purchase and rental,37.98,0.00,37.98
Children and Young Peoples Services,Head of Education,071732,Dean Bank Childcare,Supplies and Services,324117,Provisions,06-Nov-2017,000006676758347,SAINSBURYS SACAT (2303,5411,Catering costs - provisions,9.70,0.00,9.70
Children and Young Peoples Services,Head of Education,071732,Dean Bank Childcare,Supplies and Services,312011,Newspapers Books and Periodicals,06-Nov-2017,000006676758355,THE BOOK PEOPLE,5942,Books-school library,67.94,0.00,67.94
Children and Young Peoples Services,Head of Education,071732,Dean Bank Childcare,Supplies and Services,324117,Provisions,06-Nov-2017,000006676758363,ASDA HOME SHOPPING,5411,Catering costs - provisions,43.42,0.00,43.42
Children and Young Peoples Services,Head of Education,071732,Dean Bank Childcare,Supplies and Services,324117,Provisions,06-Nov-2017,000006676758369,ASDA HOME SHOPPING,5411,Catering costs - provisions,54.15,0.00,54.15
Children and Young Peoples Services,Head of Education,071732,Dean Bank Childcare,Supplies and Services,324117,Provisions,06-Nov-2017,000006676758377,ASDA HOME SHOPPING,5411,Catering costs - provisions,-1.96,0.00,-1.96
Children and Young Peoples Services,Head of Looked After Provision Permanence and Care Leavers,085954,Walworth,Supplies and Services,304649,Equipment and Materials,06-Nov-2017,000006676758469,Amazon UK Marketplace,5942,Toys,19.59,0.00,19.59
Children and Young Peoples Services,Head of Looked After Provision Permanence and Care Leavers,085952,Secure Education,Supplies and Services,324117,Provisions,06-Nov-2017,000006676758479,TESCO STORES 6329,5411,Catering costs - provisions,88.22,0.00,88.22
Regeneration and Local Services,Direct Services,010367,C&G - South Grounds Maintenance,Supplies and Services,384999,Miscellaneous Expenses,06-Nov-2017,000006676758501,WWW.GUSTHARTS.COM,5046,Other expenses,288.30,48.05,240.25
Regeneration and Local Services,Culture & Sport,011060,Hardwick Park Catering,Supplies and Services,324117,Provisions,06-Nov-2017,000006676758533,JR HOLLAND FOODSERVICE,5422,Catering costs - provisions,15.14,0.00,15.14
Resources,Digital and Customer Services,065335,School Services - Implementations,Supplies and Services,304303,Equipment and Materials,06-Nov-2017,000006676758575,NEXXIA AUDIO SOLUTIONS,5533,Network for resale,99.80,16.63,83.17
Regeneration and Local Services,Culture & Sport,054819,Gala Theatre - Theatre,Supplies and Services,328041,Clothing Uniforms and Laundry,06-Nov-2017,000006676758595,DHgate.com,5310,Clothing uniforms and laundry,31.10,0.00,31.10
Regeneration and Local Services,Culture & Sport,054819,Gala Theatre - Theatre,Supplies and Services,304221,Equipment and Materials,06-Nov-2017,000006676758603,PAYPAL 191178SIMON,5169,Direct materials,319.96,0.00,319.96
Regeneration and Local Services,Culture & Sport,054819,Gala Theatre - Theatre,Supplies and Services,304403,Equipment and Materials,06-Nov-2017,000006676758607,WWW.LIGHTS4FUN.CO.,5999,Other consumables,26.91,0.00,26.91
Regeneration and Local Services,Direct Services,021234,Catering - Locomotion,Supplies and Services,324117,Provisions,06-Nov-2017,000006676758649,WWW.ADELIEFOODS.CO.UK,5499,Catering costs - provisions,36.72,0.00,36.72
Regeneration and Local Services,Direct Services,021234,Catering - Locomotion,Supplies and Services,324117,Provisions,06-Nov-2017,000006676758655,WWW.ADELIEFOODS.CO.UK,5499,Catering costs - provisions,32.43,0.00,32.43
Regeneration and Local Services,Direct Services,021234,Catering - Locomotion,Supplies and Services,324117,Provisions,06-Nov-2017,000006676758661,WWW.ADELIEFOODS.CO.UK,5499,Catering costs - provisions,23.72,0.00,23.72
Regeneration and Local Services,Direct Services,021234,Catering - Locomotion,Supplies and Services,324117,Provisions,06-Nov-2017,000006676758671,JR HOLLAND FOODSERVICE,5422,Catering costs - provisions,31.09,0.00,31.09
Regeneration and Local Services,Direct Services,010525,Catering - Green Lane,Supplies and Services,324117,Provisions,06-Nov-2017,000006676758727,WWW.ADELIEFOODS.CO.UK,5499,Catering costs - provisions,76.16,0.00,76.16
Regeneration and Local Services,Direct Services,010525,Catering - Green Lane,Supplies and Services,324117,Provisions,06-Nov-2017,000006676758735,WWW.ADELIEFOODS.CO.UK,5499,Catering costs - provisions,47.17,0.00,47.17
Children and Young Peoples Services,Head of Looked After Provision Permanence and Care Leavers,085333,Coxhoe Satelite Home,Supplies and Services,324117,Provisions,06-Nov-2017,000006676758943,TESCO STORES 2371,5411,Catering costs - provisions,74.72,0.00,74.72
Regeneration and Local Services,Business Support,010832,Business Support,Supplies and Services,304259,Equipment and Materials,06-Nov-2017,000006676758963,DVLA DIGITAL TACHO,9399,Equipment-purchase and rental,19.00,0.00,19.00
Dedicated Schools Grant,Dedicated Schools Grant,079052,Part Sighted-Belmont Comp,Supplies and Services,364320,Grants to Voluntary Organisations,06-Nov-2017,000006676759079,WWW.BIRMINGHAM.AC.UK,8220,Accommodation assistance,56.00,0.00,56.00
Regeneration and Local Services,Culture & Sport,054235,Bishop Auckland Town Hall Cafe,Supplies and Services,324117,Provisions,06-Nov-2017,000006676759125,JR HOLLAND FOODSERVICE,5422,Catering costs - provisions,16.66,0.00,16.66
Adult and Health Services,Head of Adults,055301,Stanley Pathways,Supplies and Services,324117,Provisions,06-Nov-2017,000006676759143,ASDA SUPERSTORE,5411,Catering costs - provisions,2.97,0.00,2.97
Regeneration and Local Services,Direct Services,010301,C&G - North Grounds Maintenance,Supplies and Services,304999,Equipment and Materials,06-Nov-2017,000006676759153,GUSTHARTS CHAINSAW CTR,7699,Misc equipment tools and materials,453.30,75.55,377.75
Transformation and Partnerships,Comms & Information Management,060125,Information Management,Supplies and Services,312009,Newspapers Books and Periodicals,06-Nov-2017,000006676759263,PAYPAL ACT NOW,7392,Newspapers books and periodicals,19.99,0.00,19.99
Regeneration and Local Services,Transport and Contracted Services,032061,Traffic,Supplies and Services,304403,Equipment and Materials,06-Nov-2017,000006676759265,CHAIN REACTION CYCLES,5940,Other consumables,4.98,0.00,4.98
Resources,Digital and Customer Services,065303,Design & Print - Design,Supplies and Services,372009,Subscriptions,06-Nov-2017,000006676759267,APPY PIE,5734,Subscriptions,48.00,0.00,48.00
Regeneration and Local Services,Direct Services,021235,Catering - Wharton Park,Supplies and Services,324117,Provisions,06-Nov-2017,000006676759273,WWW.ADELIEFOODS.CO.UK,5499,Catering costs - provisions,75.22,0.00,75.22
Regeneration and Local Services,Culture & Sport,010605,Woodhouse Close Leisure Complex,Supplies and Services,324117,Provisions,06-Nov-2017,000006676759305,JR HOLLAND FOODSERVICE,5422,Catering costs - provisions,17.67,0.00,17.67
Transformation and Partnerships,Partnerships & Community Engagement Div.,060472,Syrian Vulnerable Persons Scheme,Supplies and Services,308011,Furniture,06-Nov-2017,000006676759345,WILKO RETAIL LIMIT,5722,Furniture repair and replacement,15.45,2.58,12.87
Transformation and Partnerships,Partnerships & Community Engagement Div.,060472,Syrian Vulnerable Persons Scheme,Supplies and Services,308011,Furniture,06-Nov-2017,000006676759349,WILKO RETAIL LIMIT,5722,Furniture repair and replacement,20.00,3.33,16.67
Dedicated Schools Grant,Dedicated Schools Grant,079050,SENSS-Sensory,Supplies and Services,304403,Equipment and Materials,06-Nov-2017,000006680354467,AMAZON EU AMAZON.CO.UK,5999,Other consumables,162.82,0.00,162.82
Regeneration and Local Services,Direct Services,021242,Catering - County Hall,Supplies and Services,324117,Provisions,06-Nov-2017,000006680354509,BATLEYS PERTH,5300,Catering costs - provisions,-15.14,0.00,-15.14
Regeneration and Local Services,Culture & Sport,054812,Gala Theatre - Catering etc,Supplies and Services,324117,Provisions,06-Nov-2017,000006680354545,BATLEYS PERTH,5300,Catering costs - provisions,115.74,19.29,96.45
Regeneration and Local Services,Culture & Sport,054812,Gala Theatre - Catering etc,Supplies and Services,324117,Provisions,06-Nov-2017,000006680354545 - 1,BATLEYS PERTH,5300,Catering costs - provisions,119.34,,119.34
Regeneration and Local Services,Culture & Sport,011215,Museums Heritage & Collections,Supplies and Services,384999,Miscellaneous Expenses,06-Nov-2017,000006680354879,AMAZON SVCS EU-UK AMAZ,5942,Other expenses,79.89,0.00,79.89
Regeneration and Local Services,Direct Services,021324,Catering - Meadowfield,Supplies and Services,324117,Provisions,06-Nov-2017,000006680354947,BATLEYS PERTH,5300,Catering costs - provisions,-8.89,0.00,-8.89
Regeneration and Local Services,Direct Services,021235,Catering - Wharton Park,Supplies and Services,324117,Provisions,06-Nov-2017,000006680355031,BATLEYS PERTH,5300,Catering costs - provisions,111.00,18.50,92.50
Regeneration and Local Services,Direct Services,021235,Catering - Wharton Park,Supplies and Services,324117,Provisions,06-Nov-2017,000006680355031 - 1,BATLEYS PERTH,5300,Catering costs - provisions,23.18,,23.18
Children and Young Peoples Services,Head of Looked After Provision Permanence and Care Leavers,085341,High Etherley Satelite Home,Supplies and Services,324117,Provisions,07-Nov-2017,000006680354351,TESCO STORES 6329,5411,Catering costs - provisions,153.13,0.00,153.13
Resources,Corporate Finance,069800,Corporate Procurement,Employees,040149,Recruitment Instruction and Training,07-Nov-2017,000006680354417,WWW.CIPS.ORG,8699,Training-all costs,136.68,0.00,136.68
Children and Young Peoples Services,Head of Looked After Provision Permanence and Care Leavers,085962,Durham,Supplies and Services,384999,Miscellaneous Expenses,07-Nov-2017,000006680354449,WILKO.COM,5722,Other expenses,93.00,0.00,93.00
Children and Young Peoples Services,Head of Looked After Provision Permanence and Care Leavers,085342,9 Cedar Drive Aycliffe,Supplies and Services,324117,Provisions,07-Nov-2017,000006680354481,TESCO STORES 2916,5411,Catering costs - provisions,221.71,0.00,221.71
Regeneration and Local Services,Direct Services,021242,Catering - County Hall,Supplies and Services,324117,Provisions,07-Nov-2017,000006680354501,JR HOLLAND FOODSERVICE,5422,Catering costs - provisions,85.15,0.00,85.15
Regeneration and Local Services,Direct Services,021242,Catering - County Hall,Supplies and Services,324117,Provisions,07-Nov-2017,000006680354507,JR HOLLAND FOODSERVICE,5422,Catering costs - provisions,6.60,0.00,6.60
Resources,Digital and Customer Services,065461,Business Support,Supplies and Services,372009,Subscriptions,07-Nov-2017,000006680354513,WEB NETWORKSOLUTIONS,5968,Subscriptions,36.60,6.10,30.50
Regeneration and Local Services,Culture & Sport,054812,Gala Theatre - Catering etc,Supplies and Services,324117,Provisions,07-Nov-2017,000006680354541,JR HOLLAND FOODSERVICE,5422,Catering costs - provisions,25.99,0.00,25.99
Children and Young Peoples Services,Head of Looked After Provision Permanence and Care Leavers,085351,Framwellgate Moor CU,Supplies and Services,324117,Provisions,07-Nov-2017,000006680354589,ASDA HOME SHOPPING,5411,Catering costs - provisions,138.26,0.00,138.26
Children and Young Peoples Services,Head of Looked After Provision Permanence and Care Leavers,085957,Secure Management,Supplies and Services,328041,Clothing Uniforms and Laundry,07-Nov-2017,000006680354663,M and M Direct Ltd,5941,Clothing uniforms and laundry,39.98,0.00,39.98
Children and Young Peoples Services,Head of Looked After Provision Permanence and Care Leavers,085957,Secure Management,Supplies and Services,328041,Clothing Uniforms and Laundry,07-Nov-2017,000006680354665,VERY.CO.UK,5964,Clothing uniforms and laundry,113.99,0.00,113.99
Children and Young Peoples Services,Head of Early Help Assessment and Safeguarding,071444,Consett One Point Hub,Supplies and Services,372009,Subscriptions,07-Nov-2017,000006680354671,VITAL CERTIFICATES LTD,8111,Subscriptions,26.34,0.00,26.34
Regeneration and Local Services,Direct Services,010301,C&G - North Grounds Maintenance,Supplies and Services,304403,Equipment and Materials,07-Nov-2017,000006680354677,BESCOL,5231,Other consumables,208.91,34.82,174.09
Regeneration and Local Services,Direct Services,010301,C&G - North Grounds Maintenance,Supplies and Services,304403,Equipment and Materials,07-Nov-2017,000006680354681,BESCOL,5231,Other consumables,51.60,8.60,43.00
Regeneration and Local Services,Culture & Sport,011060,Hardwick Park Catering,Supplies and Services,324117,Provisions,07-Nov-2017,000006680354687,JR HOLLAND FOODSERVICE,5422,Catering costs - provisions,66.20,0.00,66.20
Resources,Digital and Customer Services,065335,School Services - Implementations,Supplies and Services,304639,Equipment and Materials,07-Nov-2017,000006680354695,AMZ replacebase,4816,Technicians-supplies,152.54,0.00,152.54
Resources,Digital and Customer Services,065335,School Services - Implementations,Supplies and Services,304639,Equipment and Materials,07-Nov-2017,000006680354699,AMAZON SVCS EU-UK AMAZ,5942,Technicians-supplies,11.95,0.00,11.95
Resources,Digital and Customer Services,065335,School Services - Implementations,Supplies and Services,304639,Equipment and Materials,07-Nov-2017,000006680354703,AMAZON SVCS EU-UK AMAZ,5942,Technicians-supplies,17.64,0.00,17.64
Regeneration and Local Services,Culture & Sport,054819,Gala Theatre - Theatre,Supplies and Services,312011,Newspapers Books and Periodicals,07-Nov-2017,000006680354709,Amazon UK Marketplace,5942,Books-school library,8.34,0.00,8.34
Regeneration and Local Services,Culture & Sport,054819,Gala Theatre - Theatre,Supplies and Services,312011,Newspapers Books and Periodicals,07-Nov-2017,000006680354711,AMAZON SVCS EU-UK AMAZ,5942,Books-school library,2.59,0.00,2.59
Regeneration and Local Services,Culture & Sport,054819,Gala Theatre - Theatre,Supplies and Services,312011,Newspapers Books and Periodicals,07-Nov-2017,000006680354715,AMAZON SVCS EU-UK AMAZ,5942,Books-school library,3.35,0.00,3.35
Regeneration and Local Services,Culture & Sport,054819,Gala Theatre - Theatre,Supplies and Services,312011,Newspapers Books and Periodicals,07-Nov-2017,000006680354717,AMAZON SVCS EU-UK AMAZ,5942,Books-school library,8.18,0.00,8.18
Regeneration and Local Services,Culture & Sport,054819,Gala Theatre - Theatre,Supplies and Services,312011,Newspapers Books and Periodicals,07-Nov-2017,000006680354719,AMAZON SVCS EU-UK AMAZ,5942,Books-school library,76.63,0.00,76.63
Regeneration and Local Services,Direct Services,021234,Catering - Locomotion,Supplies and Services,324117,Provisions,07-Nov-2017,000006680354743,JR HOLLAND FOODSERVICE,5422,Catering costs - provisions,46.89,0.00,46.89
Regeneration and Local Services,Direct Services,021234,Catering - Locomotion,Supplies and Services,324117,Provisions,07-Nov-2017,000006680354751,JR HOLLAND FOODSERVICE,5422,Catering costs - provisions,10.54,0.00,10.54
Regeneration and Local Services,Direct Services,021234,Catering - Locomotion,Supplies and Services,324117,Provisions,07-Nov-2017,000006680354755,JR HOLLAND FOODSERVICE,5422,Catering costs - provisions,5.44,0.00,5.44
Regeneration and Local Services,Culture & Sport,011191,Wellbeing4Life,Supplies and Services,324117,Provisions,07-Nov-2017,000006680354827,TESCO STORES 2916,5411,Catering costs - provisions,13.50,0.00,13.50
Regeneration and Local Services,Culture & Sport,011191,Wellbeing4Life,Supplies and Services,384999,Miscellaneous Expenses,07-Nov-2017,000006680354831,CRAFTERS COMPANION LTD,5970,Other expenses,5.66,0.00,5.66
Regeneration and Local Services,Culture & Sport,011215,Museums Heritage & Collections,Supplies and Services,384999,Miscellaneous Expenses,07-Nov-2017,000006680354883,AMAZON SVCS EU-UK AMAZ,5942,Other expenses,8.92,0.00,8.92
Children and Young Peoples Services,Head of Early Help Assessment and Safeguarding,088001,Peterlee Locality,Supplies and Services,304259,Equipment and Materials,07-Nov-2017,000006680354931,SUNDERLAND CC,9399,Equipment-purchase and rental,10.00,0.00,10.00
Regeneration and Local Services,Culture & Sport,054235,Bishop Auckland Town Hall Cafe,Supplies and Services,324117,Provisions,07-Nov-2017,000006680354937,JR HOLLAND FOODSERVICE,5422,Catering costs - provisions,57.88,0.00,57.88
Regeneration and Local Services,Direct Services,010301,C&G - North Grounds Maintenance,Supplies and Services,312011,Newspapers Books and Periodicals,07-Nov-2017,000006680354957,GRALANDS WOODWORK SUPP,5251,Books-school library,7.50,1.25,6.25
Resources,Legal & Democratic Services,069321,Governance and Elections,Supplies and Services,372009,Subscriptions,07-Nov-2017,000006680355017,SurveyMonkey,7372,Subscriptions,29.17,0.00,29.17
Regeneration and Local Services,Direct Services,021235,Catering - Wharton Park,Supplies and Services,324117,Provisions,07-Nov-2017,000006680355029,JR HOLLAND FOODSERVICE,5422,Catering costs - provisions,15.93,0.00,15.93
Regeneration and Local Services,Direct Services,010383,C&G - South Street Cleansing,Supplies and Services,304259,Equipment and Materials,07-Nov-2017,000006685014283,HARELAW SAWMILL,5211,Equipment-purchase and rental,343.39,0.00,343.39
Children and Young Peoples Services,Head of Looked After Provision Permanence and Care Leavers,085957,Secure Management,Supplies and Services,304649,Equipment and Materials,07-Nov-2017,000006685014451,WWW.ARGOS.CO.UK,5310,Toys,23.94,3.99,19.95
Children and Young Peoples Services,Head of Looked After Provision Permanence and Care Leavers,085957,Secure Management,Supplies and Services,328041,Clothing Uniforms and Laundry,07-Nov-2017,000006685014457,SPORTSDIRECT.COM,5941,Clothing uniforms and laundry,44.98,0.00,44.98
Children and Young Peoples Services,Head of Looked After Provision Permanence and Care Leavers,085957,Secure Management,Supplies and Services,328041,Clothing Uniforms and Laundry,07-Nov-2017,000006685014459,SPORTSDIRECT.COM,5941,Clothing uniforms and laundry,44.99,0.00,44.99
Regeneration and Local Services,Culture & Sport,011060,Hardwick Park Catering,Supplies and Services,324117,Provisions,07-Nov-2017,000006685014491,BATLEYS PERTH,5300,Catering costs - provisions,8.52,1.42,7.10
Regeneration and Local Services,Culture & Sport,011060,Hardwick Park Catering,Supplies and Services,324117,Provisions,07-Nov-2017,000006685014491 - 1,BATLEYS PERTH,5300,Catering costs - provisions,144.78,,144.78
Regeneration and Local Services,Culture & Sport,054819,Gala Theatre - Theatre,Supplies and Services,312011,Newspapers Books and Periodicals,07-Nov-2017,000006685014503,AMAZON SVCS EU-UK AMAZ,5942,Books-school library,6.87,0.00,6.87
Regeneration and Local Services,Culture & Sport,054819,Gala Theatre - Theatre,Supplies and Services,312011,Newspapers Books and Periodicals,07-Nov-2017,000006685014505,AMAZON SVCS EU-UK AMAZ,5942,Books-school library,5.44,0.00,5.44
Regeneration and Local Services,Direct Services,021234,Catering - Locomotion,Supplies and Services,324117,Provisions,07-Nov-2017,000006685014525,BATLEYS PERTH,5300,Catering costs - provisions,105.66,17.61,88.05
Regeneration and Local Services,Direct Services,021234,Catering - Locomotion,Supplies and Services,324117,Provisions,07-Nov-2017,000006685014525 - 1,BATLEYS PERTH,5300,Catering costs - provisions,45.75,,45.75
Regeneration and Local Services,Direct Services,021234,Catering - Locomotion,Supplies and Services,324117,Provisions,07-Nov-2017,000006685014529,BATLEYS PERTH,5300,Catering costs - provisions,35.95,5.99,29.96
Regeneration and Local Services,Direct Services,021324,Catering - Meadowfield,Supplies and Services,324117,Provisions,07-Nov-2017,000006685014837,BATLEYS PERTH,5300,Catering costs - provisions,76.50,12.75,63.75
Regeneration and Local Services,Direct Services,021324,Catering - Meadowfield,Supplies and Services,324117,Provisions,07-Nov-2017,000006685014837 - 1,BATLEYS PERTH,5300,Catering costs - provisions,75.92,,75.92
Regeneration and Local Services,Direct Services,021324,Catering - Meadowfield,Supplies and Services,324117,Provisions,07-Nov-2017,000006685014843,BATLEYS PERTH,5300,Catering costs - provisions,11.37,0.00,11.37
Resources,Digital and Customer Services,065461,Business Support,Supplies and Services,372009,Subscriptions,08-Nov-2017,000006680354515,WEB NETWORKSOLUTIONS,5968,Subscriptions,1.01,0.00,1.01
Children and Young Peoples Services,Head of Education,071801,Selby Cottage Childcare Centre,Supplies and Services,324117,Provisions,08-Nov-2017,000006685014227,TESCO STORES 2278,5411,Catering costs - provisions,31.44,0.00,31.44
Children and Young Peoples Services,Head of Education,071801,Selby Cottage Childcare Centre,Supplies and Services,324117,Provisions,08-Nov-2017,000006685014229,TESCO STORES 2278,5411,Catering costs - provisions,27.08,0.00,27.08
Children and Young Peoples Services,Head of Education,071801,Selby Cottage Childcare Centre,Supplies and Services,324117,Provisions,08-Nov-2017,000006685014231,TESCO STORES 2278,5411,Catering costs - provisions,2.40,0.00,2.40
Adult and Health Services,EnvironmentHealth & Consumer Protection,010934,Works in Default Holding Code,Income,720130,Fees and Charges,08-Nov-2017,000006685014235,WWW.MONEYCLAIM.GOV,9399,Fees-legal,35.00,0.00,35.00
Children and Young Peoples Services,Head of Looked After Provision Permanence and Care Leavers,085957,Secure Management,Supplies and Services,332047,Printing Stationery and Gen Off Exps,08-Nov-2017,000006685014285,AMAZON SVCS EU-UK AMAZ,5942,Stationery,3.31,0.00,3.31
Children and Young Peoples Services,Head of Looked After Provision Permanence and Care Leavers,085342,9 Cedar Drive Aycliffe,Supplies and Services,308011,Furniture,08-Nov-2017,000006685014287,MODERN RUGS LTD,5713,Furniture repair and replacement,119.95,19.99,99.96
Regeneration and Local Services,Direct Services,010367,C&G - South Grounds Maintenance,Supplies and Services,304259,Equipment and Materials,08-Nov-2017,000006685014315,SCREWFIX,5211,Equipment-purchase and rental,23.92,0.00,23.92
Regeneration and Local Services,Direct Services,021242,Catering - County Hall,Supplies and Services,324117,Provisions,08-Nov-2017,000006685014329,JR HOLLAND FOODSERVICE,5422,Catering costs - provisions,126.74,0.00,126.74
Regeneration and Local Services,Direct Services,021242,Catering - County Hall,Supplies and Services,324117,Provisions,08-Nov-2017,000006685014333,JR HOLLAND FOODSERVICE,5422,Catering costs - provisions,30.14,0.00,30.14
Regeneration and Local Services,Direct Services,010367,C&G - South Grounds Maintenance,Supplies and Services,304259,Equipment and Materials,08-Nov-2017,000006685014343,JEWSON LTD,5211,Equipment-purchase and rental,17.42,2.90,14.52
Children and Young Peoples Services,Head of Education,079599,Psychological-HQ,Third Party Payments,430100,Rendered by Private Contractors,08-Nov-2017,000006685014355,EB SPECIAL EDUCATIONA,7399,Payments to sub-contractors,400.00,0.00,400.00
Children and Young Peoples Services,Head of Looked After Provision Permanence and Care Leavers,085333,Coxhoe Satelite Home,Supplies and Services,304259,Equipment and Materials,08-Nov-2017,000006685014377,B & Q 1343,5211,Equipment-purchase and rental,379.86,0.00,379.86
Children and Young Peoples Services,Head of Looked After Provision Permanence and Care Leavers,085333,Coxhoe Satelite Home,Supplies and Services,344033,Telephones,08-Nov-2017,000006685014379,E E BROADBAND,4812,Telephones general-all costs,39.18,0.00,39.18
Children and Young Peoples Services,Head of Education,071732,Dean Bank Childcare,Supplies and Services,312011,Newspapers Books and Periodicals,08-Nov-2017,000006685014405,AMAZON SVCS EU-UK AMAZ,5942,Books-school library,41.16,0.00,41.16
Children and Young Peoples Services,Head of Education,071732,Dean Bank Childcare,Supplies and Services,312011,Newspapers Books and Periodicals,08-Nov-2017,000006685014407,AMAZON SVCS EU-UK AMAZ,5942,Books-school library,26.97,0.00,26.97
Children and Young Peoples Services,Head of Education,071732,Dean Bank Childcare,Supplies and Services,312011,Newspapers Books and Periodicals,08-Nov-2017,000006685014411,AMAZON SVCS EU-UK AMAZ,5942,Books-school library,16.95,0.00,16.95
Regeneration and Local Services,Culture & Sport,054813,Gala Theatre - Technical,Supplies and Services,340001,Postages,08-Nov-2017,000006685014413,PARCEL2GO.COM LTD,4215,Postages,31.74,5.29,26.45
Regeneration and Local Services,Culture & Sport,054813,Gala Theatre - Technical,Supplies and Services,304403,Equipment and Materials,08-Nov-2017,000006685014417,MESSY SUPPLIES,5999,Other consumables,305.92,0.00,305.92
Children and Young Peoples Services,Head of Education,071903,EYDCP-Sustainability EDS,Supplies and Services,312011,Newspapers Books and Periodicals,08-Nov-2017,000006685014435,Amazon UK Marketplace,5942,Books-school library,3.98,0.00,3.98
Children and Young Peoples Services,Head of Education,071903,EYDCP-Sustainability EDS,Supplies and Services,312011,Newspapers Books and Periodicals,08-Nov-2017,000006685014437,Amazon UK Marketplace,5942,Books-school library,7.98,0.00,7.98
Children and Young Peoples Services,Head of Looked After Provision Permanence and Care Leavers,085957,Secure Management,Employees,040149,Recruitment Instruction and Training,08-Nov-2017,000006685014449,PAYPAL I AM ME,8398,Training-all costs,5.00,0.00,5.00
Children and Young Peoples Services,Head of Looked After Provision Permanence and Care Leavers,085962,Durham,Supplies and Services,384999,Miscellaneous Expenses,08-Nov-2017,000006685014453,WILKO.COM,5722,Other expenses,40.00,0.00,40.00
Children and Young Peoples Services,Head of Looked After Provision Permanence and Care Leavers,085955,Auckland,Supplies and Services,324117,Provisions,08-Nov-2017,000006685014461,TESCO STORES 6329,5411,Catering costs - provisions,72.06,0.00,72.06
Regeneration and Local Services,Direct Services,010367,C&G - South Grounds Maintenance,Supplies and Services,304403,Equipment and Materials,08-Nov-2017,000006685014475,MAXWELLS DIY,5231,Other consumables,44.42,7.40,37.02
Regeneration and Local Services,Culture & Sport,011060,Hardwick Park Catering,Supplies and Services,324117,Provisions,08-Nov-2017,000006685014481,JR HOLLAND FOODSERVICE,5422,Catering costs - provisions,87.72,0.00,87.72
Regeneration and Local Services,Culture & Sport,011060,Hardwick Park Catering,Supplies and Services,324117,Provisions,08-Nov-2017,000006685014485,JR HOLLAND FOODSERVICE,5422,Catering costs - provisions,31.18,0.00,31.18
Regeneration and Local Services,Culture & Sport,011060,Hardwick Park Catering,Supplies and Services,324117,Provisions,08-Nov-2017,000006685014489,JR HOLLAND FOODSERVICE,5422,Catering costs - provisions,3.52,0.00,3.52
Resources,Digital and Customer Services,065335,School Services - Implementations,Supplies and Services,304639,Equipment and Materials,08-Nov-2017,000006685014495,AMAZON SVCS EU-UK AMAZ,5942,Technicians-supplies,49.43,0.00,49.43
Regeneration and Local Services,Culture & Sport,054819,Gala Theatre - Theatre,Supplies and Services,312011,Newspapers Books and Periodicals,08-Nov-2017,000006685014497,Amazon UK Marketplace,5942,Books-school library,34.90,0.00,34.90
Regeneration and Local Services,Culture & Sport,054819,Gala Theatre - Theatre,Supplies and Services,312011,Newspapers Books and Periodicals,08-Nov-2017,000006685014501,AMAZON SVCS EU-UK AMAZ,5942,Books-school library,25.76,0.00,25.76
Regeneration and Local Services,Direct Services,021234,Catering - Locomotion,Supplies and Services,324117,Provisions,08-Nov-2017,000006685014521,JR HOLLAND FOODSERVICE,5422,Catering costs - provisions,25.36,0.00,25.36
Regeneration and Local Services,Direct Services,010525,Catering - Green Lane,Supplies and Services,324117,Provisions,08-Nov-2017,000006685014539,JR HOLLAND FOODSERVICE,5422,Catering costs - provisions,45.93,0.00,45.93
Resources,Corporate Finance,069800,Corporate Procurement,Employees,040149,Recruitment Instruction and Training,08-Nov-2017,000006685014547,WWW.CIPS.ORG,8699,Training-all costs,103.02,0.00,103.02
Children and Young Peoples Services,Head of Looked After Provision Permanence and Care Leavers,085352,Tow Law CU,Supplies and Services,324117,Provisions,08-Nov-2017,000006685014551,TESCO STORES 2371,5411,Catering costs - provisions,206.42,0.00,206.42
Regeneration and Local Services,Direct Services,020074,Bldg Serv - R&M Div 74 - Mechanical,Supplies and Services,372009,Subscriptions,08-Nov-2017,000006685014663,CAPITA GAS,8699,Subscriptions,30.00,5.00,25.00
Regeneration and Local Services,Direct Services,020061,Bldg Serv - R&M Div 61 - Building,Supplies and Services,304221,Equipment and Materials,08-Nov-2017,000006685014665,WWW.UPVCSPARES4REPAIRS,1799,Direct materials,64.27,10.71,53.56
Regeneration and Local Services,Culture & Sport,011191,Wellbeing4Life,Supplies and Services,328041,Clothing Uniforms and Laundry,08-Nov-2017,000006685014685,W BOYES & CO LTD NEWTO,5310,Clothing uniforms and laundry,11.45,0.00,11.45
Regeneration and Local Services,Culture & Sport,011191,Wellbeing4Life,Supplies and Services,328041,Clothing Uniforms and Laundry,08-Nov-2017,000006685014687,POUNDWORLD,5310,Clothing uniforms and laundry,9.05,0.00,9.05
Regeneration and Local Services,Culture & Sport,011191,Wellbeing4Life,Supplies and Services,304259,Equipment and Materials,08-Nov-2017,000006685014691,WILKO RETAIL LIMIT,5722,Equipment-purchase and rental,7.00,0.00,7.00
Regeneration and Local Services,Culture & Sport,011058,Wharton Park,Supplies and Services,332047,Printing Stationery and Gen Off Exps,08-Nov-2017,000006685014695,WWW.ANDERSONSWHOLE,5947,Stationery,28.99,4.83,24.16
Regeneration and Local Services,Culture & Sport,026591,Hardwick Park,Supplies and Services,312011,Newspapers Books and Periodicals,08-Nov-2017,000006685014697,AMAZON SVCS EU-UK AMAZ,5942,Books-school library,72.90,0.00,72.90
Regeneration and Local Services,Culture & Sport,011215,Museums Heritage & Collections,Supplies and Services,304252,Equipment and Materials,08-Nov-2017,000006685014733,WWW.WASHINGNET.CO.UK,7399,Equipment-repairsserviceinsurance,126.00,21.00,105.00
Regeneration and Local Services,Culture & Sport,011215,Museums Heritage & Collections,Supplies and Services,384999,Miscellaneous Expenses,08-Nov-2017,000006685014737,AMAZON SVCS EU-UK AMAZ,5942,Other expenses,2.25,0.00,2.25
Regeneration and Local Services,Culture & Sport,011215,Museums Heritage & Collections,Supplies and Services,384999,Miscellaneous Expenses,08-Nov-2017,000006685014741,AMAZON SVCS EU-UK AMAZ,5942,Other expenses,53.26,0.00,53.26
Regeneration and Local Services,Culture & Sport,054235,Bishop Auckland Town Hall Cafe,Supplies and Services,324117,Provisions,08-Nov-2017,000006685014821,JR HOLLAND FOODSERVICE,5422,Catering costs - provisions,53.32,0.00,53.32
Regeneration and Local Services,Direct Services,021324,Catering - Meadowfield,Supplies and Services,324117,Provisions,08-Nov-2017,000006685014831,JR HOLLAND FOODSERVICE,5422,Catering costs - provisions,31.37,0.00,31.37
Regeneration and Local Services,Direct Services,021324,Catering - Meadowfield,Supplies and Services,324117,Provisions,08-Nov-2017,000006685014835,JR HOLLAND FOODSERVICE,5422,Catering costs - provisions,13.89,0.00,13.89
Children and Young Peoples Services,Head of Early Help Assessment and Safeguarding,074000,TTF-Attachment and Results,Transfer Payments,525033,Other,08-Nov-2017,000006685014887,TESCO DIRECT,5999,Grants to individuals,-24.90,0.00,-24.90
Resources,Digital and Customer Services,069010,Administration,Transport,235057,Public Transport,08-Nov-2017,000006685014889,OYSTER RENEW WEB,4112,Staff travelling,50.00,0.00,50.00
Resources,Digital and Customer Services,069010,Administration,Transport,235057,Public Transport,08-Nov-2017,000006685014893,OYSTER RENEW WEB,4112,Staff travelling,50.00,0.00,50.00
Transformation and Partnerships,Comms & Information Management,060270,Communications and Marketing,Supplies and Services,304335,Equipment and Materials,08-Nov-2017,000006685014895,AMAZON EU AMAZON.CO.UK,5999,ICT supplies etc,59.96,9.99,49.97
Adult and Health Services,Head of Adults,055309,Peterlee Pathways,Supplies and Services,308011,Furniture,08-Nov-2017,000006685014913,POUNDSTRETCHER 396,5714,Furniture repair and replacement,2.99,0.00,2.99
Regeneration and Local Services,Culture & Sport,010605,Woodhouse Close Leisure Complex,Supplies and Services,324117,Provisions,08-Nov-2017,000006685014921,JR HOLLAND FOODSERVICE,5422,Catering costs - provisions,26.73,0.00,26.73
Regeneration and Local Services,Culture & Sport,011230,Operations Locality 2,Supplies and Services,312011,Newspapers Books and Periodicals,08-Nov-2017,000006685014939,CHARLES DICKENS (SPENN,5251,Books-school library,22.93,0.00,22.93
Children and Young Peoples Services,Head of Early Help Assessment and Safeguarding,085801,CDYOS - Support,Supplies and Services,312011,Newspapers Books and Periodicals,08-Nov-2017,000006685014947,AMAZON SVCS EU-UK AMAZ,5942,Books-school library,2.44,0.00,2.44
Children and Young Peoples Services,Head of Early Help Assessment and Safeguarding,088003,Peterlee 0 - 5,Supplies and Services,304259,Equipment and Materials,08-Nov-2017,000006685014951,SUNDERLAND CC,9399,Equipment-purchase and rental,10.00,0.00,10.00
Transformation and Partnerships,Comms & Information Management,060270,Communications and Marketing,Supplies and Services,304335,Equipment and Materials,08-Nov-2017,000006690262141,AMAZON EU AMAZON.CO.UK,5999,ICT supplies etc,41.97,7.00,34.97
Regeneration and Local Services,Culture & Sport,054812,Gala Theatre - Catering etc,Supplies and Services,324117,Provisions,08-Nov-2017,000006690262287,BATLEYS PERTH,5300,Catering costs - provisions,-85.08,0.00,-85.08
Regeneration and Local Services,Culture & Sport,054812,Gala Theatre - Catering etc,Supplies and Services,324117,Provisions,08-Nov-2017,000006690262291,BATLEYS PERTH,5300,Catering costs - provisions,-3.19,0.00,-3.19
Children and Young Peoples Services,Head of Education,071732,Dean Bank Childcare,Supplies and Services,312011,Newspapers Books and Periodicals,08-Nov-2017,000006690262369,AMAZON SVCS EU-UK AMAZ,5942,Books-school library,12.30,0.00,12.30
Children and Young Peoples Services,Head of Education,071732,Dean Bank Childcare,Supplies and Services,312011,Newspapers Books and Periodicals,08-Nov-2017,000006690262373,AMAZON SVCS EU-UK AMAZ,5942,Books-school library,13.62,0.00,13.62
Children and Young Peoples Services,Head of Education,071732,Dean Bank Childcare,Supplies and Services,304403,Equipment and Materials,08-Nov-2017,000006690262377,AMAZON EU AMAZON.CO.UK,5999,Other consumables,3.38,0.00,3.38
Regeneration and Local Services,Culture & Sport,011060,Hardwick Park Catering,Supplies and Services,324117,Provisions,08-Nov-2017,000006690262461,BATLEYS PERTH,5300,Catering costs - provisions,-28.80,0.00,-28.80
Regeneration and Local Services,Culture & Sport,011215,Museums Heritage & Collections,Supplies and Services,384999,Miscellaneous Expenses,08-Nov-2017,000006690262645,AMAZON SVCS EU-UK AMAZ,5942,Other expenses,16.03,0.00,16.03
Regeneration and Local Services,Direct Services,021324,Catering - Meadowfield,Supplies and Services,324117,Provisions,08-Nov-2017,000006690262709,BATLEYS PERTH,5300,Catering costs - provisions,-2.22,0.00,-2.22
Children and Young Peoples Services,Head of Looked After Provision Permanence and Care Leavers,085956,Lumley,Supplies and Services,304252,Equipment and Materials,09-Nov-2017,000006690262171,WWW.LAUNDRYSPARES.CO.U,7216,Equipment-repairsserviceinsurance,278.58,46.43,232.15
Children and Young Peoples Services,Head of Looked After Provision Permanence and Care Leavers,085957,Secure Management,Supplies and Services,304245,Equipment and Materials,09-Nov-2017,000006690262173,SCREWFIX DIRECT,5211,Materials,9.99,1.67,8.32
Children and Young Peoples Services,Head of Looked After Provision Permanence and Care Leavers,085342,9 Cedar Drive Aycliffe,Employees,040149,Recruitment Instruction and Training,09-Nov-2017,000006690262189,PARENTPAY E-COM R,8220,Training-all costs,30.00,0.00,30.00
Children and Young Peoples Services,Head of Looked After Provision Permanence and Care Leavers,085342,9 Cedar Drive Aycliffe,Supplies and Services,304259,Equipment and Materials,09-Nov-2017,000006690262193,WILKO RETAIL LIMIT,5722,Equipment-purchase and rental,24.00,4.00,20.00
Children and Young Peoples Services,Head of Early Help Assessment and Safeguarding,088037,One Point YEI,Supplies and Services,304403,Equipment and Materials,09-Nov-2017,000006690262229,WWW.DURHAM.GOV.UK,9399,Other consumables,12.00,0.00,12.00
Regeneration and Local Services,Direct Services,021242,Catering - County Hall,Supplies and Services,324117,Provisions,09-Nov-2017,000006690262237,JR HOLLAND FOODSERVICE,5422,Catering costs - provisions,69.82,0.00,69.82
Regeneration and Local Services,Direct Services,021242,Catering - County Hall,Supplies and Services,324117,Provisions,09-Nov-2017,000006690262243,JR HOLLAND FOODSERVICE,5422,Catering costs - provisions,37.07,0.00,37.07
Regeneration and Local Services,Direct Services,021242,Catering - County Hall,Supplies and Services,324117,Provisions,09-Nov-2017,000006690262247,JR HOLLAND FOODSERVICE,5422,Catering costs - provisions,13.20,0.00,13.20
Children and Young Peoples Services,Head of Early Help Assessment and Safeguarding,071492,One Point - Central,Supplies and Services,384999,Miscellaneous Expenses,09-Nov-2017,000006690262261,THORNTONS LTD,5441,Other expenses,42.00,0.00,42.00
Resources,Digital and Customer Services,065461,Business Support,Supplies and Services,372009,Subscriptions,09-Nov-2017,000006690262265,WEB NETWORKSOLUTIONS,5968,Subscriptions,110.01,0.00,110.01
Regeneration and Local Services,Direct Services,010367,C&G - South Grounds Maintenance,Supplies and Services,324117,Provisions,09-Nov-2017,000006690262271,J M RAINE,5399,Catering costs - provisions,99.00,16.50,82.50
Regeneration and Local Services,Culture & Sport,054812,Gala Theatre - Catering etc,Supplies and Services,324117,Provisions,09-Nov-2017,000006690262283,JR HOLLAND FOODSERVICE,5422,Catering costs - provisions,62.28,0.00,62.28
Children and Young Peoples Services,Head of Looked After Provision Permanence and Care Leavers,085362,LAC & Permanence Team 2,Supplies and Services,384871,Miscellaneous Expenses,09-Nov-2017,000006690262337,PAYPAL INFINITEAIR,5941,Training-other activities,15.90,0.00,15.90
Regeneration and Local Services,Direct Services,010900,Fleet - Meadowfield Fleet,Transport,215013,Running Costs of Vehicles,09-Nov-2017,000006690262347,DVLA VEHICLE TAX,9399,Vehicle Excise Duty (VED),167.50,0.00,167.50
Regeneration and Local Services,Direct Services,010900,Fleet - Meadowfield Fleet,Transport,215013,Running Costs of Vehicles,09-Nov-2017,000006690262351,DVLA VEHICLE TAX,9399,Vehicle Excise Duty (VED),242.50,0.00,242.50
Regeneration and Local Services,Direct Services,010551,Fleet - Chilton Fleet,Transport,215013,Running Costs of Vehicles,09-Nov-2017,000006690262353,DVLA VEHICLE TAX,9399,Vehicle Excise Duty (VED),242.50,0.00,242.50
Regeneration and Local Services,Direct Services,010900,Fleet - Meadowfield Fleet,Transport,215013,Running Costs of Vehicles,09-Nov-2017,000006690262355,DVLA VEHICLE TAX,9399,Vehicle Excise Duty (VED),167.50,0.00,167.50
Regeneration and Local Services,Direct Services,010900,Fleet - Meadowfield Fleet,Transport,215013,Running Costs of Vehicles,09-Nov-2017,000006690262359,DVLA VEHICLE TAX,9399,Vehicle Excise Duty (VED),32.50,0.00,32.50
Regeneration and Local Services,Direct Services,010900,Fleet - Meadowfield Fleet,Transport,215013,Running Costs of Vehicles,09-Nov-2017,000006690262361,DVLA VEHICLE TAX,9399,Vehicle Excise Duty (VED),167.50,0.00,167.50
Regeneration and Local Services,Direct Services,010864,Fleet - Hackworth Road Fleet,Transport,215013,Running Costs of Vehicles,09-Nov-2017,000006690262363,DVLA VEHICLE TAX,9399,Vehicle Excise Duty (VED),242.50,0.00,242.50
Children and Young Peoples Services,Head of Education,071732,Dean Bank Childcare,Supplies and Services,312011,Newspapers Books and Periodicals,09-Nov-2017,000006690262375,AMAZON SVCS EU-UK AMAZ,5942,Books-school library,5.99,0.00,5.99
Regeneration and Local Services,Culture & Sport,054813,Gala Theatre - Technical,Supplies and Services,328041,Clothing Uniforms and Laundry,09-Nov-2017,000006690262383,WWW.FLINTS.CO.UK,5691,Clothing uniforms and laundry,163.48,27.25,136.23
Regeneration and Local Services,Culture & Sport,010870,Chester-le-street Leisure Centre,Supplies and Services,304221,Equipment and Materials,09-Nov-2017,000006690262399,MMA MATS LIMITED,4816,Direct materials,420.84,70.14,350.70
Resources,Corporate Finance,069800,Corporate Procurement,Employees,040149,Recruitment Instruction and Training,09-Nov-2017,000006690262403,WWW.CIPS.ORG,8699,Training-all costs,126.48,0.00,126.48
Children and Young Peoples Services,Head of Education,071903,EYDCP-Sustainability EDS,Supplies and Services,312011,Newspapers Books and Periodicals,09-Nov-2017,000006690262413,Amazon UK Marketplace,5942,Books-school library,11.63,0.00,11.63
Children and Young Peoples Services,Head of Looked After Provision Permanence and Care Leavers,085965,Barnard,Supplies and Services,324117,Provisions,09-Nov-2017,000006690262435,TESCO STORES 6329,5411,Catering costs - provisions,107.93,0.00,107.93
Regeneration and Local Services,Direct Services,010367,C&G - South Grounds Maintenance,Supplies and Services,324117,Provisions,09-Nov-2017,000006690262439,J M RAINE,5399,Catering costs - provisions,152.29,25.38,126.91
Regeneration and Local Services,Direct Services,010301,C&G - North Grounds Maintenance,Supplies and Services,328041,Clothing Uniforms and Laundry,09-Nov-2017,000006690262449,THOMAS OWEN & SONS /N/,5611,Clothing uniforms and laundry,482.46,0.00,482.46
Regeneration and Local Services,Direct Services,010301,C&G - North Grounds Maintenance,Supplies and Services,328041,Clothing Uniforms and Laundry,09-Nov-2017,000006690262453,THOMAS OWEN & SONS /N/,5611,Clothing uniforms and laundry,449.28,0.00,449.28
Regeneration and Local Services,Culture & Sport,011060,Hardwick Park Catering,Supplies and Services,324117,Provisions,09-Nov-2017,000006690262457,JR HOLLAND FOODSERVICE,5422,Catering costs - provisions,16.15,0.00,16.15
Resources,Digital and Customer Services,065335,School Services - Implementations,Supplies and Services,304303,Equipment and Materials,09-Nov-2017,000006690262465,Amazon UK Marketplace,5942,Network for resale,11.14,0.00,11.14
Resources,Digital and Customer Services,065335,School Services - Implementations,Supplies and Services,304639,Equipment and Materials,09-Nov-2017,000006690262469,PROMETHEAN LTD,5722,Technicians-supplies,109.39,18.23,91.16
Regeneration and Local Services,Culture & Sport,054819,Gala Theatre - Theatre,Supplies and Services,328041,Clothing Uniforms and Laundry,09-Nov-2017,000006690262471,NEXT 0022 GATESHEAD ME,5651,Clothing uniforms and laundry,15.00,0.00,15.00
Regeneration and Local Services,Culture & Sport,054819,Gala Theatre - Theatre,Supplies and Services,308011,Furniture,09-Nov-2017,000006690262475,IKEA LIMITED,5712,Furniture repair and replacement,160.25,0.00,160.25
Regeneration and Local Services,Culture & Sport,054819,Gala Theatre - Theatre,Supplies and Services,328041,Clothing Uniforms and Laundry,09-Nov-2017,000006690262479,THE RANGE,5311,Clothing uniforms and laundry,74.08,0.00,74.08
Regeneration and Local Services,Culture & Sport,054819,Gala Theatre - Theatre,Supplies and Services,304403,Equipment and Materials,09-Nov-2017,000006690262481,WWW.LIGHTS4FUN.CO.,5999,Other consumables,81.94,0.00,81.94
Regeneration and Local Services,Direct Services,021234,Catering - Locomotion,Supplies and Services,324117,Provisions,09-Nov-2017,000006690262493,JR HOLLAND FOODSERVICE,5422,Catering costs - provisions,11.21,0.00,11.21
Regeneration and Local Services,Direct Services,010367,C&G - South Grounds Maintenance,Supplies and Services,304259,Equipment and Materials,09-Nov-2017,000006690262557,SCREWFIX,5211,Equipment-purchase and rental,49.98,0.00,49.98
Regeneration and Local Services,Direct Services,010367,C&G - South Grounds Maintenance,Supplies and Services,304259,Equipment and Materials,09-Nov-2017,000006690262575,RIGBY TAYLOR,5261,Equipment-purchase and rental,496.56,82.76,413.80
Regeneration and Local Services,Direct Services,020043,Bldg Serv - Compliance,Supplies and Services,384999,Miscellaneous Expenses,09-Nov-2017,000006690262589,WWW.THEIET.ORG,2741,Other expenses,130.00,21.67,108.33
Children and Young Peoples Services,Head of Looked After Provision Permanence and Care Leavers,085333,Coxhoe Satelite Home,Supplies and Services,324117,Provisions,09-Nov-2017,000006690262595,TESCO STORES 2371,5411,Catering costs - provisions,72.31,0.00,72.31
Children and Young Peoples Services,Head of Looked After Provision Permanence and Care Leavers,085333,Coxhoe Satelite Home,Supplies and Services,328041,Clothing Uniforms and Laundry,09-Nov-2017,000006690262597,B & M RETAIL,5310,Clothing uniforms and laundry,33.07,0.00,33.07
Children and Young Peoples Services,Head of Looked After Provision Permanence and Care Leavers,085333,Coxhoe Satelite Home,Supplies and Services,328041,Clothing Uniforms and Laundry,09-Nov-2017,000006690262601,B & M RETAIL,5310,Clothing uniforms and laundry,7.00,0.00,7.00
Regeneration and Local Services,Culture & Sport,011060,Hardwick Park Catering,Supplies and Services,304403,Equipment and Materials,09-Nov-2017,000006690262613,AMAZON SVCS EU-UK AMAZ,5942,Other consumables,47.19,0.00,47.19
Regeneration and Local Services,Culture & Sport,011214,Volunteer & Skills,Supplies and Services,324117,Provisions,09-Nov-2017,000006690262617,TESCO STORES 2371,5411,Catering costs - provisions,19.89,0.00,19.89
Regeneration and Local Services,Culture & Sport,011215,Museums Heritage & Collections,Supplies and Services,384999,Miscellaneous Expenses,09-Nov-2017,000006690262641,DISPLAYSENSE.CO.UK,5046,Other expenses,374.24,62.37,311.87
Dedicated Schools Grant,Dedicated Schools Grant,079040,SENSS-HQ,Supplies and Services,328041,Clothing Uniforms and Laundry,09-Nov-2017,000006690262683,ARGOS LTD,5310,Clothing uniforms and laundry,19.98,0.00,19.98
Children and Young Peoples Services,Head of Early Help Assessment and Safeguarding,088001,Peterlee Locality,Supplies and Services,304259,Equipment and Materials,09-Nov-2017,000006690262687,WWW.NORTHYORKS.GOV.UK,9399,Equipment-purchase and rental,10.00,0.00,10.00
Children and Young Peoples Services,Head of Early Help Assessment and Safeguarding,088001,Peterlee Locality,Supplies and Services,304259,Equipment and Materials,09-Nov-2017,000006690262691,AO RETAIL LIMITED,5722,Equipment-purchase and rental,199.00,0.00,199.00
Children and Young Peoples Services,Head of Early Help Assessment and Safeguarding,088001,Peterlee Locality,Supplies and Services,304259,Equipment and Materials,09-Nov-2017,000006690262695,WWW.DURHAM.GOV.UK,9399,Equipment-purchase and rental,12.00,0.00,12.00
Adult and Health Services,Head of Adults,055301,Stanley Pathways,Supplies and Services,324117,Provisions,09-Nov-2017,000006690262719,ASDA SUPERSTORE,5411,Catering costs - provisions,5.00,0.00,5.00
Regeneration and Local Services,Culture & Sport,011086,Positive Futures,Supplies and Services,324117,Provisions,09-Nov-2017,000006690262777,ASDA SUPERSTORE 4987,5411,Catering costs - provisions,15.69,0.00,15.69
Children and Young Peoples Services,Head of Early Help Assessment and Safeguarding,074000,TTF-Attachment and Results,Transfer Payments,525033,Other,09-Nov-2017,000006690262843,ASDA GEORGE COM LEEDS,5411,Grants to individuals,131.95,21.99,109.96
Children and Young Peoples Services,Head of Early Help Assessment and Safeguarding,074000,TTF-Attachment and Results,Transfer Payments,525033,Other,09-Nov-2017,000006690262845,ASDA GEORGE COM LEEDS,5411,Grants to individuals,39.00,6.50,32.50
Children and Young Peoples Services,Head of Early Help Assessment and Safeguarding,074000,TTF-Attachment and Results,Transfer Payments,525033,Other,09-Nov-2017,000006690262845 - 1,ASDA GEORGE COM LEEDS,5411,Grants to individuals,2.95,,2.95
Children and Young Peoples Services,Head of Early Help Assessment and Safeguarding,074000,TTF-Attachment and Results,Transfer Payments,525033,Other,09-Nov-2017,000006690262849,ASDA GEORGE COM LEEDS,5411,Grants to individuals,-131.95,0.00,-131.95
Adult and Health Services,Head of Adults,055306,Spennymoor Pathways,Supplies and Services,304999,Equipment and Materials,09-Nov-2017,000006690262857,A D P MILLER PHARMACY,5912,Misc equipment tools and materials,9.80,0.00,9.80
Regeneration and Local Services,Culture & Sport,011230,Operations Locality 2,Supplies and Services,312011,Newspapers Books and Periodicals,09-Nov-2017,000006690262903,CHARLES DICKENS (SPENN,5251,Books-school library,38.81,0.00,38.81
Children and Young Peoples Services,Head of Early Help Assessment and Safeguarding,085801,CDYOS - Support,Supplies and Services,384999,Miscellaneous Expenses,09-Nov-2017,000006690262919,HOBBYCRAFT (INTERNET),5970,Other expenses,40.00,0.00,40.00
Children and Young Peoples Services,Head of Early Help Assessment and Safeguarding,085801,CDYOS - Support,Supplies and Services,312011,Newspapers Books and Periodicals,09-Nov-2017,000006690262923,AMAZON SVCS EU-UK AMAZ,5942,Books-school library,14.98,0.00,14.98
Regeneration and Local Services,Direct Services,021242,Catering - County Hall,Supplies and Services,324117,Provisions,09-Nov-2017,000006696345617,BATLEYS PERTH,5300,Catering costs - provisions,472.56,78.76,393.80
Regeneration and Local Services,Direct Services,021242,Catering - County Hall,Supplies and Services,324117,Provisions,09-Nov-2017,000006696345617 - 1,BATLEYS PERTH,5300,Catering costs - provisions,294.64,,294.64
Regeneration and Local Services,Culture & Sport,054812,Gala Theatre - Catering etc,Supplies and Services,324117,Provisions,09-Nov-2017,000006696345641,BATLEYS PERTH,5300,Catering costs - provisions,11.40,1.90,9.50
Regeneration and Local Services,Culture & Sport,054812,Gala Theatre - Catering etc,Supplies and Services,324117,Provisions,09-Nov-2017,000006696345641 - 1,BATLEYS PERTH,5300,Catering costs - provisions,178.25,,178.25
Regeneration and Local Services,Culture & Sport,054812,Gala Theatre - Catering etc,Supplies and Services,324117,Provisions,09-Nov-2017,000006696345649,BATLEYS PERTH,5300,Catering costs - provisions,62.24,10.37,51.87
Regeneration and Local Services,Culture & Sport,011060,Hardwick Park Catering,Supplies and Services,324117,Provisions,09-Nov-2017,000006696345989,BATLEYS PERTH,5300,Catering costs - provisions,85.38,14.23,71.15
Regeneration and Local Services,Culture & Sport,011060,Hardwick Park Catering,Supplies and Services,324117,Provisions,09-Nov-2017,000006696345989 - 1,BATLEYS PERTH,5300,Catering costs - provisions,113.53,,113.53
Regeneration and Local Services,Culture & Sport,011060,Hardwick Park Catering,Supplies and Services,324117,Provisions,09-Nov-2017,000006696345999,BATLEYS PERTH,5300,Catering costs - provisions,19.83,0.00,19.83
Regeneration and Local Services,Direct Services,021234,Catering - Locomotion,Supplies and Services,324117,Provisions,09-Nov-2017,000006696346015,BATLEYS PERTH,5300,Catering costs - provisions,58.26,9.71,48.55
Regeneration and Local Services,Direct Services,021234,Catering - Locomotion,Supplies and Services,324117,Provisions,09-Nov-2017,000006696346015 - 1,BATLEYS PERTH,5300,Catering costs - provisions,63.79,,63.79
Resources,Digital and Customer Services,065461,Business Support,Supplies and Services,372009,Subscriptions,10-Nov-2017,000006690262267,WEB NETWORKSOLUTIONS,5968,Subscriptions,3.03,0.00,3.03
Resources,Digital and Customer Services,065212,Digital Durham,Supplies and Services,304335,Equipment and Materials,10-Nov-2017,000006696345413,AMAZON SVCS EU-UK AMAZ,5942,ICT supplies etc,14.69,0.00,14.69
Regeneration and Local Services,Direct Services,020098,Bldg Serv - R&M Div 98 - Pools Maintenance,Supplies and Services,344033,Telephones,10-Nov-2017,000006696345415,AMAZON SVCS EU-UK AMAZ,5942,Telephones general-all costs,19.58,3.26,16.32
Transformation and Partnerships,Comms & Information Management,060270,Communications and Marketing,Supplies and Services,304335,Equipment and Materials,10-Nov-2017,000006696345419,AMAZON SVCS EU-UK AMAZ,5942,ICT supplies etc,19.53,0.00,19.53
Transformation and Partnerships,Comms & Information Management,060270,Communications and Marketing,Supplies and Services,304335,Equipment and Materials,10-Nov-2017,000006696345421,AMAZON SVCS EU-UK AMAZ,5942,ICT supplies etc,13.99,0.00,13.99
Transformation and Partnerships,Comms & Information Management,060270,Communications and Marketing,Supplies and Services,304335,Equipment and Materials,10-Nov-2017,000006696345425,AMAZON SVCS EU-UK AMAZ,5942,ICT supplies etc,29.99,0.00,29.99
Regeneration and Local Services,Direct Services,010383,C&G - South Street Cleansing,Third Party Payments,430100,Rendered by Private Contractors,10-Nov-2017,000006696345485,HARRISON & SON LTD,7399,Payments to sub-contractors,131.64,0.00,131.64
Regeneration and Local Services,Direct Services,010383,C&G - South Street Cleansing,Supplies and Services,304259,Equipment and Materials,10-Nov-2017,000006696345491,TUDOR ENVIRONMENTAL,5261,Equipment-purchase and rental,114.01,19.00,95.01
Children and Young Peoples Services,Head of Looked After Provision Permanence and Care Leavers,085962,Durham,Supplies and Services,304649,Equipment and Materials,10-Nov-2017,000006696345509,TESCO - Seller_IST_1_2,5999,Toys,19.99,0.00,19.99
Children and Young Peoples Services,Head of Looked After Provision Permanence and Care Leavers,085962,Durham,Supplies and Services,304649,Equipment and Materials,10-Nov-2017,000006696345515,TESCO - UKSW,5999,Toys,11.89,0.00,11.89
Children and Young Peoples Services,Head of Looked After Provision Permanence and Care Leavers,085962,Durham,Supplies and Services,304649,Equipment and Materials,10-Nov-2017,000006696345521,TESCO DIRECT,5999,Toys,102.00,0.00,102.00
Children and Young Peoples Services,Head of Looked After Provision Permanence and Care Leavers,085962,Durham,Supplies and Services,304649,Equipment and Materials,10-Nov-2017,000006696345525,WWW.ARGOS.CO.UK,5310,Toys,79.41,0.00,79.41
Resources,Financial Services,065180,Collections,Supplies and Services,338048,Services,10-Nov-2017,000006696345547,HMCOURT-SERVICES.G,9222,Court Costs,110.00,0.00,110.00
Adult and Health Services,Head of Adults,052760,OP Management,Income,720130,Fees and Charges,10-Nov-2017,000006696345549,WWW.MONEYCLAIM.GOV,9399,Fees-legal,70.00,0.00,70.00
Children and Young Peoples Services,Head of Looked After Provision Permanence and Care Leavers,085342,9 Cedar Drive Aycliffe,Supplies and Services,304403,Equipment and Materials,10-Nov-2017,000006696345553,UPEX ELECTRICAL DISTRI,5065,Other consumables,31.20,5.20,26.00
Children and Young Peoples Services,Head of Looked After Provision Permanence and Care Leavers,085342,9 Cedar Drive Aycliffe,Transport,215995,Running Costs of Vehicles,10-Nov-2017,000006696345555,TESCO PFS 4088,5541,Vehicle running expenses,55.00,9.17,45.83
Regeneration and Local Services,Direct Services,021242,Catering - County Hall,Supplies and Services,324117,Provisions,10-Nov-2017,000006696345601,HOPWELLS LTD,5811,Catering costs - provisions,315.13,0.00,315.13
Regeneration and Local Services,Direct Services,021242,Catering - County Hall,Supplies and Services,324117,Provisions,10-Nov-2017,000006696345607,HOPWELLS LTD,5811,Catering costs - provisions,246.42,0.00,246.42
Regeneration and Local Services,Direct Services,021242,Catering - County Hall,Supplies and Services,324117,Provisions,10-Nov-2017,000006696345611,JR HOLLAND FOODSERVICE,5422,Catering costs - provisions,102.03,0.00,102.03
Regeneration and Local Services,Direct Services,021242,Catering - County Hall,Supplies and Services,324117,Provisions,10-Nov-2017,000006696345615,JR HOLLAND FOODSERVICE,5422,Catering costs - provisions,13.20,0.00,13.20
Regeneration and Local Services,Culture & Sport,054812,Gala Theatre - Catering etc,Supplies and Services,324117,Provisions,10-Nov-2017,000006696345639,HOPWELLS LTD,5811,Catering costs - provisions,41.85,0.00,41.85
Regeneration and Local Services,Direct Services,010900,Fleet - Meadowfield Fleet,Transport,215013,Running Costs of Vehicles,10-Nov-2017,000006696345731,DVLA VEHICLE TAX,9399,Vehicle Excise Duty (VED),242.50,0.00,242.50
Regeneration and Local Services,Direct Services,010551,Fleet - Chilton Fleet,Transport,215013,Running Costs of Vehicles,10-Nov-2017,000006696345733,DVLA VEHICLE TAX,9399,Vehicle Excise Duty (VED),242.50,0.00,242.50
Regeneration and Local Services,Direct Services,010864,Fleet - Hackworth Road Fleet,Transport,215013,Running Costs of Vehicles,10-Nov-2017,000006696345737,DVLA VEHICLE TAX,9399,Vehicle Excise Duty (VED),242.50,0.00,242.50
Regeneration and Local Services,Direct Services,010551,Fleet - Chilton Fleet,Transport,215013,Running Costs of Vehicles,10-Nov-2017,000006696345739,DVLA VEHICLE TAX,9399,Vehicle Excise Duty (VED),242.50,0.00,242.50
Regeneration and Local Services,Direct Services,010864,Fleet - Hackworth Road Fleet,Transport,215013,Running Costs of Vehicles,10-Nov-2017,000006696345741,DVLA VEHICLE TAX,9399,Vehicle Excise Duty (VED),242.50,0.00,242.50
Regeneration and Local Services,Direct Services,010900,Fleet - Meadowfield Fleet,Transport,215013,Running Costs of Vehicles,10-Nov-2017,000006696345743,DVLA VEHICLE TAX,9399,Vehicle Excise Duty (VED),242.50,0.00,242.50
Regeneration and Local Services,Direct Services,010864,Fleet - Hackworth Road Fleet,Transport,215013,Running Costs of Vehicles,10-Nov-2017,000006696345747,DVLA VEHICLE TAX,9399,Vehicle Excise Duty (VED),242.50,0.00,242.50
Regeneration and Local Services,Direct Services,010551,Fleet - Chilton Fleet,Transport,215013,Running Costs of Vehicles,10-Nov-2017,000006696345751,DVLA VEHICLE TAX,9399,Vehicle Excise Duty (VED),242.50,0.00,242.50
Regeneration and Local Services,Direct Services,010900,Fleet - Meadowfield Fleet,Transport,215013,Running Costs of Vehicles,10-Nov-2017,000006696345755,DVLA VEHICLE TAX,9399,Vehicle Excise Duty (VED),652.50,0.00,652.50
Regeneration and Local Services,Direct Services,010900,Fleet - Meadowfield Fleet,Transport,215013,Running Costs of Vehicles,10-Nov-2017,000006696345759,DVLA VEHICLE TAX,9399,Vehicle Excise Duty (VED),652.50,0.00,652.50
Regeneration and Local Services,Direct Services,010900,Fleet - Meadowfield Fleet,Transport,215013,Running Costs of Vehicles,10-Nov-2017,000006696345761,DVLA VEHICLE TAX,9399,Vehicle Excise Duty (VED),242.50,0.00,242.50
Regeneration and Local Services,Direct Services,010864,Fleet - Hackworth Road Fleet,Transport,215013,Running Costs of Vehicles,10-Nov-2017,000006696345763,DVLA VEHICLE TAX,9399,Vehicle Excise Duty (VED),652.50,0.00,652.50
Regeneration and Local Services,Direct Services,010900,Fleet - Meadowfield Fleet,Transport,215013,Running Costs of Vehicles,10-Nov-2017,000006696345765,DVLA VEHICLE TAX,9399,Vehicle Excise Duty (VED),242.50,0.00,242.50
Regeneration and Local Services,Direct Services,010900,Fleet - Meadowfield Fleet,Transport,215013,Running Costs of Vehicles,10-Nov-2017,000006696345769,DVLA VEHICLE TAX,9399,Vehicle Excise Duty (VED),242.50,0.00,242.50
Regeneration and Local Services,Direct Services,010900,Fleet - Meadowfield Fleet,Transport,215013,Running Costs of Vehicles,10-Nov-2017,000006696345771,DVLA VEHICLE TAX,9399,Vehicle Excise Duty (VED),242.50,0.00,242.50
Regeneration and Local Services,Direct Services,010900,Fleet - Meadowfield Fleet,Transport,215013,Running Costs of Vehicles,10-Nov-2017,000006696345775,DVLA VEHICLE TAX,9399,Vehicle Excise Duty (VED),242.50,0.00,242.50
Regeneration and Local Services,Direct Services,010900,Fleet - Meadowfield Fleet,Transport,215013,Running Costs of Vehicles,10-Nov-2017,000006696345777,DVLA VEHICLE TAX,9399,Vehicle Excise Duty (VED),242.50,0.00,242.50
Regeneration and Local Services,Direct Services,010900,Fleet - Meadowfield Fleet,Transport,215013,Running Costs of Vehicles,10-Nov-2017,000006696345781,DVLA VEHICLE TAX,9399,Vehicle Excise Duty (VED),242.50,0.00,242.50
Regeneration and Local Services,Direct Services,010900,Fleet - Meadowfield Fleet,Transport,215013,Running Costs of Vehicles,10-Nov-2017,000006696345783,DVLA VEHICLE TAX,9399,Vehicle Excise Duty (VED),242.50,0.00,242.50
Regeneration and Local Services,Direct Services,010864,Fleet - Hackworth Road Fleet,Transport,215013,Running Costs of Vehicles,10-Nov-2017,000006696345785,DVLA VEHICLE TAX,9399,Vehicle Excise Duty (VED),652.50,0.00,652.50
Children and Young Peoples Services,Head of Education,071732,Dean Bank Childcare,Supplies and Services,312011,Newspapers Books and Periodicals,10-Nov-2017,000006696345819,Amazon UK Marketplace,5942,Books-school library,10.56,0.00,10.56
Children and Young Peoples Services,Head of Education,071732,Dean Bank Childcare,Supplies and Services,312011,Newspapers Books and Periodicals,10-Nov-2017,000006696345823,Amazon UK Marketplace,5942,Books-school library,10.98,0.00,10.98
Children and Young Peoples Services,Head of Education,071732,Dean Bank Childcare,Supplies and Services,312011,Newspapers Books and Periodicals,10-Nov-2017,000006696345827,Amazon UK Marketplace,5942,Books-school library,19.90,0.00,19.90
Children and Young Peoples Services,Head of Early Help Assessment and Safeguarding,088037,One Point YEI,Supplies and Services,304403,Equipment and Materials,10-Nov-2017,000006696345905,GRO HM PASSPORT OFFICE,9399,Other consumables,9.25,0.00,9.25
Children and Young Peoples Services,Head of Early Help Assessment and Safeguarding,071445,Chester le Street One Point Hub,Supplies and Services,312011,Newspapers Books and Periodicals,10-Nov-2017,000006696345931,AMAZON SVCS EU-UK AMAZ,5942,Books-school library,29.49,0.00,29.49
Children and Young Peoples Services,Head of Looked After Provision Permanence and Care Leavers,085956,Lumley,Supplies and Services,324117,Provisions,10-Nov-2017,000006696345939,TESCO STORES 6329,5411,Catering costs - provisions,42.39,0.00,42.39
Regeneration and Local Services,Culture & Sport,011060,Hardwick Park Catering,Supplies and Services,324117,Provisions,10-Nov-2017,000006696345973,HOPWELLS LTD,5811,Catering costs - provisions,77.28,12.88,64.40
Regeneration and Local Services,Culture & Sport,011060,Hardwick Park Catering,Supplies and Services,324117,Provisions,10-Nov-2017,000006696345973 - 1,HOPWELLS LTD,5811,Catering costs - provisions,120.67,,120.67
Regeneration and Local Services,Culture & Sport,011060,Hardwick Park Catering,Supplies and Services,324117,Provisions,10-Nov-2017,000006696345979,HOPWELLS LTD,5811,Catering costs - provisions,14.52,2.42,12.10
Regeneration and Local Services,Culture & Sport,011060,Hardwick Park Catering,Supplies and Services,324117,Provisions,10-Nov-2017,000006696345979 - 1,HOPWELLS LTD,5811,Catering costs - provisions,71.92,,71.92
Regeneration and Local Services,Culture & Sport,011060,Hardwick Park Catering,Supplies and Services,324117,Provisions,10-Nov-2017,000006696345981,HOPWELLS LTD,5811,Catering costs - provisions,44.28,7.38,36.90
Regeneration and Local Services,Culture & Sport,011060,Hardwick Park Catering,Supplies and Services,324117,Provisions,10-Nov-2017,000006696345981 - 1,HOPWELLS LTD,5811,Catering costs - provisions,26.60,,26.60
Regeneration and Local Services,Culture & Sport,011060,Hardwick Park Catering,Supplies and Services,324117,Provisions,10-Nov-2017,000006696345985,JR HOLLAND FOODSERVICE,5422,Catering costs - provisions,18.36,0.00,18.36
Regeneration and Local Services,Direct Services,021234,Catering - Locomotion,Supplies and Services,324117,Provisions,10-Nov-2017,000006696346009,HOPWELLS LTD,5811,Catering costs - provisions,59.16,9.86,49.30
Regeneration and Local Services,Direct Services,021234,Catering - Locomotion,Supplies and Services,324117,Provisions,10-Nov-2017,000006696346009 - 1,HOPWELLS LTD,5811,Catering costs - provisions,96.70,,96.70
Regeneration and Local Services,Direct Services,021234,Catering - Locomotion,Supplies and Services,324117,Provisions,10-Nov-2017,000006696346011,HOPWELLS LTD,5811,Catering costs - provisions,59.05,0.00,59.05
Regeneration and Local Services,Direct Services,021234,Catering - Locomotion,Supplies and Services,324117,Provisions,10-Nov-2017,000006696346013,JR HOLLAND FOODSERVICE,5422,Catering costs - provisions,24.42,0.00,24.42
Regeneration and Local Services,Direct Services,021234,Catering - Locomotion,Supplies and Services,324117,Provisions,10-Nov-2017,000006696346019,HOPWELLS LTD,5811,Catering costs - provisions,-42.99,0.00,-42.99
Regeneration and Local Services,Direct Services,010525,Catering - Green Lane,Supplies and Services,324117,Provisions,10-Nov-2017,000006696346047,HOPWELLS LTD,5811,Catering costs - provisions,122.88,0.00,122.88
Regeneration and Local Services,Direct Services,010525,Catering - Green Lane,Supplies and Services,324117,Provisions,10-Nov-2017,000006696346051,JR HOLLAND FOODSERVICE,5422,Catering costs - provisions,49.01,0.00,49.01
Regeneration and Local Services,Direct Services,010525,Catering - Green Lane,Supplies and Services,324117,Provisions,10-Nov-2017,000006696346057,JR HOLLAND FOODSERVICE,5422,Catering costs - provisions,3.30,0.00,3.30
Regeneration and Local Services,Direct Services,022921,WRAP Project,Supplies and Services,384999,Miscellaneous Expenses,10-Nov-2017,000006696346067,CRE8IVE GRAPHICS LTD,5111,Other expenses,795.30,132.55,662.75
Adult and Health Services,Commissioning inc Supporting People,052953,Training - Social Work,Supplies and Services,342033,Computers and Communications,10-Nov-2017,000006696346071,WWW.ANNARBOR.CO.UK,5964,Computer hardware,220.00,0.00,220.00
Children and Young Peoples Services,Head of Looked After Provision Permanence and Care Leavers,085333,Coxhoe Satelite Home,Supplies and Services,324117,Provisions,10-Nov-2017,000006696346185,TESCO STORES 2371,5411,Catering costs - provisions,151.79,0.00,151.79
Regeneration and Local Services,Culture & Sport,011191,Wellbeing4Life,Supplies and Services,304259,Equipment and Materials,10-Nov-2017,000006696346199,WILKO RETAIL LIMIT,5722,Equipment-purchase and rental,9.80,0.00,9.80
Regeneration and Local Services,Culture & Sport,011060,Hardwick Park Catering,Supplies and Services,304083,Equipment and Materials,10-Nov-2017,000006696346219,WWW.GORDONSMITHMALVERN,5714,Catering equipment,62.19,0.00,62.19
Regeneration and Local Services,Culture & Sport,011215,Museums Heritage & Collections,Supplies and Services,384999,Miscellaneous Expenses,10-Nov-2017,000006696346303,AMAZON SVCS EU-UK AMAZ,5942,Other expenses,40.55,0.00,40.55
Regeneration and Local Services,Culture & Sport,011215,Museums Heritage & Collections,Supplies and Services,384999,Miscellaneous Expenses,10-Nov-2017,000006696346307,AMAZON SVCS EU-UK AMAZ,5942,Other expenses,14.97,0.00,14.97
Regeneration and Local Services,Direct Services,010301,C&G - North Grounds Maintenance,Supplies and Services,384999,Miscellaneous Expenses,10-Nov-2017,000006696346331,FLEET (LINE MARKERS) L,5046,Other expenses,100.78,16.80,83.98
Children and Young Peoples Services,Head of Early Help Assessment and Safeguarding,088001,Peterlee Locality,Supplies and Services,328041,Clothing Uniforms and Laundry,10-Nov-2017,000006696346373,ARGOS RETAIL GROUP,5310,Clothing uniforms and laundry,13.48,0.00,13.48
Children and Young Peoples Services,Head of Early Help Assessment and Safeguarding,088001,Peterlee Locality,Supplies and Services,328041,Clothing Uniforms and Laundry,10-Nov-2017,000006696346377,WWW.ARGOS.CO.UK,5310,Clothing uniforms and laundry,51.19,0.00,51.19
Children and Young Peoples Services,Head of Early Help Assessment and Safeguarding,088001,Peterlee Locality,Supplies and Services,328041,Clothing Uniforms and Laundry,10-Nov-2017,000006696346381,WWW.ARGOS.CO.UK,5310,Clothing uniforms and laundry,63.99,0.00,63.99
Children and Young Peoples Services,Head of Early Help Assessment and Safeguarding,088001,Peterlee Locality,Supplies and Services,328041,Clothing Uniforms and Laundry,10-Nov-2017,000006696346383,WWW.ARGOS.CO.UK,5310,Clothing uniforms and laundry,117.74,0.00,117.74
Regeneration and Local Services,Direct Services,021324,Catering - Meadowfield,Supplies and Services,324117,Provisions,10-Nov-2017,000006696346435,HOPWELLS LTD,5811,Catering costs - provisions,65.28,0.00,65.28
Regeneration and Local Services,Direct Services,021324,Catering - Meadowfield,Supplies and Services,324117,Provisions,10-Nov-2017,000006696346437,JR HOLLAND FOODSERVICE,5422,Catering costs - provisions,32.25,0.00,32.25
Regeneration and Local Services,Direct Services,021324,Catering - Meadowfield,Supplies and Services,324117,Provisions,10-Nov-2017,000006696346439,JR HOLLAND FOODSERVICE,5422,Catering costs - provisions,9.90,0.00,9.90
Regeneration and Local Services,Direct Services,022902,Waste Strategy,Supplies and Services,372009,Subscriptions,10-Nov-2017,000006696346563,AUDIO NETWORK,5733,Subscriptions,82.80,13.80,69.00
Regeneration and Local Services,Direct Services,021235,Catering - Wharton Park,Supplies and Services,324117,Provisions,10-Nov-2017,000006696346607,HOPWELLS LTD,5811,Catering costs - provisions,52.62,8.77,43.85
Regeneration and Local Services,Direct Services,021235,Catering - Wharton Park,Supplies and Services,324117,Provisions,10-Nov-2017,000006696346607 - 1,HOPWELLS LTD,5811,Catering costs - provisions,36.03,,36.03
Regeneration and Local Services,Direct Services,021235,Catering - Wharton Park,Supplies and Services,324117,Provisions,10-Nov-2017,000006696346611,HOPWELLS LTD,5811,Catering costs - provisions,-8.38,-1.40,-6.98
Regeneration and Local Services,Culture & Sport,010605,Woodhouse Close Leisure Complex,Supplies and Services,324117,Provisions,10-Nov-2017,000006696346625,HOPWELLS LTD,5811,Catering costs - provisions,88.36,0.00,88.36
Children and Young Peoples Services,Head of Early Help Assessment and Safeguarding,085801,CDYOS - Support,Supplies and Services,324117,Provisions,10-Nov-2017,000006696346671,ASDA HOME SHOPPING,5411,Catering costs - provisions,35.00,0.00,35.00
Regeneration and Local Services,Culture & Sport,011060,Hardwick Park Catering,Supplies and Services,324117,Provisions,10-Nov-2017,000006704182505,BATLEYS PERTH,5300,Catering costs - provisions,144.18,24.03,120.15
Regeneration and Local Services,Culture & Sport,011060,Hardwick Park Catering,Supplies and Services,324117,Provisions,10-Nov-2017,000006704182505 - 1,BATLEYS PERTH,5300,Catering costs - provisions,178.33,,178.33
Regeneration and Local Services,Direct Services,010525,Catering - Green Lane,Supplies and Services,324117,Provisions,10-Nov-2017,000006704182609,BATLEYS PERTH,5300,Catering costs - provisions,125.94,20.99,104.95
Regeneration and Local Services,Direct Services,010525,Catering - Green Lane,Supplies and Services,324117,Provisions,10-Nov-2017,000006704182609 - 1,BATLEYS PERTH,5300,Catering costs - provisions,123.45,,123.45
Regeneration and Local Services,Culture & Sport,010605,Woodhouse Close Leisure Complex,Supplies and Services,324117,Provisions,10-Nov-2017,000006704182969,BATLEYS PERTH,5300,Catering costs - provisions,59.10,9.85,49.25
Regeneration and Local Services,Culture & Sport,010605,Woodhouse Close Leisure Complex,Supplies and Services,324117,Provisions,10-Nov-2017,000006704182969 - 1,BATLEYS PERTH,5300,Catering costs - provisions,92.53,,92.53
Children and Young Peoples Services,Head of Looked After Provision Permanence and Care Leavers,085341,High Etherley Satelite Home,Employees,040149,Recruitment Instruction and Training,11-Nov-2017,000006696345315,TUTOR2U LIMITED,8299,Training-all costs,12.00,0.00,12.00
Children and Young Peoples Services,Head of Looked After Provision Permanence and Care Leavers,085341,High Etherley Satelite Home,Supplies and Services,324117,Provisions,11-Nov-2017,000006696345321,TESCO STORES 6329,5411,Catering costs - provisions,14.79,0.00,14.79
Children and Young Peoples Services,Head of Looked After Provision Permanence and Care Leavers,085341,High Etherley Satelite Home,Transport,215995,Running Costs of Vehicles,11-Nov-2017,000006696345327,TESCO PFS 4214,5541,Vehicle running expenses,45.06,0.00,45.06
Children and Young Peoples Services,Head of Education,071732,Dean Bank Childcare,Supplies and Services,312011,Newspapers Books and Periodicals,11-Nov-2017,000006696345831,Amazon UK Marketplace,5942,Books-school library,37.56,0.00,37.56
Children and Young Peoples Services,Head of Education,071903,EYDCP-Sustainability EDS,Supplies and Services,312011,Newspapers Books and Periodicals,11-Nov-2017,000006696345883,Amazon UK Marketplace,5942,Books-school library,48.62,0.00,48.62
Children and Young Peoples Services,Head of Looked After Provision Permanence and Care Leavers,085954,Walworth,Supplies and Services,324117,Provisions,11-Nov-2017,000006696345943,TESCO STORES 6329,5411,Catering costs - provisions,85.72,0.00,85.72
Children and Young Peoples Services,Head of Looked After Provision Permanence and Care Leavers,085551,Short Break Services-Park Hse Sher,Supplies and Services,324117,Provisions,11-Nov-2017,000006696346003,ALDI 12 774 S,5411,Catering costs - provisions,48.43,0.00,48.43
Children and Young Peoples Services,Head of Looked After Provision Permanence and Care Leavers,085333,Coxhoe Satelite Home,Supplies and Services,324117,Provisions,11-Nov-2017,000006696346447,SAINSBURYS 2082,5411,Catering costs - provisions,8.33,0.00,8.33
Children and Young Peoples Services,Head of Education,071801,Selby Cottage Childcare Centre,Supplies and Services,312011,Newspapers Books and Periodicals,12-Nov-2017,000006696345387,AMAZON SVCS EU-UK AMAZ,5942,Books-school library,49.99,0.00,49.99
Children and Young Peoples Services,Head of Looked After Provision Permanence and Care Leavers,085957,Secure Management,Supplies and Services,384999,Miscellaneous Expenses,12-Nov-2017,000006696345947,Amazon UK Marketplace,5942,Other expenses,12.99,0.00,12.99
Resources,Resources Management,069000,Resources Management,Supplies and Services,324117,Provisions,12-Nov-2017,000006696346193,CO-OP GROUP 010830,5411,Catering costs - provisions,5.54,0.00,5.54
Regeneration and Local Services,Culture & Sport,011060,Hardwick Park Catering,Supplies and Services,304083,Equipment and Materials,12-Nov-2017,000006696346223,AMAZON EU AMAZON.CO.UK,5999,Catering equipment,54.51,0.00,54.51
Regeneration and Local Services,Culture & Sport,011215,Museums Heritage & Collections,Supplies and Services,384999,Miscellaneous Expenses,12-Nov-2017,000006696346311,Amazon UK Marketplace,5942,Other expenses,62.32,0.00,62.32
Regeneration and Local Services,Culture & Sport,011215,Museums Heritage & Collections,Supplies and Services,384999,Miscellaneous Expenses,12-Nov-2017,000006696346315,Amazon UK Marketplace,5942,Other expenses,62.33,0.00,62.33
Children and Young Peoples Services,Head of Early Help Assessment and Safeguarding,088083,Ferryhill 0 - 5,Supplies and Services,324117,Provisions,12-Nov-2017,000006696346477,SAINSBURYS 0776,5411,Catering costs - provisions,5.00,0.00,5.00
Children and Young Peoples Services,Head of Looked After Provision Permanence and Care Leavers,085341,High Etherley Satelite Home,Supplies and Services,312011,Newspapers Books and Periodicals,12-Nov-2017,000006704182117,AMAZON SVCS EU-UK AMAZ,5942,Books-school library,7.71,0.00,7.71
Children and Young Peoples Services,Head of Looked After Provision Permanence and Care Leavers,085952,Secure Education,Supplies and Services,312011,Newspapers Books and Periodicals,12-Nov-2017,000006704182457,AMAZON SVCS EU-UK AMAZ,5942,Books-school library,251.70,0.00,251.70
Children and Young Peoples Services,Head of Education,071801,Selby Cottage Childcare Centre,Supplies and Services,324117,Provisions,13-Nov-2017,000006704182133,ASDA STORES 4333,5411,Catering costs - provisions,20.00,0.00,20.00
Children and Young Peoples Services,Head of Education,071801,Selby Cottage Childcare Centre,Supplies and Services,328041,Clothing Uniforms and Laundry,13-Nov-2017,000006704182135,B&M RETAIL,5310,Clothing uniforms and laundry,9.97,0.00,9.97
Children and Young Peoples Services,Head of Education,071801,Selby Cottage Childcare Centre,Supplies and Services,324117,Provisions,13-Nov-2017,000006704182139,ALDI 32 774 S,5411,Catering costs - provisions,14.97,0.00,14.97
Children and Young Peoples Services,Head of Education,071801,Selby Cottage Childcare Centre,Supplies and Services,324117,Provisions,13-Nov-2017,000006704182143,ASDA HOME SHOPPING,5411,Catering costs - provisions,93.08,0.00,93.08
Children and Young Peoples Services,Head of Education,071801,Selby Cottage Childcare Centre,Supplies and Services,312011,Newspapers Books and Periodicals,13-Nov-2017,000006704182147,AMAZON SVCS EU-UK AMAZ,5942,Books-school library,12.99,0.00,12.99
Resources,Digital and Customer Services,065303,Design & Print - Design,Supplies and Services,304335,Equipment and Materials,13-Nov-2017,000006704182149,ALAMY.COM LIMITED,5971,ICT supplies etc,179.99,30.00,149.99
Children and Young Peoples Services,Head of Looked After Provision Permanence and Care Leavers,085962,Durham,Supplies and Services,384999,Miscellaneous Expenses,13-Nov-2017,000006704182171,WWW.ARGOS.CO.UK,5310,Other expenses,70.92,0.00,70.92
Children and Young Peoples Services,Head of Looked After Provision Permanence and Care Leavers,085342,9 Cedar Drive Aycliffe,Supplies and Services,308011,Furniture,13-Nov-2017,000006704182177,IKEA LIMITED,5712,Furniture repair and replacement,6.00,0.00,6.00
Children and Young Peoples Services,Head of Looked After Provision Permanence and Care Leavers,085342,9 Cedar Drive Aycliffe,Supplies and Services,308011,Furniture,13-Nov-2017,000006704182181,IKEA LIMITED,5712,Furniture repair and replacement,84.00,0.00,84.00
Regeneration and Local Services,Direct Services,021242,Catering - County Hall,Supplies and Services,324117,Provisions,13-Nov-2017,000006704182235,WWW.ADELIEFOODS.CO.UK,5499,Catering costs - provisions,184.92,0.00,184.92
Regeneration and Local Services,Direct Services,021242,Catering - County Hall,Supplies and Services,324117,Provisions,13-Nov-2017,000006704182239,WWW.ADELIEFOODS.CO.UK,5499,Catering costs - provisions,181.40,0.00,181.40
Regeneration and Local Services,Direct Services,021242,Catering - County Hall,Supplies and Services,324117,Provisions,13-Nov-2017,000006704182251,WWW.ADELIEFOODS.CO.UK,5499,Catering costs - provisions,103.68,0.00,103.68
Regeneration and Local Services,Direct Services,021242,Catering - County Hall,Supplies and Services,324117,Provisions,13-Nov-2017,000006704182259,WWW.ADELIEFOODS.CO.UK,5499,Catering costs - provisions,94.06,0.00,94.06
Regeneration and Local Services,Direct Services,021242,Catering - County Hall,Supplies and Services,324117,Provisions,13-Nov-2017,000006704182263,WWW.ADELIEFOODS.CO.UK,5499,Catering costs - provisions,35.46,0.00,35.46
Regeneration and Local Services,Direct Services,021242,Catering - County Hall,Supplies and Services,324117,Provisions,13-Nov-2017,000006704182267,FREEMAN CATERING BUTCH,5422,Catering costs - provisions,223.99,0.00,223.99
Regeneration and Local Services,Direct Services,021242,Catering - County Hall,Supplies and Services,324117,Provisions,13-Nov-2017,000006704182273,FREEMAN CATERING BUTCH,5422,Catering costs - provisions,185.33,0.00,185.33
Regeneration and Local Services,Direct Services,021242,Catering - County Hall,Supplies and Services,324117,Provisions,13-Nov-2017,000006704182275,FREEMAN CATERING BUTCH,5422,Catering costs - provisions,55.76,0.00,55.76
Regeneration and Local Services,Direct Services,021242,Catering - County Hall,Supplies and Services,324117,Provisions,13-Nov-2017,000006704182277,JR HOLLAND FOODSERVICE,5422,Catering costs - provisions,135.02,0.00,135.02
Regeneration and Local Services,Direct Services,021242,Catering - County Hall,Supplies and Services,324117,Provisions,13-Nov-2017,000006704182281,JR HOLLAND FOODSERVICE,5422,Catering costs - provisions,13.54,0.00,13.54
Children and Young Peoples Services,Head of Education,070169,Durham SSP,Transport,235057,Public Transport,13-Nov-2017,000006704182285,PARK INN TELFORD,7011,Staff travelling,47.60,7.93,39.67
Children and Young Peoples Services,Head of Early Help Assessment and Safeguarding,085622,Families First Ferryhill,Supplies and Services,308011,Furniture,13-Nov-2017,000006704182289,WWW.ARGOS.CO.UK,5310,Furniture repair and replacement,58.94,0.00,58.94
Regeneration and Local Services,Culture & Sport,054812,Gala Theatre - Catering etc,Supplies and Services,324117,Provisions,13-Nov-2017,000006704182299,FREEMAN CATERING BUTCH,5422,Catering costs - provisions,140.80,0.00,140.80
Regeneration and Local Services,Culture & Sport,054812,Gala Theatre - Catering etc,Supplies and Services,324117,Provisions,13-Nov-2017,000006704182303,FREEMAN CATERING BUTCH,5422,Catering costs - provisions,138.89,0.00,138.89
Regeneration and Local Services,Culture & Sport,054812,Gala Theatre - Catering etc,Supplies and Services,324117,Provisions,13-Nov-2017,000006704182307,FREEMAN CATERING BUTCH,5422,Catering costs - provisions,20.75,0.00,20.75
Children and Young Peoples Services,Head of Looked After Provision Permanence and Care Leavers,085333,Coxhoe Satelite Home,Supplies and Services,304259,Equipment and Materials,13-Nov-2017,000006704182339,B & Q 1343,5211,Equipment-purchase and rental,56.63,0.00,56.63
Children and Young Peoples Services,Head of Education,071732,Dean Bank Childcare,Supplies and Services,324117,Provisions,13-Nov-2017,000006704182387,ASDA HOME SHOPPING,5411,Catering costs - provisions,52.32,0.00,52.32
Children and Young Peoples Services,Head of Education,071732,Dean Bank Childcare,Supplies and Services,324117,Provisions,13-Nov-2017,000006704182389,ASDA SUPERSTORE 4987,5411,Catering costs - provisions,37.17,0.00,37.17
Children and Young Peoples Services,Head of Looked After Provision Permanence and Care Leavers,085341,High Etherley Satelite Home,Supplies and Services,384999,Miscellaneous Expenses,13-Nov-2017,000006704182397,BOOTS/0561,5912,Other expenses,19.99,0.00,19.99
Children and Young Peoples Services,Head of Looked After Provision Permanence and Care Leavers,085341,High Etherley Satelite Home,Supplies and Services,324117,Provisions,13-Nov-2017,000006704182401,TESCO STORES 6329,5411,Catering costs - provisions,60.95,0.00,60.95
Children and Young Peoples Services,Head of Early Help Assessment and Safeguarding,071445,Chester le Street One Point Hub,Supplies and Services,324117,Provisions,13-Nov-2017,000006704182441,JR HOLLAND FOODSERVICE,5422,Catering costs - provisions,12.48,0.00,12.48
Children and Young Peoples Services,Head of Early Help Assessment and Safeguarding,071445,Chester le Street One Point Hub,Supplies and Services,324117,Provisions,13-Nov-2017,000006704182445,JR HOLLAND FOODSERVICE,5422,Catering costs - provisions,10.08,0.00,10.08
Children and Young Peoples Services,Head of Looked After Provision Permanence and Care Leavers,085965,Barnard,Supplies and Services,304649,Equipment and Materials,13-Nov-2017,000006704182449,WWW.ARGOS.CO.UK,5310,Toys,142.90,0.00,142.90
Children and Young Peoples Services,Head of Looked After Provision Permanence and Care Leavers,085952,Secure Education,Supplies and Services,324117,Provisions,13-Nov-2017,000006704182453,TESCO STORES 6329,5411,Catering costs - provisions,162.32,0.00,162.32
Children and Young Peoples Services,Head of Looked After Provision Permanence and Care Leavers,085952,Secure Education,Supplies and Services,312011,Newspapers Books and Periodicals,13-Nov-2017,000006704182461,AMAZON SVCS EU-UK AMAZ,5942,Books-school library,30.78,0.00,30.78
Regeneration and Local Services,Culture & Sport,011060,Hardwick Park Catering,Supplies and Services,324117,Provisions,13-Nov-2017,000006704182483,FREEMAN CATERING BUTCH,5422,Catering costs - provisions,30.77,0.00,30.77
Regeneration and Local Services,Culture & Sport,011060,Hardwick Park Catering,Supplies and Services,324117,Provisions,13-Nov-2017,000006704182487,FREEMAN CATERING BUTCH,5422,Catering costs - provisions,24.67,0.00,24.67
Regeneration and Local Services,Culture & Sport,011060,Hardwick Park Catering,Supplies and Services,324117,Provisions,13-Nov-2017,000006704182491,FREEMAN CATERING BUTCH,5422,Catering costs - provisions,23.26,0.00,23.26
Regeneration and Local Services,Culture & Sport,011060,Hardwick Park Catering,Supplies and Services,324117,Provisions,13-Nov-2017,000006704182495,FREEMAN CATERING BUTCH,5422,Catering costs - provisions,20.56,0.00,20.56
Regeneration and Local Services,Culture & Sport,011060,Hardwick Park Catering,Supplies and Services,324117,Provisions,13-Nov-2017,000006704182499,JR HOLLAND FOODSERVICE,5422,Catering costs - provisions,54.67,0.00,54.67
Children and Young Peoples Services,Head of Looked After Provision Permanence and Care Leavers,085551,Short Break Services-Park Hse Sher,Supplies and Services,312011,Newspapers Books and Periodicals,13-Nov-2017,000006704182525,AMAZON SVCS EU-UK AMAZ,5942,Books-school library,23.49,0.00,23.49
Regeneration and Local Services,Direct Services,021234,Catering - Locomotion,Supplies and Services,324117,Provisions,13-Nov-2017,000006704182553,WWW.ADELIEFOODS.CO.UK,5499,Catering costs - provisions,231.80,0.00,231.80
Regeneration and Local Services,Direct Services,021234,Catering - Locomotion,Supplies and Services,324117,Provisions,13-Nov-2017,000006704182557,WWW.ADELIEFOODS.CO.UK,5499,Catering costs - provisions,23.41,0.00,23.41
Regeneration and Local Services,Direct Services,021234,Catering - Locomotion,Supplies and Services,324117,Provisions,13-Nov-2017,000006704182561,WWW.ADELIEFOODS.CO.UK,5499,Catering costs - provisions,13.53,0.00,13.53
Regeneration and Local Services,Direct Services,021234,Catering - Locomotion,Supplies and Services,324117,Provisions,13-Nov-2017,000006704182563,WWW.ADELIEFOODS.CO.UK,5499,Catering costs - provisions,13.53,0.00,13.53
Regeneration and Local Services,Direct Services,021234,Catering - Locomotion,Supplies and Services,324117,Provisions,13-Nov-2017,000006704182567,FREEMAN CATERING BUTCH,5422,Catering costs - provisions,100.44,0.00,100.44
Regeneration and Local Services,Direct Services,021234,Catering - Locomotion,Supplies and Services,324117,Provisions,13-Nov-2017,000006704182569,FREEMAN CATERING BUTCH,5422,Catering costs - provisions,62.92,0.00,62.92
Regeneration and Local Services,Direct Services,021234,Catering - Locomotion,Supplies and Services,324117,Provisions,13-Nov-2017,000006704182571,FREEMAN CATERING BUTCH,5422,Catering costs - provisions,51.78,0.00,51.78
Regeneration and Local Services,Direct Services,010525,Catering - Green Lane,Supplies and Services,324117,Provisions,13-Nov-2017,000006704182593,WWW.ADELIEFOODS.CO.UK,5499,Catering costs - provisions,76.16,0.00,76.16
Regeneration and Local Services,Direct Services,010525,Catering - Green Lane,Supplies and Services,324117,Provisions,13-Nov-2017,000006704182595,WWW.ADELIEFOODS.CO.UK,5499,Catering costs - provisions,47.17,0.00,47.17
Regeneration and Local Services,Direct Services,010525,Catering - Green Lane,Supplies and Services,324117,Provisions,13-Nov-2017,000006704182599,FREEMAN CATERING BUTCH,5422,Catering costs - provisions,72.16,0.00,72.16
Regeneration and Local Services,Direct Services,010525,Catering - Green Lane,Supplies and Services,324117,Provisions,13-Nov-2017,000006704182601,FREEMAN CATERING BUTCH,5422,Catering costs - provisions,59.03,0.00,59.03
Regeneration and Local Services,Direct Services,010525,Catering - Green Lane,Supplies and Services,324117,Provisions,13-Nov-2017,000006704182605,FREEMAN CATERING BUTCH,5422,Catering costs - provisions,45.14,0.00,45.14
Children and Young Peoples Services,Head of Looked After Provision Permanence and Care Leavers,085352,Tow Law CU,Supplies and Services,348037,Subsistence,13-Nov-2017,000006704182619,BREWERS FAYRE 41517810,5812,Subsistence,50.00,0.00,50.00
Regeneration and Local Services,Direct Services,010367,C&G - South Grounds Maintenance,Supplies and Services,384999,Miscellaneous Expenses,13-Nov-2017,000006704182681,WWW.GUSTHARTS.COM,5046,Other expenses,123.40,20.57,102.83
Regeneration and Local Services,Direct Services,010301,C&G - North Grounds Maintenance,Supplies and Services,324117,Provisions,13-Nov-2017,000006704182741,J VAN VLIET GATESHEAD,5399,Catering costs - provisions,309.60,51.60,258.00
Regeneration and Local Services,Culture & Sport,054235,Bishop Auckland Town Hall Cafe,Supplies and Services,324117,Provisions,13-Nov-2017,000006704182797,JR HOLLAND FOODSERVICE,5422,Catering costs - provisions,15.12,0.00,15.12
Regeneration and Local Services,Direct Services,021324,Catering - Meadowfield,Supplies and Services,324117,Provisions,13-Nov-2017,000006704182803,FREEMAN CATERING BUTCH,5422,Catering costs - provisions,83.15,0.00,83.15
Regeneration and Local Services,Direct Services,021324,Catering - Meadowfield,Supplies and Services,324117,Provisions,13-Nov-2017,000006704182809,FREEMAN CATERING BUTCH,5422,Catering costs - provisions,68.50,0.00,68.50
Regeneration and Local Services,Direct Services,021324,Catering - Meadowfield,Supplies and Services,324117,Provisions,13-Nov-2017,000006704182811,FREEMAN CATERING BUTCH,5422,Catering costs - provisions,51.76,0.00,51.76
Children and Young Peoples Services,Head of Looked After Provision Permanence and Care Leavers,085333,Coxhoe Satelite Home,Supplies and Services,308011,Furniture,13-Nov-2017,000006704182825,IKEA LIMITED,5712,Furniture repair and replacement,205.00,0.00,205.00
Adult and Health Services,Head of Adults,055301,Stanley Pathways,Supplies and Services,324117,Provisions,13-Nov-2017,000006704182829,ICELAND,5411,Catering costs - provisions,2.97,0.00,2.97
Regeneration and Local Services,Culture & Sport,011086,Positive Futures,Supplies and Services,324117,Provisions,13-Nov-2017,000006704182875,ASDA STORES,5411,Catering costs - provisions,21.55,0.00,21.55
Regeneration and Local Services,Direct Services,021235,Catering - Wharton Park,Supplies and Services,324117,Provisions,13-Nov-2017,000006704182949,JR HOLLAND FOODSERVICE,5422,Catering costs - provisions,16.83,0.00,16.83
Regeneration and Local Services,Culture & Sport,010605,Woodhouse Close Leisure Complex,Supplies and Services,324117,Provisions,13-Nov-2017,000006704182957,FREEMAN CATERING BUTCH,5422,Catering costs - provisions,103.56,0.00,103.56
Regeneration and Local Services,Culture & Sport,010605,Woodhouse Close Leisure Complex,Supplies and Services,324117,Provisions,13-Nov-2017,000006704182961,FREEMAN CATERING BUTCH,5422,Catering costs - provisions,51.78,0.00,51.78
Regeneration and Local Services,Culture & Sport,010605,Woodhouse Close Leisure Complex,Supplies and Services,324117,Provisions,13-Nov-2017,000006704182963,JR HOLLAND FOODSERVICE,5422,Catering costs - provisions,60.68,0.00,60.68
Regeneration and Local Services,Culture & Sport,054812,Gala Theatre - Catering etc,Supplies and Services,324117,Provisions,13-Nov-2017,000006708681277,BATLEYS PERTH,5300,Catering costs - provisions,35.58,5.93,29.65
Regeneration and Local Services,Culture & Sport,054812,Gala Theatre - Catering etc,Supplies and Services,324117,Provisions,13-Nov-2017,000006708681277 - 1,BATLEYS PERTH,5300,Catering costs - provisions,20.87,,20.87
Children and Young Peoples Services,Head of Looked After Provision Permanence and Care Leavers,085962,Durham,Supplies and Services,304259,Equipment and Materials,13-Nov-2017,000006708681461,WWW.ARGOS.CO.UK,5310,Equipment-purchase and rental,73.94,0.00,73.94
Regeneration and Local Services,Direct Services,010525,Catering - Green Lane,Supplies and Services,324117,Provisions,13-Nov-2017,000006708681517,BATLEYS PERTH,5300,Catering costs - provisions,-7.57,0.00,-7.57
Regeneration and Local Services,Direct Services,010525,Catering - Green Lane,Supplies and Services,324117,Provisions,13-Nov-2017,000006708681521,BATLEYS PERTH,5300,Catering costs - provisions,-9.60,-1.60,-8.00
Regeneration and Local Services,Direct Services,021235,Catering - Wharton Park,Supplies and Services,324117,Provisions,13-Nov-2017,000006708681847,BATLEYS PERTH,5300,Catering costs - provisions,7.92,1.32,6.60
Regeneration and Local Services,Direct Services,021235,Catering - Wharton Park,Supplies and Services,324117,Provisions,13-Nov-2017,000006708681847 - 1,BATLEYS PERTH,5300,Catering costs - provisions,13.42,,13.42
Children and Young Peoples Services,Head of Education,070169,Durham SSP,Supplies and Services,384985,Miscellaneous Expenses,13-Nov-2017,000006713444057,IMPACT,5399,Miscellaneous-special facilities,259.20,43.20,216.00
Children and Young Peoples Services,Head of Education,071801,Selby Cottage Childcare Centre,Supplies and Services,324117,Provisions,14-Nov-2017,000006708681167,JR HOLLAND FOODSERVICE,5422,Catering costs - provisions,293.17,0.00,293.17
Children and Young Peoples Services,Head of Education,071801,Selby Cottage Childcare Centre,Supplies and Services,304403,Equipment and Materials,14-Nov-2017,000006708681169,WWW.LIGHTS4FUN.CO.,5999,Other consumables,55.98,0.00,55.98
Adult and Health Services,Head of Adults,055302,Durham Pathways,Supplies and Services,324117,Provisions,14-Nov-2017,000006708681219,SAINSBURYS SACAT 0776,5411,Catering costs - provisions,14.80,0.00,14.80
Regeneration and Local Services,Direct Services,010383,C&G - South Street Cleansing,Supplies and Services,304259,Equipment and Materials,14-Nov-2017,000006708681223,S&A BUILDERS MERCHANTS,5211,Equipment-purchase and rental,22.32,3.72,18.60
Children and Young Peoples Services,Head of Looked After Provision Permanence and Care Leavers,085962,Durham,Supplies and Services,304649,Equipment and Materials,14-Nov-2017,000006708681227,WWW.ARGOS.CO.UK,5310,Toys,51.94,0.00,51.94
Children and Young Peoples Services,Head of Looked After Provision Permanence and Care Leavers,085957,Secure Management,Supplies and Services,304245,Equipment and Materials,14-Nov-2017,000006708681231,FAST KEY SERVICES LIMI,7399,Materials,26.14,4.36,21.78
Children and Young Peoples Services,Head of Looked After Provision Permanence and Care Leavers,085962,Durham,Supplies and Services,304649,Equipment and Materials,14-Nov-2017,000006708681233,TESCO DIRECT,5999,Toys,257.98,0.00,257.98
Regeneration and Local Services,Direct Services,021242,Catering - County Hall,Supplies and Services,324117,Provisions,14-Nov-2017,000006708681255,WWW.ADELIEFOODS.CO.UK,5499,Catering costs - provisions,133.46,0.00,133.46
Regeneration and Local Services,Direct Services,021242,Catering - County Hall,Supplies and Services,324117,Provisions,14-Nov-2017,000006708681257,JR HOLLAND FOODSERVICE,5422,Catering costs - provisions,8.08,0.00,8.08
Resources,Digital and Customer Services,065461,Business Support,Supplies and Services,372009,Subscriptions,14-Nov-2017,000006708681263,WEB NETWORKSOLUTIONS,5968,Subscriptions,79.80,0.00,79.80
Regeneration and Local Services,Culture & Sport,054812,Gala Theatre - Catering etc,Supplies and Services,324117,Provisions,14-Nov-2017,000006708681273,JR HOLLAND FOODSERVICE,5422,Catering costs - provisions,79.03,0.00,79.03
Children and Young Peoples Services,Head of Looked After Provision Permanence and Care Leavers,085351,Framwellgate Moor CU,Supplies and Services,324117,Provisions,14-Nov-2017,000006708681325,ASDA HOME SHOPPING,5411,Catering costs - provisions,216.83,0.00,216.83
Children and Young Peoples Services,Head of Looked After Provision Permanence and Care Leavers,085351,Framwellgate Moor CU,Supplies and Services,324117,Provisions,14-Nov-2017,000006708681329,ASDA HOME SHOPPING,5411,Catering costs - provisions,0.01,0.00,0.01
Children and Young Peoples Services,Head of Looked After Provision Permanence and Care Leavers,085333,Coxhoe Satelite Home,Supplies and Services,324117,Provisions,14-Nov-2017,000006708681333,SIMPLY SUPPLEMENTS,5499,Catering costs - provisions,68.06,0.00,68.06
Regeneration and Local Services,Culture & Sport,054813,Gala Theatre - Technical,Supplies and Services,340001,Postages,14-Nov-2017,000006708681407,PARCEL2GO.COM LTD,4215,Postages,9.54,0.00,9.54
Resources,Legal & Democratic Services,069540,Charter Trust,Supplies and Services,384965,Miscellaneous Expenses,14-Nov-2017,000006708681417,PP LESLEYRICHA,5719,Civic Functions,15.00,0.00,15.00
Children and Young Peoples Services,Head of Looked After Provision Permanence and Care Leavers,085957,Secure Management,Supplies and Services,328041,Clothing Uniforms and Laundry,14-Nov-2017,000006708681457,M and M Direct Ltd,5941,Clothing uniforms and laundry,89.95,0.00,89.95
Children and Young Peoples Services,Head of Looked After Provision Permanence and Care Leavers,085962,Durham,Supplies and Services,384999,Miscellaneous Expenses,14-Nov-2017,000006708681459,WWW.ARGOS.CO.UK,5310,Other expenses,25.14,4.19,20.95
Children and Young Peoples Services,Head of Looked After Provision Permanence and Care Leavers,085962,Durham,Supplies and Services,384999,Miscellaneous Expenses,14-Nov-2017,000006708681465,WWW.ARGOS.CO.UK,5310,Other expenses,14.44,0.00,14.44
Children and Young Peoples Services,Head of Looked After Provision Permanence and Care Leavers,085957,Secure Management,Supplies and Services,328041,Clothing Uniforms and Laundry,14-Nov-2017,000006708681467,WWW.FOOTASYLUM.COM,5941,Clothing uniforms and laundry,48.97,0.00,48.97
Children and Young Peoples Services,Head of Looked After Provision Permanence and Care Leavers,085957,Secure Management,Supplies and Services,324117,Provisions,14-Nov-2017,000006708681469,TESCO STORES 6329,5411,Catering costs - provisions,67.86,0.00,67.86
Children and Young Peoples Services,Head of Looked After Provision Permanence and Care Leavers,085957,Secure Management,Supplies and Services,328041,Clothing Uniforms and Laundry,14-Nov-2017,000006708681473,VERY.CO.UK,5964,Clothing uniforms and laundry,138.99,0.00,138.99
Children and Young Peoples Services,Head of Looked After Provision Permanence and Care Leavers,085962,Durham,Supplies and Services,384999,Miscellaneous Expenses,14-Nov-2017,000006708681475,WWW.ARGOS.CO.UK,5310,Other expenses,-14.44,0.00,-14.44
Regeneration and Local Services,Culture & Sport,011060,Hardwick Park Catering,Supplies and Services,324117,Provisions,14-Nov-2017,000006708681481,JR HOLLAND FOODSERVICE,5422,Catering costs - provisions,29.64,0.00,29.64
Regeneration and Local Services,Culture & Sport,054819,Gala Theatre - Theatre,Supplies and Services,324117,Provisions,14-Nov-2017,000006708681495,ASDA STORES LTD 4313,5411,Catering costs - provisions,26.05,0.00,26.05
Children and Young Peoples Services,Head of Looked After Provision Permanence and Care Leavers,085333,Coxhoe Satelite Home,Supplies and Services,324117,Provisions,14-Nov-2017,000006708681601,TESCO STORES 2371,5411,Catering costs - provisions,37.78,0.00,37.78
Regeneration and Local Services,Culture & Sport,026591,Hardwick Park,Supplies and Services,304649,Equipment and Materials,14-Nov-2017,000006708681631,WWW.ANDERSONSWHOLE,5947,Toys,35.95,5.99,29.96
Regeneration and Local Services,Culture & Sport,011214,Volunteer & Skills,Supplies and Services,324117,Provisions,14-Nov-2017,000006708681633,ASDA SUPERSTORE 4987,5411,Catering costs - provisions,180.00,0.00,180.00
Children and Young Peoples Services,Head of Early Help Assessment and Safeguarding,088001,Peterlee Locality,Supplies and Services,328041,Clothing Uniforms and Laundry,14-Nov-2017,000006708681683,WWW.ARGOS.CO.UK,5310,Clothing uniforms and laundry,62.94,0.00,62.94
Adult and Health Services,Head of Adults,053813,Charles Dickens Extra Care,Supplies and Services,340001,Postages,14-Nov-2017,000006708681829,ROYAL MAIL ONLINE SHOP,9402,Postages,8.17,1.36,6.81
Adult and Health Services,Head of Adults,055306,Spennymoor Pathways,Supplies and Services,324117,Provisions,14-Nov-2017,000006708681835,FARMFOODS- SPENNYM,5411,Catering costs - provisions,2.00,0.00,2.00
Adult and Health Services,Head of Adults,055306,Spennymoor Pathways,Supplies and Services,324117,Provisions,14-Nov-2017,000006708681839,ASDA SUPERSTORE 4987,5411,Catering costs - provisions,1.04,0.00,1.04
Regeneration and Local Services,Direct Services,021242,Catering - County Hall,Supplies and Services,324117,Provisions,14-Nov-2017,000006713444047,BATLEYS PERTH,5300,Catering costs - provisions,418.08,69.68,348.40
Regeneration and Local Services,Direct Services,021242,Catering - County Hall,Supplies and Services,324117,Provisions,14-Nov-2017,000006713444047 - 1,BATLEYS PERTH,5300,Catering costs - provisions,264.03,,264.03
Regeneration and Local Services,Culture & Sport,011060,Hardwick Park Catering,Supplies and Services,324117,Provisions,14-Nov-2017,000006713444263,BATLEYS PERTH,5300,Catering costs - provisions,105.78,17.63,88.15
Regeneration and Local Services,Culture & Sport,011060,Hardwick Park Catering,Supplies and Services,324117,Provisions,14-Nov-2017,000006713444263 - 1,BATLEYS PERTH,5300,Catering costs - provisions,130.02,,130.02
Regeneration and Local Services,Culture & Sport,011060,Hardwick Park Catering,Supplies and Services,324117,Provisions,14-Nov-2017,000006713444269,BATLEYS PERTH,5300,Catering costs - provisions,-9.87,0.00,-9.87
Regeneration and Local Services,Direct Services,021234,Catering - Locomotion,Supplies and Services,324117,Provisions,14-Nov-2017,000006713444307,BATLEYS PERTH,5300,Catering costs - provisions,299.76,49.96,249.80
Regeneration and Local Services,Direct Services,021234,Catering - Locomotion,Supplies and Services,324117,Provisions,14-Nov-2017,000006713444307 - 1,BATLEYS PERTH,5300,Catering costs - provisions,65.79,,65.79
Regeneration and Local Services,Culture & Sport,011058,Wharton Park,Supplies and Services,384999,Miscellaneous Expenses,14-Nov-2017,000006713444401,AMAZON SVCS EU-UK AMAZ,5942,Other expenses,48.60,0.00,48.60
Children and Young Peoples Services,Head of Early Help Assessment and Safeguarding,088001,Peterlee Locality,Supplies and Services,328041,Clothing Uniforms and Laundry,14-Nov-2017,000006713444457,WWW.ARGOS.CO.UK,5310,Clothing uniforms and laundry,235.98,0.00,235.98
Regeneration and Local Services,Culture & Sport,054235,Bishop Auckland Town Hall Cafe,Supplies and Services,324117,Provisions,14-Nov-2017,000006713444481,BATLEYS PERTH,5300,Catering costs - provisions,169.92,28.32,141.60
Regeneration and Local Services,Culture & Sport,054235,Bishop Auckland Town Hall Cafe,Supplies and Services,324117,Provisions,14-Nov-2017,000006713444481 - 1,BATLEYS PERTH,5300,Catering costs - provisions,39.63,,39.63
Regeneration and Local Services,Direct Services,021324,Catering - Meadowfield,Supplies and Services,324117,Provisions,14-Nov-2017,000006713444489,BATLEYS PERTH,5300,Catering costs - provisions,79.20,13.20,66.00
Regeneration and Local Services,Direct Services,021324,Catering - Meadowfield,Supplies and Services,324117,Provisions,14-Nov-2017,000006713444489 - 1,BATLEYS PERTH,5300,Catering costs - provisions,116.54,,116.54
Regeneration and Local Services,Direct Services,021235,Catering - Wharton Park,Supplies and Services,324117,Provisions,14-Nov-2017,000006713444661,BATLEYS PERTH,5300,Catering costs - provisions,-3.42,0.00,-3.42
Children and Young Peoples Services,Head of Early Help Assessment and Safeguarding,085801,CDYOS - Support,Supplies and Services,312011,Newspapers Books and Periodicals,14-Nov-2017,000006713444765,AMAZON SVCS EU-UK AMAZ,5942,Books-school library,29.53,0.00,29.53
Children and Young Peoples Services,Head of Education,070169,Durham SSP,Supplies and Services,384985,Miscellaneous Expenses,14-Nov-2017,000006718757455,IMPACT,5399,Miscellaneous-special facilities,259.20,43.20,216.00
Resources,Digital and Customer Services,065461,Business Support,Supplies and Services,372009,Subscriptions,15-Nov-2017,000006708681265,WEB NETWORKSOLUTIONS,5968,Subscriptions,2.19,0.00,2.19
Children and Young Peoples Services,Head of Looked After Provision Permanence and Care Leavers,085341,High Etherley Satelite Home,Supplies and Services,324117,Provisions,15-Nov-2017,000006713443915,TESCO STORES 2916,5411,Catering costs - provisions,49.25,0.00,49.25
Children and Young Peoples Services,Head of Looked After Provision Permanence and Care Leavers,085341,High Etherley Satelite Home,Supplies and Services,324117,Provisions,15-Nov-2017,000006713443919,TESCO STORES 6329,5411,Catering costs - provisions,3.28,0.00,3.28
Children and Young Peoples Services,Head of Education,071801,Selby Cottage Childcare Centre,Supplies and Services,324117,Provisions,15-Nov-2017,000006713443931,ALDI 32 774 S,5411,Catering costs - provisions,16.62,0.00,16.62
Children and Young Peoples Services,Head of Education,071801,Selby Cottage Childcare Centre,Supplies and Services,324117,Provisions,15-Nov-2017,000006713443935,ASDA HOME SHOPPING,5411,Catering costs - provisions,5.00,0.00,5.00
Children and Young Peoples Services,Head of Early Help Assessment and Safeguarding,085624,Families First Crook,Supplies and Services,304335,Equipment and Materials,15-Nov-2017,000006713443955,PAYPAL LAPTOPPARTS,5732,ICT supplies etc,95.97,0.00,95.97
Adult and Health Services,Head of Adults,055302,Durham Pathways,Supplies and Services,324117,Provisions,15-Nov-2017,000006713443979,LIDL UK,5411,Catering costs - provisions,7.01,0.00,7.01
Children and Young Peoples Services,Head of Looked After Provision Permanence and Care Leavers,085965,Barnard,Supplies and Services,338057,Services,15-Nov-2017,000006713443987,DOMICILARY,8043,Medical fees,41.52,6.92,34.60
Children and Young Peoples Services,Head of Looked After Provision Permanence and Care Leavers,085956,Lumley,Supplies and Services,338057,Services,15-Nov-2017,000006713443987 - 1,DOMICILARY,8043,Medical fees,53.38,,53.38
Children and Young Peoples Services,Head of Looked After Provision Permanence and Care Leavers,085956,Lumley,Supplies and Services,338057,Services,15-Nov-2017,000006713443991,DOMICILARY,8043,Medical fees,13.92,2.32,11.60
Children and Young Peoples Services,Head of Looked After Provision Permanence and Care Leavers,085956,Lumley,Supplies and Services,338057,Services,15-Nov-2017,000006713443991 - 1,DOMICILARY,8043,Medical fees,31.08,,31.08
Children and Young Peoples Services,Head of Looked After Provision Permanence and Care Leavers,085342,9 Cedar Drive Aycliffe,Employees,040149,Recruitment Instruction and Training,15-Nov-2017,000006713444003,PARENTPAY E-COM R,8220,Training-all costs,104.80,0.00,104.80
Children and Young Peoples Services,Head of Looked After Provision Permanence and Care Leavers,085551,Short Break Services-Park Hse Sher,Supplies and Services,324117,Provisions,15-Nov-2017,000006713444031,JR HOLLAND FOODSERVICE,5422,Catering costs - provisions,408.37,0.00,408.37
Regeneration and Local Services,Direct Services,021242,Catering - County Hall,Supplies and Services,324117,Provisions,15-Nov-2017,000006713444037,JR HOLLAND FOODSERVICE,5422,Catering costs - provisions,150.91,0.00,150.91
Regeneration and Local Services,Direct Services,021242,Catering - County Hall,Supplies and Services,324117,Provisions,15-Nov-2017,000006713444041,JR HOLLAND FOODSERVICE,5422,Catering costs - provisions,86.55,0.00,86.55
Regeneration and Local Services,Direct Services,021242,Catering - County Hall,Supplies and Services,324117,Provisions,15-Nov-2017,000006713444043,JR HOLLAND FOODSERVICE,5422,Catering costs - provisions,30.14,0.00,30.14
Resources,Digital and Customer Services,065461,Business Support,Supplies and Services,372009,Subscriptions,15-Nov-2017,000006713444063,NOMINET UK,5734,Subscriptions,27.00,4.50,22.50
Regeneration and Local Services,Culture & Sport,054812,Gala Theatre - Catering etc,Supplies and Services,324117,Provisions,15-Nov-2017,000006713444067,JR HOLLAND FOODSERVICE,5422,Catering costs - provisions,40.66,0.00,40.66
Regeneration and Local Services,Culture & Sport,054812,Gala Theatre - Catering etc,Supplies and Services,324117,Provisions,15-Nov-2017,000006713444071,JR HOLLAND FOODSERVICE,5422,Catering costs - provisions,26.50,0.00,26.50
Children and Young Peoples Services,Head of Education,079599,Psychological-HQ,Employees,040149,Recruitment Instruction and Training,15-Nov-2017,000006713444093,WWW.ELKLAN.CO.UK,8299,Training-all costs,55.00,0.00,55.00
Children and Young Peoples Services,Head of Education,071732,Dean Bank Childcare,Supplies and Services,324117,Provisions,15-Nov-2017,000006713444139,CO-OP GROUP 010503,5411,Catering costs - provisions,7.00,0.00,7.00
Regeneration and Local Services,Culture & Sport,054813,Gala Theatre - Technical,Supplies and Services,328041,Clothing Uniforms and Laundry,15-Nov-2017,000006713444145,WWW.FLINTS.CO.UK,5691,Clothing uniforms and laundry,131.47,21.91,109.56
Regeneration and Local Services,Culture & Sport,054813,Gala Theatre - Technical,Supplies and Services,328041,Clothing Uniforms and Laundry,15-Nov-2017,000006713444151,ARGOS RETAIL GROUP,5310,Clothing uniforms and laundry,199.00,0.00,199.00
Children and Young Peoples Services,Head of Looked After Provision Permanence and Care Leavers,085955,Auckland,Supplies and Services,304259,Equipment and Materials,15-Nov-2017,000006713444235,WWW.ARGOS.CO.UK,5310,Equipment-purchase and rental,23.94,3.99,19.95
Children and Young Peoples Services,Head of Looked After Provision Permanence and Care Leavers,085955,Auckland,Supplies and Services,324117,Provisions,15-Nov-2017,000006713444239,TESCO STORES 6329,5411,Catering costs - provisions,105.25,0.00,105.25
Children and Young Peoples Services,Head of Looked After Provision Permanence and Care Leavers,085952,Secure Education,Supplies and Services,312011,Newspapers Books and Periodicals,15-Nov-2017,000006713444241,AMAZON SVCS EU-UK AMAZ,5942,Books-school library,29.62,0.00,29.62
Children and Young Peoples Services,Head of Looked After Provision Permanence and Care Leavers,085957,Secure Management,Supplies and Services,328041,Clothing Uniforms and Laundry,15-Nov-2017,000006713444245,VERY.CO.UK,5964,Clothing uniforms and laundry,-40.00,0.00,-40.00
Regeneration and Local Services,Culture & Sport,011060,Hardwick Park Catering,Supplies and Services,324117,Provisions,15-Nov-2017,000006713444253,JR HOLLAND FOODSERVICE,5422,Catering costs - provisions,77.36,0.00,77.36
Regeneration and Local Services,Culture & Sport,011060,Hardwick Park Catering,Supplies and Services,324117,Provisions,15-Nov-2017,000006713444259,JR HOLLAND FOODSERVICE,5422,Catering costs - provisions,17.94,0.00,17.94
Regeneration and Local Services,Direct Services,021234,Catering - Locomotion,Supplies and Services,324117,Provisions,15-Nov-2017,000006713444297,JR HOLLAND FOODSERVICE,5422,Catering costs - provisions,60.01,0.00,60.01
Regeneration and Local Services,Direct Services,021234,Catering - Locomotion,Supplies and Services,324117,Provisions,15-Nov-2017,000006713444303,JR HOLLAND FOODSERVICE,5422,Catering costs - provisions,5.95,0.00,5.95
Regeneration and Local Services,Direct Services,010525,Catering - Green Lane,Supplies and Services,324117,Provisions,15-Nov-2017,000006713444319,JR HOLLAND FOODSERVICE,5422,Catering costs - provisions,32.75,0.00,32.75
Adult and Health Services,Commissioning inc Supporting People,052953,Training - Social Work,Supplies and Services,342033,Computers and Communications,15-Nov-2017,000006713444323,WWW.ANNARBOR.CO.UK,5964,Computer hardware,-70.00,0.00,-70.00
Children and Young Peoples Services,Head of Looked After Provision Permanence and Care Leavers,085352,Tow Law CU,Supplies and Services,304259,Equipment and Materials,15-Nov-2017,000006713444327,CURRYS ONLINE,5732,Equipment-purchase and rental,468.00,78.00,390.00
Regeneration and Local Services,Direct Services,010367,C&G - South Grounds Maintenance,Supplies and Services,384999,Miscellaneous Expenses,15-Nov-2017,000006713444359,WWW.GUSTHARTS.COM,5046,Other expenses,482.27,0.00,482.27
Children and Young Peoples Services,Head of Looked After Provision Permanence and Care Leavers,085341,High Etherley Satelite Home,Supplies and Services,328041,Clothing Uniforms and Laundry,15-Nov-2017,000006713444363,ETSY.COM - TOPCATTAILS,5699,Clothing uniforms and laundry,40.00,0.00,40.00
Regeneration and Local Services,Direct Services,020095,Bldg Serv - R&M Div 95 - Bldg Rapid Response,Supplies and Services,304221,Equipment and Materials,15-Nov-2017,000006713444385,WWW.WHOLESALEGLASSCOMP,7399,Direct materials,237.60,39.60,198.00
Regeneration and Local Services,Culture & Sport,011191,Wellbeing4Life,Supplies and Services,304403,Equipment and Materials,15-Nov-2017,000006713444397,TREVOR GREEN FLORAL SU,5947,Other consumables,40.76,0.00,40.76
Children and Young Peoples Services,Head of Early Help Assessment and Safeguarding,088013,Seaham 0 - 5,Supplies and Services,308011,Furniture,15-Nov-2017,000006713444443,J DODDS CARPETS LTD,5713,Furniture repair and replacement,250.00,0.00,250.00
Children and Young Peoples Services,Head of Early Help Assessment and Safeguarding,088001,Peterlee Locality,Supplies and Services,304259,Equipment and Materials,15-Nov-2017,000006713444453,NAS SCOTLAND PEOPLE,9399,Equipment-purchase and rental,12.85,0.00,12.85
Regeneration and Local Services,Culture & Sport,054235,Bishop Auckland Town Hall Cafe,Supplies and Services,324117,Provisions,15-Nov-2017,000006713444471,JR HOLLAND FOODSERVICE,5422,Catering costs - provisions,53.53,0.00,53.53
Regeneration and Local Services,Direct Services,021324,Catering - Meadowfield,Supplies and Services,324117,Provisions,15-Nov-2017,000006713444485,JR HOLLAND FOODSERVICE,5422,Catering costs - provisions,13.89,0.00,13.89
Adult and Health Services,Head of Adults,055301,Stanley Pathways,Supplies and Services,324117,Provisions,15-Nov-2017,000006713444517,ICELAND,5411,Catering costs - provisions,2.97,0.00,2.97
Children and Young Peoples Services,Head of Looked After Provision Permanence and Care Leavers,085363,LAC & Permanence Team 3,Supplies and Services,304259,Equipment and Materials,15-Nov-2017,000006713444549,WWW.DURHAM.GOV.UK,9399,Equipment-purchase and rental,36.00,0.00,36.00
Regeneration and Local Services,Culture & Sport,011086,Positive Futures,Supplies and Services,324117,Provisions,15-Nov-2017,000006713444569,ASDA STORES LTD,5411,Catering costs - provisions,30.53,0.00,30.53
Resources,Digital and Customer Services,069010,Administration,Transport,235057,Public Transport,15-Nov-2017,000006713444641,OYSTER RENEW WEB,4112,Staff travelling,50.00,0.00,50.00
Resources,Digital and Customer Services,069010,Administration,Transport,235057,Public Transport,15-Nov-2017,000006713444647,OYSTER RENEW WEB,4112,Staff travelling,-50.00,0.00,-50.00
Resources,Digital and Customer Services,069010,Administration,Transport,235057,Public Transport,15-Nov-2017,000006713444651,OYSTER RENEW WEB,4112,Staff travelling,-50.00,0.00,-50.00
Regeneration and Local Services,Culture & Sport,010605,Woodhouse Close Leisure Complex,Supplies and Services,324117,Provisions,15-Nov-2017,000006713444701,JR HOLLAND FOODSERVICE,5422,Catering costs - provisions,29.50,0.00,29.50
Transformation and Partnerships,Partnerships & Community Engagement Div.,060472,Syrian Vulnerable Persons Scheme,Supplies and Services,348037,Subsistence,15-Nov-2017,000006713444743,ASDA SUPERSTORE 4987,5411,Subsistence,32.97,0.00,32.97
Children and Young Peoples Services,Head of Looked After Provision Permanence and Care Leavers,085957,Secure Management,Supplies and Services,328041,Clothing Uniforms and Laundry,15-Nov-2017,000006718757547,SPORTSDIRECT.COM,5941,Clothing uniforms and laundry,79.98,0.00,79.98
Children and Young Peoples Services,Head of Looked After Provision Permanence and Care Leavers,085957,Secure Management,Supplies and Services,384999,Miscellaneous Expenses,15-Nov-2017,000006718757553,AMAZON EU AMAZON.CO.UK,5999,Other expenses,9.99,0.00,9.99
Children and Young Peoples Services,Head of Early Help Assessment and Safeguarding,071444,Consett One Point Hub,Supplies and Services,312011,Newspapers Books and Periodicals,15-Nov-2017,000006718757559,AMAZON SVCS EU-UK AMAZ,5942,Books-school library,-86.25,0.00,-86.25
Regeneration and Local Services,Direct Services,021324,Catering - Meadowfield,Supplies and Services,324117,Provisions,15-Nov-2017,000006718757757,BATLEYS PERTH,5300,Catering costs - provisions,-7.09,0.00,-7.09
Regeneration and Local Services,Direct Services,021242,Catering - County Hall,Supplies and Services,324117,Provisions,16-Nov-2017,000006718757385,TESCO STORES 2916,5411,Catering costs - provisions,24.29,0.00,24.29
Children and Young Peoples Services,Head of Education,071801,Selby Cottage Childcare Centre,Supplies and Services,324117,Provisions,16-Nov-2017,000006718757397,TESCO STORES 2278,5411,Catering costs - provisions,1.92,0.32,1.60
Children and Young Peoples Services,Head of Looked After Provision Permanence and Care Leavers,085956,Lumley,Supplies and Services,304252,Equipment and Materials,16-Nov-2017,000006718757421,JAMES ARMSTRONG & CO L,7216,Equipment-repairsserviceinsurance,180.00,0.00,180.00
Children and Young Peoples Services,Head of Looked After Provision Permanence and Care Leavers,085342,9 Cedar Drive Aycliffe,Supplies and Services,324117,Provisions,16-Nov-2017,000006718757431,TESCO STORES 2916,5411,Catering costs - provisions,153.46,0.00,153.46
Regeneration and Local Services,Direct Services,021242,Catering - County Hall,Supplies and Services,324117,Provisions,16-Nov-2017,000006718757451,JR HOLLAND FOODSERVICE,5422,Catering costs - provisions,78.13,0.00,78.13
Regeneration and Local Services,Direct Services,021242,Catering - County Hall,Supplies and Services,324117,Provisions,16-Nov-2017,000006718757453,JR HOLLAND FOODSERVICE,5422,Catering costs - provisions,13.20,0.00,13.20
Children and Young Peoples Services,Head of Early Help Assessment and Safeguarding,071492,One Point - Central,Supplies and Services,384999,Miscellaneous Expenses,16-Nov-2017,000006718757457,THORNTONS LTD,5441,Other expenses,42.00,0.00,42.00
Resources,Digital and Customer Services,070204,School Services - Systems,Supplies and Services,372009,Subscriptions,16-Nov-2017,000006718757459,WEB NETWORKSOLUTIONS,5968,Subscriptions,105.00,0.00,105.00
Regeneration and Local Services,Culture & Sport,054812,Gala Theatre - Catering etc,Supplies and Services,324117,Provisions,16-Nov-2017,000006718757465,JR HOLLAND FOODSERVICE,5422,Catering costs - provisions,37.79,0.00,37.79
Regeneration and Local Services,Culture & Sport,054812,Gala Theatre - Catering etc,Supplies and Services,324117,Provisions,16-Nov-2017,000006718757467,JR HOLLAND FOODSERVICE,5422,Catering costs - provisions,2.10,0.00,2.10
Regeneration and Local Services,Direct Services,021242,Catering - County Hall,Supplies and Services,324117,Provisions,16-Nov-2017,000006718757481,SAINSBURYS LOC4634,5411,Catering costs - provisions,8.50,0.00,8.50
Children and Young Peoples Services,Head of Looked After Provision Permanence and Care Leavers,085361,LAC & Permanence Team 1,Supplies and Services,384999,Miscellaneous Expenses,16-Nov-2017,000006718757487,GRO HM PASSPORT OFFICE,9399,Other expenses,9.25,0.00,9.25
Regeneration and Local Services,Direct Services,010551,Fleet - Chilton Fleet,Transport,215013,Running Costs of Vehicles,16-Nov-2017,000006718757497,DVLA VEHICLE TAX,9399,Vehicle Excise Duty (VED),242.50,0.00,242.50
Regeneration and Local Services,Culture & Sport,010661,Meadowfield Leisure Centre,Supplies and Services,304259,Equipment and Materials,16-Nov-2017,000006718757515,WWW.SOUND-DYNAMICS.CO.,5999,Equipment-purchase and rental,25.16,4.19,20.97
Children and Young Peoples Services,Head of Education,071903,EYDCP-Sustainability EDS,Supplies and Services,324117,Provisions,16-Nov-2017,000006718757519,SAINSBURYS SACAT 0776,5411,Catering costs - provisions,68.40,11.40,57.00
Children and Young Peoples Services,Head of Education,071903,EYDCP-Sustainability EDS,Supplies and Services,304259,Equipment and Materials,16-Nov-2017,000006718757521,WILKO DURHAM 426,5722,Equipment-purchase and rental,20.35,0.00,20.35
Children and Young Peoples Services,Head of Education,071903,EYDCP-Sustainability EDS,Supplies and Services,384999,Miscellaneous Expenses,16-Nov-2017,000006718757523,SMYTHS TOYS UK LTD,5945,Other expenses,11.98,2.00,9.98
Children and Young Peoples Services,Head of Education,071903,EYDCP-Sustainability EDS,Supplies and Services,384999,Miscellaneous Expenses,16-Nov-2017,000006718757525,HOBBYCRAFT,5970,Other expenses,26.00,4.33,21.67
Children and Young Peoples Services,Head of Education,071903,EYDCP-Sustainability EDS,Supplies and Services,328041,Clothing Uniforms and Laundry,16-Nov-2017,000006718757527,THE WORKS,5310,Clothing uniforms and laundry,6.00,1.00,5.00
Regeneration and Local Services,Direct Services,010301,C&G - North Grounds Maintenance,Supplies and Services,304403,Equipment and Materials,16-Nov-2017,000006718757535,SPALDINGS LTD,5065,Other consumables,484.22,80.70,403.52
Children and Young Peoples Services,Head of Looked After Provision Permanence and Care Leavers,085965,Barnard,Supplies and Services,324117,Provisions,16-Nov-2017,000006718757549,TESCO STORES 6329,5411,Catering costs - provisions,75.60,0.00,75.60
Children and Young Peoples Services,Head of Looked After Provision Permanence and Care Leavers,085965,Barnard,Supplies and Services,304649,Equipment and Materials,16-Nov-2017,000006718757551,AMAZON SVCS EU-UK AMAZ,5942,Toys,123.00,0.00,123.00
Children and Young Peoples Services,Head of Looked After Provision Permanence and Care Leavers,085957,Secure Management,Supplies and Services,384999,Miscellaneous Expenses,16-Nov-2017,000006718757555,AMAZON EU AMAZON.CO.UK,5999,Other expenses,5.32,0.00,5.32
Regeneration and Local Services,Direct Services,010367,C&G - South Grounds Maintenance,Supplies and Services,384999,Miscellaneous Expenses,16-Nov-2017,000006718757561,WWW.GUSTHARTS.COM,5046,Other expenses,-52.80,0.00,-52.80
Regeneration and Local Services,Direct Services,021234,Catering - Locomotion,Supplies and Services,324117,Provisions,16-Nov-2017,000006718757579,JR HOLLAND FOODSERVICE,5422,Catering costs - provisions,58.49,0.00,58.49
Regeneration and Local Services,Direct Services,021234,Catering - Locomotion,Supplies and Services,324117,Provisions,16-Nov-2017,000006718757581,JR HOLLAND FOODSERVICE,5422,Catering costs - provisions,-0.82,0.00,-0.82
Children and Young Peoples Services,Head of Looked After Provision Permanence and Care Leavers,085352,Tow Law CU,Supplies and Services,324117,Provisions,16-Nov-2017,000006718757593,TESCO STORES 2371,5411,Catering costs - provisions,164.81,0.00,164.81
Children and Young Peoples Services,Head of Looked After Provision Permanence and Care Leavers,085341,High Etherley Satelite Home,Supplies and Services,324117,Provisions,16-Nov-2017,000006718757623,SAINSBURYS 2199,5411,Catering costs - provisions,47.30,0.00,47.30
Children and Young Peoples Services,Head of Looked After Provision Permanence and Care Leavers,085341,High Etherley Satelite Home,Supplies and Services,384871,Miscellaneous Expenses,16-Nov-2017,000006718757625,ARGOS BISHOP AUCKL,5310,Training-other activities,47.02,0.00,47.02
Children and Young Peoples Services,Head of Looked After Provision Permanence and Care Leavers,085333,Coxhoe Satelite Home,Supplies and Services,324117,Provisions,16-Nov-2017,000006718757651,TESCO STORES 2371,5411,Catering costs - provisions,132.62,0.00,132.62
Regeneration and Local Services,Direct Services,010367,C&G - South Grounds Maintenance,Supplies and Services,384999,Miscellaneous Expenses,16-Nov-2017,000006718757667,WWW.GUSTHARTS.COM,5046,Other expenses,176.28,0.00,176.28
Regeneration and Local Services,Culture & Sport,026591,Hardwick Park,Supplies and Services,304245,Equipment and Materials,16-Nov-2017,000006718757669,Amazon UK Marketplace,5942,Materials,9.99,0.00,9.99
Regeneration and Local Services,Culture & Sport,011060,Hardwick Park Catering,Supplies and Services,304083,Equipment and Materials,16-Nov-2017,000006718757671,WWW.CATERKWIK.CO.UK,5046,Catering equipment,409.12,68.19,340.93
Dedicated Schools Grant,Dedicated Schools Grant,079040,SENSS-HQ,Supplies and Services,304403,Equipment and Materials,16-Nov-2017,000006718757735,AMAZON EU AMAZON.CO.UK,5999,Other consumables,13.99,0.00,13.99
Children and Young Peoples Services,Head of Looked After Provision Permanence and Care Leavers,085333,Coxhoe Satelite Home,Supplies and Services,304259,Equipment and Materials,16-Nov-2017,000006718757791,B&Q DIRECT,5211,Equipment-purchase and rental,64.00,0.00,64.00
Resources,Financial Services,066890,Operations & Data,Supplies and Services,372009,Subscriptions,16-Nov-2017,000006718757879,SurveyMonkey,7372,Subscriptions,264.00,0.00,264.00
Regeneration and Local Services,Culture & Sport,011230,Operations Locality 2,Supplies and Services,324117,Provisions,16-Nov-2017,000006718757919,ALDI 59 774 S,5411,Catering costs - provisions,28.63,0.00,28.63
Regeneration and Local Services,Culture & Sport,011230,Operations Locality 2,Supplies and Services,324117,Provisions,16-Nov-2017,000006718757921,ASDA SUPERSTORE 4987,5411,Catering costs - provisions,32.50,0.00,32.50
Regeneration and Local Services,Direct Services,021242,Catering - County Hall,Supplies and Services,324117,Provisions,16-Nov-2017,000006724630601,BATLEYS PERTH,5300,Catering costs - provisions,391.32,65.22,326.10
Regeneration and Local Services,Direct Services,021242,Catering - County Hall,Supplies and Services,324117,Provisions,16-Nov-2017,000006724630601 - 1,BATLEYS PERTH,5300,Catering costs - provisions,129.37,,129.37
Children and Young Peoples Services,Head of Education,079599,Psychological-HQ,Supplies and Services,304403,Equipment and Materials,16-Nov-2017,000006724630671,AMAZON EU AMAZON.CO.UK,5999,Other consumables,15.91,0.00,15.91
Children and Young Peoples Services,Head of Looked After Provision Permanence and Care Leavers,085956,Lumley,Supplies and Services,304403,Equipment and Materials,16-Nov-2017,000006724630971,AMAZON EU AMAZON.CO.UK,5999,Other consumables,8.90,0.00,8.90
Regeneration and Local Services,Culture & Sport,011060,Hardwick Park Catering,Supplies and Services,324117,Provisions,16-Nov-2017,000006724631039,BATLEYS PERTH,5300,Catering costs - provisions,231.66,38.61,193.05
Regeneration and Local Services,Culture & Sport,011060,Hardwick Park Catering,Supplies and Services,324117,Provisions,16-Nov-2017,000006724631039 - 1,BATLEYS PERTH,5300,Catering costs - provisions,153.41,,153.41
Regeneration and Local Services,Direct Services,021234,Catering - Locomotion,Supplies and Services,324117,Provisions,16-Nov-2017,000006724631157,BATLEYS PERTH,5300,Catering costs - provisions,60.72,10.12,50.60
Regeneration and Local Services,Direct Services,021234,Catering - Locomotion,Supplies and Services,324117,Provisions,16-Nov-2017,000006724631157 - 1,BATLEYS PERTH,5300,Catering costs - provisions,39.70,,39.70
Regeneration and Local Services,Direct Services,021234,Catering - Locomotion,Supplies and Services,324117,Provisions,16-Nov-2017,000006724631165,BATLEYS PERTH,5300,Catering costs - provisions,17.94,0.00,17.94
Regeneration and Local Services,Culture & Sport,026591,Hardwick Park,Supplies and Services,304403,Equipment and Materials,16-Nov-2017,000006724631425,AMAZON EU AMAZON.CO.UK,5999,Other consumables,51.99,0.00,51.99
Children and Young Peoples Services,Head of Looked After Provision Permanence and Care Leavers,085361,LAC & Permanence Team 1,Supplies and Services,384999,Miscellaneous Expenses,16-Nov-2017,000006791770567,GRO HM PASSPORT OFFICE,9399,Other expenses,-9.25,0.00,-9.25
Resources,Digital and Customer Services,070204,School Services - Systems,Supplies and Services,372009,Subscriptions,17-Nov-2017,000006718757461,WEB NETWORKSOLUTIONS,5968,Subscriptions,2.89,0.00,2.89
Regeneration and Local Services,Direct Services,021242,Catering - County Hall,Supplies and Services,324117,Provisions,17-Nov-2017,000006724630361,ASDA SUPERSTORE 4987,5411,Catering costs - provisions,12.63,0.00,12.63
Adult and Health Services,Head of Adults,051613,OP/PD Easington,Supplies and Services,344033,Telephones,17-Nov-2017,000006724630385,AMAZON SVCS EU-UK AMAZ,5942,Telephones general-all costs,8.16,1.36,6.80
Children and Young Peoples Services,Head of Looked After Provision Permanence and Care Leavers,085957,Secure Management,Supplies and Services,338057,Services,17-Nov-2017,000006724630495,AMAZON SVCS EU-UK AMAZ,5942,Medical fees,4.39,0.00,4.39
Regeneration and Local Services,Direct Services,021242,Catering - County Hall,Supplies and Services,324117,Provisions,17-Nov-2017,000006724630575,HOPWELLS LTD,5811,Catering costs - provisions,359.92,0.00,359.92
Regeneration and Local Services,Direct Services,021242,Catering - County Hall,Supplies and Services,324117,Provisions,17-Nov-2017,000006724630577,HOPWELLS LTD,5811,Catering costs - provisions,291.69,0.00,291.69
Regeneration and Local Services,Direct Services,021242,Catering - County Hall,Supplies and Services,324117,Provisions,17-Nov-2017,000006724630585,HOPWELLS LTD,5811,Catering costs - provisions,188.05,0.00,188.05
Regeneration and Local Services,Direct Services,021242,Catering - County Hall,Supplies and Services,324117,Provisions,17-Nov-2017,000006724630589,HOPWELLS LTD,5811,Catering costs - provisions,125.28,0.00,125.28
Regeneration and Local Services,Direct Services,021242,Catering - County Hall,Supplies and Services,324117,Provisions,17-Nov-2017,000006724630591,JR HOLLAND FOODSERVICE,5422,Catering costs - provisions,81.12,0.00,81.12
Regeneration and Local Services,Direct Services,021242,Catering - County Hall,Supplies and Services,324117,Provisions,17-Nov-2017,000006724630593,JR HOLLAND FOODSERVICE,5422,Catering costs - provisions,22.85,0.00,22.85
Regeneration and Local Services,Direct Services,021242,Catering - County Hall,Supplies and Services,324117,Provisions,17-Nov-2017,000006724630599,JR HOLLAND FOODSERVICE,5422,Catering costs - provisions,13.20,0.00,13.20
Regeneration and Local Services,Direct Services,021242,Catering - County Hall,Supplies and Services,324117,Provisions,17-Nov-2017,000006724630613,HOPWELLS LTD,5811,Catering costs - provisions,-18.70,0.00,-18.70
Regeneration and Local Services,Culture & Sport,054812,Gala Theatre - Catering etc,Supplies and Services,324117,Provisions,17-Nov-2017,000006724630649,HOPWELLS LTD,5811,Catering costs - provisions,111.04,0.00,111.04
Regeneration and Local Services,Culture & Sport,054812,Gala Theatre - Catering etc,Supplies and Services,324117,Provisions,17-Nov-2017,000006724630655,HOPWELLS LTD,5811,Catering costs - provisions,-6.40,0.00,-6.40
Children and Young Peoples Services,Head of Looked After Provision Permanence and Care Leavers,085362,LAC & Permanence Team 2,Supplies and Services,384871,Miscellaneous Expenses,17-Nov-2017,000006724630711,WWW.GALADURHAM.CO.,9399,Training-other activities,96.00,0.00,96.00
Children and Young Peoples Services,Head of Early Help Assessment and Safeguarding,088033,Durham 0 - 5,Supplies and Services,324117,Provisions,17-Nov-2017,000006724630785,ASDA HOME SHOPPING,5411,Catering costs - provisions,25.75,0.00,25.75
Regeneration and Local Services,Culture & Sport,054813,Gala Theatre - Technical,Supplies and Services,340001,Postages,17-Nov-2017,000006724630837,PARCEL2GO.COM LTD,4215,Postages,15.59,0.00,15.59
Children and Young Peoples Services,Head of Looked After Provision Permanence and Care Leavers,085957,Secure Management,Premises,115125,Repairs to Grounds,17-Nov-2017,000006724630955,FAST KEY SERVICES LIMI,7399,General maintenance,20.45,3.41,17.04
Children and Young Peoples Services,Head of Looked After Provision Permanence and Care Leavers,085956,Lumley,Supplies and Services,324117,Provisions,17-Nov-2017,000006724630959,TESCO STORES 6329,5411,Catering costs - provisions,81.39,0.00,81.39
Children and Young Peoples Services,Head of Looked After Provision Permanence and Care Leavers,085957,Secure Management,Supplies and Services,384999,Miscellaneous Expenses,17-Nov-2017,000006724630965,AMAZON SVCS EU-UK AMAZ,5942,Other expenses,4.89,0.00,4.89
Children and Young Peoples Services,Head of Early Help Assessment and Safeguarding,071444,Consett One Point Hub,Supplies and Services,312011,Newspapers Books and Periodicals,17-Nov-2017,000006724630983,AMAZON SVCS EU-UK AMAZ,5942,Books-school library,5.41,0.00,5.41
Regeneration and Local Services,Culture & Sport,011060,Hardwick Park Catering,Supplies and Services,324117,Provisions,17-Nov-2017,000006724631021,HOPWELLS LTD,5811,Catering costs - provisions,112.87,0.00,112.87
Regeneration and Local Services,Culture & Sport,011060,Hardwick Park Catering,Supplies and Services,324117,Provisions,17-Nov-2017,000006724631027,JR HOLLAND FOODSERVICE,5422,Catering costs - provisions,25.69,0.00,25.69
Resources,Digital and Customer Services,065335,School Services - Implementations,Supplies and Services,304639,Equipment and Materials,17-Nov-2017,000006724631077,AMAZON SVCS EU-UK AMAZ,5942,Technicians-supplies,5.49,0.00,5.49
Regeneration and Local Services,Culture & Sport,054819,Gala Theatre - Theatre,Supplies and Services,324117,Provisions,17-Nov-2017,000006724631097,ASDA STORES LTD 4313,5411,Catering costs - provisions,26.05,0.00,26.05
Regeneration and Local Services,Direct Services,021234,Catering - Locomotion,Supplies and Services,324117,Provisions,17-Nov-2017,000006724631141,HOPWELLS LTD,5811,Catering costs - provisions,20.40,3.40,17.00
Regeneration and Local Services,Direct Services,021234,Catering - Locomotion,Supplies and Services,324117,Provisions,17-Nov-2017,000006724631141 - 1,HOPWELLS LTD,5811,Catering costs - provisions,139.40,,139.40
Regeneration and Local Services,Direct Services,021234,Catering - Locomotion,Supplies and Services,324117,Provisions,17-Nov-2017,000006724631149,HOPWELLS LTD,5811,Catering costs - provisions,151.54,0.00,151.54
Regeneration and Local Services,Direct Services,010525,Catering - Green Lane,Supplies and Services,324117,Provisions,17-Nov-2017,000006724631199,HOPWELLS LTD,5811,Catering costs - provisions,70.34,0.00,70.34
Regeneration and Local Services,Direct Services,010525,Catering - Green Lane,Supplies and Services,324117,Provisions,17-Nov-2017,000006724631207,JR HOLLAND FOODSERVICE,5422,Catering costs - provisions,54.60,0.00,54.60
Regeneration and Local Services,Direct Services,010367,C&G - South Grounds Maintenance,Supplies and Services,384999,Miscellaneous Expenses,17-Nov-2017,000006724631365,WWW.GUSTHARTS.COM,5046,Other expenses,185.52,0.00,185.52
Regeneration and Local Services,Culture & Sport,011214,Volunteer & Skills,Supplies and Services,328041,Clothing Uniforms and Laundry,17-Nov-2017,000006724631449,MOUNTAIN WAREHOUSE,5691,Clothing uniforms and laundry,20.03,0.00,20.03
Children and Young Peoples Services,Head of Education,078100,Curric and Professional Development,Supplies and Services,324117,Provisions,17-Nov-2017,000006724631497,ASDA SUPERSTORE 4987,5411,Catering costs - provisions,25.98,4.33,21.65
Children and Young Peoples Services,Head of Education,078100,Curric and Professional Development,Supplies and Services,324117,Provisions,17-Nov-2017,000006724631497 - 1,ASDA SUPERSTORE 4987,5411,Catering costs - provisions,7.52,,7.52
Children and Young Peoples Services,Head of Education,078100,Curric and Professional Development,Supplies and Services,324117,Provisions,17-Nov-2017,000006724631505,ICELAND,5411,Catering costs - provisions,1.75,0.00,1.75
Resources,Internal Audit and Insurance,065104,Internal Audit,Supplies and Services,364320,Grants to Voluntary Organisations,17-Nov-2017,000006724631563,SCARMAN,7011,Accommodation assistance,108.00,18.00,90.00
Children and Young Peoples Services,Head of Early Help Assessment and Safeguarding,088001,Peterlee Locality,Supplies and Services,328041,Clothing Uniforms and Laundry,17-Nov-2017,000006724631573,ARGOS RETAIL GROUP,5310,Clothing uniforms and laundry,127.49,0.00,127.49
Children and Young Peoples Services,Head of Early Help Assessment and Safeguarding,088001,Peterlee Locality,Supplies and Services,328041,Clothing Uniforms and Laundry,17-Nov-2017,000006724631575,WWW.ARGOS.CO.UK,5310,Clothing uniforms and laundry,159.99,0.00,159.99
Children and Young Peoples Services,Head of Early Help Assessment and Safeguarding,088001,Peterlee Locality,Supplies and Services,328041,Clothing Uniforms and Laundry,17-Nov-2017,000006724631577,ARGOS LTD,5310,Clothing uniforms and laundry,-11.99,0.00,-11.99
Regeneration and Local Services,Culture & Sport,054235,Bishop Auckland Town Hall Cafe,Supplies and Services,324117,Provisions,17-Nov-2017,000006724631589,JR HOLLAND FOODSERVICE,5422,Catering costs - provisions,26.24,0.00,26.24
Regeneration and Local Services,Direct Services,021324,Catering - Meadowfield,Supplies and Services,324117,Provisions,17-Nov-2017,000006724631619,HOPWELLS LTD,5811,Catering costs - provisions,63.38,0.00,63.38
Regeneration and Local Services,Direct Services,021324,Catering - Meadowfield,Supplies and Services,324117,Provisions,17-Nov-2017,000006724631627,JR HOLLAND FOODSERVICE,5422,Catering costs - provisions,51.81,0.00,51.81
Regeneration and Local Services,Direct Services,021324,Catering - Meadowfield,Supplies and Services,324117,Provisions,17-Nov-2017,000006724631631,JR HOLLAND FOODSERVICE,5422,Catering costs - provisions,9.90,0.00,9.90
Children and Young Peoples Services,Head of Looked After Provision Permanence and Care Leavers,085333,Coxhoe Satelite Home,Supplies and Services,324117,Provisions,17-Nov-2017,000006724631663,ASDA SUPERSTORE 4987,5411,Catering costs - provisions,32.32,0.00,32.32
Children and Young Peoples Services,Head of Looked After Provision Permanence and Care Leavers,085333,Coxhoe Satelite Home,Supplies and Services,324117,Provisions,17-Nov-2017,000006724631669,ASDA SUPERSTORE 4987,5411,Catering costs - provisions,15.00,0.00,15.00
Adult and Health Services,Head of Adults,055301,Stanley Pathways,Supplies and Services,324117,Provisions,17-Nov-2017,000006724631683,ASDA SUPERSTORE,5411,Catering costs - provisions,1.98,0.00,1.98
Children and Young Peoples Services,Head of Looked After Provision Permanence and Care Leavers,085363,LAC & Permanence Team 3,Supplies and Services,304259,Equipment and Materials,17-Nov-2017,000006724631699,DARLINGTON BC INTERNET,9399,Equipment-purchase and rental,32.00,0.00,32.00
Transformation and Partnerships,Comms & Information Management,060270,Communications and Marketing,Supplies and Services,336005,Advertising,17-Nov-2017,000006724631905,FACEBK RV2AVC65B2,7311,Advertising other than for staff,499.94,0.00,499.94
Transformation and Partnerships,Comms & Information Management,060270,Communications and Marketing,Supplies and Services,372009,Subscriptions,17-Nov-2017,000006724631915,STK SHUTTERSTOCK.COM,7333,Subscriptions,70.80,0.00,70.80
Resources,Digital and Customer Services,065329,Operations - Primary Support,Supplies and Services,338064,Services,17-Nov-2017,000006724631921,DISCLOSURE SCOT,9399,Disclosure & Barring (DBS) Fees,25.00,0.00,25.00
Resources,Digital and Customer Services,065329,Operations - Primary Support,Supplies and Services,338064,Services,17-Nov-2017,000006724631927,DISCLOSURE SCOT,9399,Disclosure & Barring (DBS) Fees,25.00,0.00,25.00
Regeneration and Local Services,Direct Services,021235,Catering - Wharton Park,Supplies and Services,324117,Provisions,17-Nov-2017,000006724631985,HOPWELLS LTD,5811,Catering costs - provisions,8.40,1.40,7.00
Regeneration and Local Services,Direct Services,021235,Catering - Wharton Park,Supplies and Services,324117,Provisions,17-Nov-2017,000006724631985 - 1,HOPWELLS LTD,5811,Catering costs - provisions,34.96,,34.96
Children and Young Peoples Services,Head of Early Help Assessment and Safeguarding,071746,Newton Aycliffe Childrens Centre,Supplies and Services,340001,Postages,17-Nov-2017,000006724631995,ROYAL MAIL ONLINE SHOP,9402,Postages,52.81,0.00,52.81
Regeneration and Local Services,Culture & Sport,010605,Woodhouse Close Leisure Complex,Supplies and Services,324117,Provisions,17-Nov-2017,000006724632035,HOPWELLS LTD,5811,Catering costs - provisions,116.21,0.00,116.21
Regeneration and Local Services,Culture & Sport,010605,Woodhouse Close Leisure Complex,Supplies and Services,324117,Provisions,17-Nov-2017,000006724632043,HOPWELLS LTD,5811,Catering costs - provisions,58.74,0.00,58.74
Regeneration and Local Services,Culture & Sport,011060,Hardwick Park Catering,Supplies and Services,324117,Provisions,17-Nov-2017,000006732289825,BATLEYS PERTH,5300,Catering costs - provisions,112.56,18.76,93.80
Regeneration and Local Services,Culture & Sport,011060,Hardwick Park Catering,Supplies and Services,324117,Provisions,17-Nov-2017,000006732289825 - 1,BATLEYS PERTH,5300,Catering costs - provisions,104.35,,104.35
Regeneration and Local Services,Culture & Sport,011060,Hardwick Park Catering,Supplies and Services,324117,Provisions,17-Nov-2017,000006732289835,BATLEYS PERTH,5300,Catering costs - provisions,-5.74,0.00,-5.74
Regeneration and Local Services,Direct Services,021234,Catering - Locomotion,Supplies and Services,324117,Provisions,17-Nov-2017,000006732289913,BATLEYS PERTH,5300,Catering costs - provisions,-40.54,-6.76,-33.78
Regeneration and Local Services,Direct Services,010525,Catering - Green Lane,Supplies and Services,324117,Provisions,17-Nov-2017,000006732289955,BATLEYS PERTH,5300,Catering costs - provisions,62.64,10.44,52.20
Regeneration and Local Services,Direct Services,010525,Catering - Green Lane,Supplies and Services,324117,Provisions,17-Nov-2017,000006732289955 - 1,BATLEYS PERTH,5300,Catering costs - provisions,90.00,,90.00
Regeneration and Local Services,Direct Services,021324,Catering - Meadowfield,Supplies and Services,324117,Provisions,17-Nov-2017,000006732290271,BATLEYS PERTH,5300,Catering costs - provisions,-13.43,-2.24,-11.19
Regeneration and Local Services,Culture & Sport,010605,Woodhouse Close Leisure Complex,Supplies and Services,324117,Provisions,17-Nov-2017,000006732290517,BATLEYS PERTH,5300,Catering costs - provisions,48.72,8.12,40.60
Regeneration and Local Services,Culture & Sport,010605,Woodhouse Close Leisure Complex,Supplies and Services,324117,Provisions,17-Nov-2017,000006732290517 - 1,BATLEYS PERTH,5300,Catering costs - provisions,38.41,,38.41
Children and Young Peoples Services,Head of Education,071801,Selby Cottage Childcare Centre,Supplies and Services,304259,Equipment and Materials,18-Nov-2017,000006724630367,ITUNES.COM/BILL,5735,Equipment-purchase and rental,9.99,0.00,9.99
Children and Young Peoples Services,Head of Education,071801,Selby Cottage Childcare Centre,Supplies and Services,304259,Equipment and Materials,18-Nov-2017,000006724630373,ITUNES.COM/BILL,5735,Equipment-purchase and rental,0.79,0.00,0.79
Regeneration and Local Services,Culture & Sport,054813,Gala Theatre - Technical,Supplies and Services,304259,Equipment and Materials,18-Nov-2017,000006724630841,B & Q 1343,5211,Equipment-purchase and rental,118.00,19.67,98.33
Children and Young Peoples Services,Head of Looked After Provision Permanence and Care Leavers,085954,Walworth,Supplies and Services,324117,Provisions,18-Nov-2017,000006724630975,TESCO STORES 6329,5411,Catering costs - provisions,77.64,0.00,77.64
Resources,Digital and Customer Services,065335,School Services - Implementations,Supplies and Services,304303,Equipment and Materials,18-Nov-2017,000006724631071,AMAZON SVCS EU-UK AMAZ,5942,Network for resale,11.99,0.00,11.99
Children and Young Peoples Services,Head of Looked After Provision Permanence and Care Leavers,085333,Coxhoe Satelite Home,Supplies and Services,304259,Equipment and Materials,18-Nov-2017,000006724631673,M and M Direct Ltd,5941,Equipment-purchase and rental,44.48,0.00,44.48
Children and Young Peoples Services,Head of Looked After Provision Permanence and Care Leavers,085333,Coxhoe Satelite Home,Supplies and Services,312011,Newspapers Books and Periodicals,18-Nov-2017,000006724631675,AMAZON SVCS EU-UK AMAZ,5942,Books-school library,23.98,0.00,23.98
Children and Young Peoples Services,Head of Looked After Provision Permanence and Care Leavers,085333,Coxhoe Satelite Home,Supplies and Services,312011,Newspapers Books and Periodicals,18-Nov-2017,000006724631677,AMAZON SVCS EU-UK AMAZ,5942,Books-school library,99.68,0.00,99.68
Children and Young Peoples Services,Head of Education,075021,Youth Employment Initiative,Supplies and Services,304999,Equipment and Materials,19-Nov-2017,000006724630455,GOOGLE ADWS7021127990,5968,Misc equipment tools and materials,443.48,0.00,443.48
Children and Young Peoples Services,Head of Looked After Provision Permanence and Care Leavers,085342,9 Cedar Drive Aycliffe,Supplies and Services,324117,Provisions,19-Nov-2017,000006724630501,ALDI 74 774 S,5411,Catering costs - provisions,30.39,0.00,30.39
Children and Young Peoples Services,Head of Looked After Provision Permanence and Care Leavers,085342,9 Cedar Drive Aycliffe,Supplies and Services,324117,Provisions,19-Nov-2017,000006724630505,TESCO STORES 2916,5411,Catering costs - provisions,22.05,0.00,22.05
Children and Young Peoples Services,Head of Education,071732,Dean Bank Childcare,Supplies and Services,312011,Newspapers Books and Periodicals,19-Nov-2017,000006724630815,Amazon UK Marketplace,5942,Books-school library,64.88,0.00,64.88
Children and Young Peoples Services,Head of Education,071732,Dean Bank Childcare,Supplies and Services,312011,Newspapers Books and Periodicals,19-Nov-2017,000006724630821,Amazon UK Marketplace,5942,Books-school library,26.53,0.00,26.53
Children and Young Peoples Services,Head of Education,071732,Dean Bank Childcare,Supplies and Services,312011,Newspapers Books and Periodicals,19-Nov-2017,000006724630825,Amazon UK Marketplace,5942,Books-school library,1.79,0.00,1.79
Regeneration and Local Services,Culture & Sport,054813,Gala Theatre - Technical,Supplies and Services,304259,Equipment and Materials,19-Nov-2017,000006724630843,SCREWFIX,5211,Equipment-purchase and rental,49.68,8.28,41.40
Resources,Resources Management,069000,Resources Management,Supplies and Services,324117,Provisions,19-Nov-2017,000006724631407,SAINSBURYS (2303),5411,Catering costs - provisions,13.40,0.00,13.40
Transformation and Partnerships,Comms & Information Management,060270,Communications and Marketing,Supplies and Services,372009,Subscriptions,19-Nov-2017,000006724631933,HOO HOOTSUITE MEDIA I,5968,Subscriptions,5.46,0.00,5.46
Dedicated Schools Grant,Dedicated Schools Grant,079040,SENSS-HQ,Supplies and Services,304403,Equipment and Materials,19-Nov-2017,000006732290241,AMAZON EU AMAZON.CO.UK,5999,Other consumables,22.50,0.00,22.50
Children and Young Peoples Services,Head of Looked After Provision Permanence and Care Leavers,085333,Coxhoe Satelite Home,Supplies and Services,312011,Newspapers Books and Periodicals,19-Nov-2017,000006732290293,AMAZON SVCS EU-UK AMAZ,5942,Books-school library,11.99,0.00,11.99
Children and Young Peoples Services,Head of Looked After Provision Permanence and Care Leavers,085333,Coxhoe Satelite Home,Supplies and Services,312011,Newspapers Books and Periodicals,19-Nov-2017,000006732290299,AMAZON SVCS EU-UK AMAZ,5942,Books-school library,2.49,0.00,2.49
Children and Young Peoples Services,Head of Education,071732,Dean Bank Childcare,Supplies and Services,312011,Newspapers Books and Periodicals,20-Nov-2017,000006724630827,Amazon UK Marketplace,5942,Books-school library,7.61,0.00,7.61
Transformation and Partnerships,Comms & Information Management,060270,Communications and Marketing,Supplies and Services,372009,Subscriptions,20-Nov-2017,000006724631935,HOO HOOTSUITE MEDIA I,5968,Subscriptions,0.15,0.00,0.15
Regeneration and Local Services,Direct Services,021242,Catering - County Hall,Supplies and Services,324117,Provisions,20-Nov-2017,000006732289197,SAINSBURYS LOC (4320),5411,Catering costs - provisions,6.30,0.00,6.30
Regeneration and Local Services,Direct Services,021242,Catering - County Hall,Supplies and Services,324117,Provisions,20-Nov-2017,000006732289203,TESCO STORES 2916,5411,Catering costs - provisions,46.95,0.00,46.95
Children and Young Peoples Services,Head of Education,071801,Selby Cottage Childcare Centre,Supplies and Services,328041,Clothing Uniforms and Laundry,20-Nov-2017,000006732289217,POUNDWORLD RETAIL,5310,Clothing uniforms and laundry,16.05,0.00,16.05
Children and Young Peoples Services,Head of Education,071801,Selby Cottage Childcare Centre,Supplies and Services,324117,Provisions,20-Nov-2017,000006732289219,TESCO STORES 2278,5411,Catering costs - provisions,29.83,0.00,29.83
Children and Young Peoples Services,Head of Education,071801,Selby Cottage Childcare Centre,Supplies and Services,304259,Equipment and Materials,20-Nov-2017,000006732289223,SPORTSDIRECT 264,5941,Equipment-purchase and rental,47.96,0.00,47.96
Regeneration and Local Services,Direct Services,010383,C&G - South Street Cleansing,Supplies and Services,304221,Equipment and Materials,20-Nov-2017,000006732289289,R DEFTY,5200,Direct materials,31.55,0.00,31.55
Children and Young Peoples Services,Head of Looked After Provision Permanence and Care Leavers,085342,9 Cedar Drive Aycliffe,Supplies and Services,324117,Provisions,20-Nov-2017,000006732289319,SAINSBURYS SACAT 2199,5411,Catering costs - provisions,74.60,0.00,74.60
Children and Young Peoples Services,Head of Looked After Provision Permanence and Care Leavers,085342,9 Cedar Drive Aycliffe,Supplies and Services,324117,Provisions,20-Nov-2017,000006732289323,SAINSBURYS 2199,5411,Catering costs - provisions,8.15,0.00,8.15
Children and Young Peoples Services,Head of Looked After Provision Permanence and Care Leavers,085342,9 Cedar Drive Aycliffe,Supplies and Services,324117,Provisions,20-Nov-2017,000006732289327,TESCO STORES 2916,5411,Catering costs - provisions,80.10,0.00,80.10
Children and Young Peoples Services,Head of Looked After Provision Permanence and Care Leavers,085342,9 Cedar Drive Aycliffe,Supplies and Services,324117,Provisions,20-Nov-2017,000006732289331,TESCO STORES 2916,5411,Catering costs - provisions,6.54,0.00,6.54
Regeneration and Local Services,Direct Services,010367,C&G - South Grounds Maintenance,Supplies and Services,304259,Equipment and Materials,20-Nov-2017,000006732289399,MKM PETERLEE,5211,Equipment-purchase and rental,45.29,7.55,37.74
Regeneration and Local Services,Direct Services,021242,Catering - County Hall,Supplies and Services,324117,Provisions,20-Nov-2017,000006732289445,WWW.ADELIEFOODS.CO.UK,5499,Catering costs - provisions,394.22,0.00,394.22
Regeneration and Local Services,Direct Services,021242,Catering - County Hall,Supplies and Services,324117,Provisions,20-Nov-2017,000006732289449,WWW.ADELIEFOODS.CO.UK,5499,Catering costs - provisions,225.52,0.00,225.52
Regeneration and Local Services,Direct Services,021242,Catering - County Hall,Supplies and Services,324117,Provisions,20-Nov-2017,000006732289455,WWW.ADELIEFOODS.CO.UK,5499,Catering costs - provisions,149.18,0.00,149.18
Regeneration and Local Services,Direct Services,021242,Catering - County Hall,Supplies and Services,324117,Provisions,20-Nov-2017,000006732289457,WWW.ADELIEFOODS.CO.UK,5499,Catering costs - provisions,143.48,0.00,143.48
Regeneration and Local Services,Direct Services,021242,Catering - County Hall,Supplies and Services,324117,Provisions,20-Nov-2017,000006732289461,WWW.ADELIEFOODS.CO.UK,5499,Catering costs - provisions,48.20,0.00,48.20
Regeneration and Local Services,Direct Services,021242,Catering - County Hall,Supplies and Services,324117,Provisions,20-Nov-2017,000006732289465,WWW.ADELIEFOODS.CO.UK,5499,Catering costs - provisions,44.80,0.00,44.80
Regeneration and Local Services,Direct Services,021242,Catering - County Hall,Supplies and Services,324117,Provisions,20-Nov-2017,000006732289469,FREEMAN CATERING BUTCH,5422,Catering costs - provisions,191.47,0.00,191.47
Regeneration and Local Services,Direct Services,021242,Catering - County Hall,Supplies and Services,324117,Provisions,20-Nov-2017,000006732289475,JR HOLLAND FOODSERVICE,5422,Catering costs - provisions,59.04,0.00,59.04
Regeneration and Local Services,Direct Services,021242,Catering - County Hall,Supplies and Services,324117,Provisions,20-Nov-2017,000006732289481,JR HOLLAND FOODSERVICE,5422,Catering costs - provisions,9.20,0.00,9.20
Regeneration and Local Services,Direct Services,021242,Catering - County Hall,Supplies and Services,324117,Provisions,20-Nov-2017,000006732289487,JR HOLLAND FOODSERVICE,5422,Catering costs - provisions,6.94,0.00,6.94
Children and Young Peoples Services,Head of Education,070169,Durham SSP,Employees,040149,Recruitment Instruction and Training,20-Nov-2017,000006732289507,TYNE AND WEAR SPORT,8299,Training-all costs,40.00,0.00,40.00
Resources,Digital and Customer Services,070204,School Services - Systems,Supplies and Services,372009,Subscriptions,20-Nov-2017,000006732289523,WEB NETWORKSOLUTIONS,5968,Subscriptions,104.60,0.00,104.60
Children and Young Peoples Services,Head of Education,071732,Dean Bank Childcare,Supplies and Services,312011,Newspapers Books and Periodicals,20-Nov-2017,000006732289663,Amazon UK Marketplace,5942,Books-school library,4.45,0.00,4.45
Children and Young Peoples Services,Head of Education,071732,Dean Bank Childcare,Supplies and Services,324117,Provisions,20-Nov-2017,000006732289669,ASDA HOME SHOPPING,5411,Catering costs - provisions,54.77,0.00,54.77
Children and Young Peoples Services,Head of Education,071732,Dean Bank Childcare,Supplies and Services,324117,Provisions,20-Nov-2017,000006732289673,ASDA HOME SHOPPING,5411,Catering costs - provisions,66.75,0.00,66.75
Children and Young Peoples Services,Head of Education,071732,Dean Bank Childcare,Supplies and Services,324117,Provisions,20-Nov-2017,000006732289679,TESCO STORES 2916,5411,Catering costs - provisions,56.10,0.00,56.10
Children and Young Peoples Services,Head of Education,071732,Dean Bank Childcare,Supplies and Services,312011,Newspapers Books and Periodicals,20-Nov-2017,000006732289681,AMAZON SVCS EU-UK AMAZ,5942,Books-school library,6.45,0.00,6.45
Children and Young Peoples Services,Head of Education,071732,Dean Bank Childcare,Supplies and Services,324117,Provisions,20-Nov-2017,000006732289687,ASDA HOME SHOPPING,5411,Catering costs - provisions,-1.50,0.00,-1.50
Children and Young Peoples Services,Head of Looked After Provision Permanence and Care Leavers,085952,Secure Education,Supplies and Services,324117,Provisions,20-Nov-2017,000006732289763,TESCO STORES 6329,5411,Catering costs - provisions,203.16,0.00,203.16
Children and Young Peoples Services,Head of Looked After Provision Permanence and Care Leavers,085957,Secure Management,Supplies and Services,328041,Clothing Uniforms and Laundry,20-Nov-2017,000006732289767,M and M Direct Ltd,5941,Clothing uniforms and laundry,-29.99,0.00,-29.99
Regeneration and Local Services,Culture & Sport,011060,Hardwick Park Catering,Supplies and Services,324117,Provisions,20-Nov-2017,000006732289801,FREEMAN CATERING BUTCH,5422,Catering costs - provisions,37.83,0.00,37.83
Regeneration and Local Services,Culture & Sport,011060,Hardwick Park Catering,Supplies and Services,324117,Provisions,20-Nov-2017,000006732289805,FREEMAN CATERING BUTCH,5422,Catering costs - provisions,27.18,0.00,27.18
Regeneration and Local Services,Culture & Sport,011060,Hardwick Park Catering,Supplies and Services,324117,Provisions,20-Nov-2017,000006732289809,FREEMAN CATERING BUTCH,5422,Catering costs - provisions,16.83,0.00,16.83
Regeneration and Local Services,Culture & Sport,011060,Hardwick Park Catering,Supplies and Services,324117,Provisions,20-Nov-2017,000006732289813,JR HOLLAND FOODSERVICE,5422,Catering costs - provisions,66.38,0.00,66.38
Regeneration and Local Services,Culture & Sport,054819,Gala Theatre - Theatre,Supplies and Services,308011,Furniture,20-Nov-2017,000006732289845,IKEA LIMITED,5712,Furniture repair and replacement,26.00,0.00,26.00
Regeneration and Local Services,Culture & Sport,054819,Gala Theatre - Theatre,Supplies and Services,328041,Clothing Uniforms and Laundry,20-Nov-2017,000006732289851,THE RANGE,5311,Clothing uniforms and laundry,79.99,0.00,79.99
Regeneration and Local Services,Direct Services,021234,Catering - Locomotion,Supplies and Services,324117,Provisions,20-Nov-2017,000006732289881,WWW.ADELIEFOODS.CO.UK,5499,Catering costs - provisions,80.93,0.00,80.93
Regeneration and Local Services,Direct Services,021234,Catering - Locomotion,Supplies and Services,324117,Provisions,20-Nov-2017,000006732289885,WWW.ADELIEFOODS.CO.UK,5499,Catering costs - provisions,36.53,0.00,36.53
Regeneration and Local Services,Direct Services,021234,Catering - Locomotion,Supplies and Services,324117,Provisions,20-Nov-2017,000006732289891,WWW.ADELIEFOODS.CO.UK,5499,Catering costs - provisions,35.17,0.00,35.17
Regeneration and Local Services,Direct Services,021234,Catering - Locomotion,Supplies and Services,324117,Provisions,20-Nov-2017,000006732289895,WWW.ADELIEFOODS.CO.UK,5499,Catering costs - provisions,33.21,0.00,33.21
